Supplier Name,Transaction Number, Paid Date,Paid Amount, Department,Cost Centre,Description,Irrecoverable VAT
1 CALL BUSINESS SOLUTIONS LIMITED,2074222,07/05/2021,"1,280.00",Chief Exective Officer,B7700,"Advertising, Publicity & Marketing",
1 CALL BUSINESS SOLUTIONS LIMITED,2074222,07/05/2021,"1,600.00",Chief Exective Officer,B7700,"Advertising, Publicity & Marketing",
1 CALL BUSINESS SOLUTIONS LIMITED,2074222,07/05/2021,200.00,Chief Exective Officer,B7700,"Advertising, Publicity & Marketing",
1 CALL BUSINESS SOLUTIONS LIMITED,2074222,07/05/2021,336.00,Chief Exective Officer,B7700,"Advertising, Publicity & Marketing",
1 CALL BUSINESS SOLUTIONS LIMITED,2074222,07/05/2021,"1,536.00",Chief Exective Officer,B7700,"Advertising, Publicity & Marketing",
1 CALL BUSINESS SOLUTIONS LIMITED,2074222,07/05/2021,"1,817.00",Chief Exective Officer,B7700,"Advertising, Publicity & Marketing",
1 CALL BUSINESS SOLUTIONS LIMITED,2074222,07/05/2021,168.00,Chief Exective Officer,B7700,"Advertising, Publicity & Marketing",
1 CALL BUSINESS SOLUTIONS LIMITED,2074222,07/05/2021,588.00,Chief Exective Officer,B7700,"Advertising, Publicity & Marketing",
1 CALL BUSINESS SOLUTIONS LIMITED,2074222,07/05/2021,564.00,Chief Exective Officer,B7700,"Advertising, Publicity & Marketing",
1 CALL BUSINESS SOLUTIONS LIMITED,2074222,07/05/2021,504.00,Chief Exective Officer,B7700,"Advertising, Publicity & Marketing",
1 CALL BUSINESS SOLUTIONS LIMITED,2074222,07/05/2021,168.00,Chief Exective Officer,B7700,"Advertising, Publicity & Marketing",
1 CALL BUSINESS SOLUTIONS LIMITED,2074222,07/05/2021,26.00,Chief Exective Officer,B7700,"Advertising, Publicity & Marketing",
1 CALL BUSINESS SOLUTIONS LIMITED,2073954,06/05/2021,336.00,Chief Exective Officer,B7700,"Advertising, Publicity & Marketing",
1 CALL BUSINESS SOLUTIONS LIMITED,2073954,06/05/2021,687.00,Chief Exective Officer,B7700,"Advertising, Publicity & Marketing",
1 CALL BUSINESS SOLUTIONS LIMITED,2078611,25/05/2021,485.00,Regeneration & Place,D2190,"Repairs, alterations and maintenance",
1 CALL BUSINESS SOLUTIONS LIMITED,2078382,24/05/2021,"9,494.85",Regeneration & Place,D2510,Hired or Contracted services,
1 CALL BUSINESS SOLUTIONS LIMITED,2078611,25/05/2021,"1,044.71",Regeneration & Place,D2510,Hired or Contracted services,
1 CALL BUSINESS SOLUTIONS LIMITED,2078382,24/05/2021,65.00,Regeneration & Place,D2510,"Printing, Stationery & General Office Expenses",
1 CALL BUSINESS SOLUTIONS LIMITED,2078382,24/05/2021,52.00,Regeneration & Place,D2510,"Printing, Stationery & General Office Expenses",
1 CALL BUSINESS SOLUTIONS LIMITED,2078382,24/05/2021,172.00,Regeneration & Place,D2520,"Printing, Stationery & General Office Expenses",
1 CALL BUSINESS SOLUTIONS LIMITED,2078382,24/05/2021,128.24,Regeneration & Place,D2690,Cleaning & Domestic Supplies,
1 CALL BUSINESS SOLUTIONS LIMITED,2078382,24/05/2021,157.30,Regeneration & Place,D2690,Cleaning & Domestic Supplies,
1 CALL BUSINESS SOLUTIONS LIMITED,2078382,24/05/2021,480.00,Regeneration & Place,D3120,"Repairs, alterations and maintenance",
1 CALL BUSINESS SOLUTIONS LIMITED,2077357,18/05/2021,80.00,Regeneration & Place,D5500,Cleaning & Domestic Supplies,
1 CALL BUSINESS SOLUTIONS LIMITED,2073694,05/05/2021,380.00,Regeneration & Place,D5500,"Repairs, alterations and maintenance",
1 CALL BUSINESS SOLUTIONS LIMITED,2078923,26/05/2021,"13,385.00",Regeneration & Place,D8000,"Repairs, alterations and maintenance",
1 CALL BUSINESS SOLUTIONS LIMITED,2078382,24/05/2021,240.00,Regeneration & Place,D8000,"Repairs, alterations and maintenance",
1 CALL BUSINESS SOLUTIONS LIMITED,2078382,24/05/2021,260.00,"Children, Families & Education",E8610,"Repairs, alterations and maintenance",
1 CALL BUSINESS SOLUTIONS LIMITED,2078611,25/05/2021,175.00,Resources,F2016,"Equipment, Furniture & Materials",
1 CALL BUSINESS SOLUTIONS LIMITED,2078611,25/05/2021,"7,404.60",Neighbourhood Services,H2951,Customer and Client Receipts - Vatable,
1 CALL BUSINESS SOLUTIONS LIMITED,2078611,25/05/2021,143.50,Neighbourhood Services,H2951,Customer and Client Receipts - Vatable,
1 CALL BUSINESS SOLUTIONS LIMITED,2078611,25/05/2021,"3,675.00",Covid,H4100,Cleaning & Domestic Supplies,
1 CALL BUSINESS SOLUTIONS LIMITED,2078611,25/05/2021,717.50,Covid,H4111,Services,
1 CALL BUSINESS SOLUTIONS LIMITED,2077357,18/05/2021,"1,850.00",Covid,H4133,Cleaning & Domestic Supplies,
1 CALL BUSINESS SOLUTIONS LIMITED,2073310,04/05/2021,"15,871.10",Covid,H4133,Services,
1 CALL BUSINESS SOLUTIONS LIMITED,2073310,04/05/2021,"11,853.10",Covid,H4133,Services,
1 CALL BUSINESS SOLUTIONS LIMITED,2073310,04/05/2021,"13,087.20",Covid,H4133,Services,
1 CALL BUSINESS SOLUTIONS LIMITED,2073310,04/05/2021,"19,889.10",Covid,H4133,Services,
1 CALL BUSINESS SOLUTIONS LIMITED,2074222,07/05/2021,"11,472.82",Covid,H4133,Services,
1 CALL BUSINESS SOLUTIONS LIMITED,2074222,07/05/2021,"18,791.32",Covid,H4133,Services,
1 CALL BUSINESS SOLUTIONS LIMITED,2074222,07/05/2021,"13,718.60",Covid,H4133,Services,
1 CALL BUSINESS SOLUTIONS LIMITED,2074222,07/05/2021,"15,641.50",Covid,H4133,Services,
1 CALL BUSINESS SOLUTIONS LIMITED,2078382,24/05/2021,"13,776.00",Covid,H4133,Services,
1 CALL BUSINESS SOLUTIONS LIMITED,2078382,24/05/2021,"9,184.00",Covid,H4133,Services,
1 CALL BUSINESS SOLUTIONS LIMITED,2078382,24/05/2021,"13,776.00",Covid,H4133,Services,
1 CALL BUSINESS SOLUTIONS LIMITED,2078382,24/05/2021,"16,032.12",Covid,H4133,Services,
1 CALL BUSINESS SOLUTIONS LIMITED,2073954,06/05/2021,240.00,Covid,H4152,Hired or Contracted services,
1 CALL BUSINESS SOLUTIONS LIMITED,2073954,06/05/2021,"1,147.50",Covid,H4152,Hired or Contracted services,
1 CALL BUSINESS SOLUTIONS LIMITED,2078923,26/05/2021,"5,115.80",Neighbourhood Services,L2090,"Equipment, Furniture & Materials",
1 CALL BUSINESS SOLUTIONS LIMITED,2078611,25/05/2021,"1,735.65",Regeneration & Place,L3970,Cleaning & Domestic Supplies,
1 CALL BUSINESS SOLUTIONS LIMITED,2078121,21/05/2021,"1,645.00",Neighbourhood Services,L4820,"Repairs, alterations and maintenance",
1 ENV SOLUTIONS LIMITED,2075480,12/05/2021,354.83,Neighbourhood Services,H2110,"Equipment, Furniture & Materials",
13TH BEBINGTON (ST BARNABAS) SCOUT GROUP,2073955,06/05/2021,"5,000.00",Covid,H4100,Grants to Voluntary Organisations,
1SPATIAL GROUP LIMITED,2075718,13/05/2021,680.00,Resources,F4412,Communications & Computing,
1ST AFFINITY FOSTERING SERVICE LIMITED,2077640,19/05/2021,"5,357.10","Children, Families & Education",E7080,Care Provision,
1ST AFFINITY FOSTERING SERVICE LIMITED,2077640,19/05/2021,"3,471.30","Children, Families & Education",E7080,Care Provision,
1ST ENABLE LIMITED,2077102,17/05/2021,"63,260.18",Adults Care and Health and Strategic Commissioning,S6005,Care Provision,
1ST ENABLE LIMITED,2075055,11/05/2021,296.57,Adults Care and Health and Strategic Commissioning,S6141,Learning & Disability Support - Adults (18-64),
1ST ENABLE LIMITED,2074433,10/05/2021,816.00,Adults Care and Health and Strategic Commissioning,S6141,Learning & Disability Support - Adults (18-64),
1ST THURSTASTON SCOUT GROUP,2076647,14/05/2021,"2,500.00",Covid,H4100,Grants to Voluntary Organisations,
2468 GROUP,2077641,19/05/2021,107.01,Regeneration & Place,D2550,"Equipment, Furniture & Materials",
365 SUPPORT LIMITED,2078613,25/05/2021,"103,763.22",Adults Care and Health and Strategic Commissioning,S6121,Learning & Disability Support - Adults (18-64),
38.6 SOLUTIONS LIMITED,2074223,07/05/2021,"4,700.00","Children, Families & Education",E7080,Care Provision,
51 WELLINGTON ROAD RES HOME,2075057,11/05/2021,960.00,Adults Care and Health and Strategic Commissioning,S6121,Learning & Disability Support - Adults (18-64),
51 WELLINGTON ROAD RES HOME,2075057,11/05/2021,720.00,Adults Care and Health and Strategic Commissioning,S6121,Learning & Disability Support - Adults (18-64),
51 WELLINGTON ROAD RES HOME,2075057,11/05/2021,"2,076.00",Adults Care and Health and Strategic Commissioning,S6121,Learning & Disability Support - Adults (18-64),
51 WELLINGTON ROAD RES HOME,2075057,11/05/2021,"2,076.00",Adults Care and Health and Strategic Commissioning,S6121,Learning & Disability Support - Adults (18-64),
51 WELLINGTON ROAD RES HOME,2075057,11/05/2021,"2,076.00",Adults Care and Health and Strategic Commissioning,S6121,Learning & Disability Support - Adults (18-64),
51 WELLINGTON ROAD RES HOME,2075057,11/05/2021,"2,076.00",Adults Care and Health and Strategic Commissioning,S6141,Learning & Disability Support - Adults (18-64),
51 WELLINGTON ROAD RES HOME,2075057,11/05/2021,"2,076.00",Adults Care and Health and Strategic Commissioning,S6141,Learning & Disability Support - Adults (18-64),
51 WELLINGTON ROAD RES HOME,2075057,11/05/2021,"2,076.00",Adults Care and Health and Strategic Commissioning,S6142,Learning & Disability Support - Adults (18-64),
51 WELLINGTON ROAD RES HOME,2075057,11/05/2021,"2,076.00",Adults Care and Health and Strategic Commissioning,S6142,Learning & Disability Support - Adults (18-64),
51 WELLINGTON ROAD RES HOME,2075057,11/05/2021,"2,076.00",Adults Care and Health and Strategic Commissioning,S6142,Mental Health Support - Older People (65+),
64TH BIRKENHEAD SEA SCOUT COUNCIL,231568,05/05/2021,355.00,Covid,H4100,Grants to Voluntary Organisations,
A & J TRINICK PROPERTY LIMITED,2075482,12/05/2021,"3,000.00",RE  Housing & Community Safety,C4212,Expenditure on Capital Grants,
A C HOYLAKE JFC,2076650,14/05/2021,"1,499.50",Balance Sheet,00000,Debtors - Other Entities and Individuals,
A E YATES LIMITED,2077360,18/05/2021,"76,615.71",RE  Environment & Regulation,C5300,Contractors - Main,
A TEAM WIRRAL LIMITED,2076651,14/05/2021,"13,415.07","Children, Families & Education",E5731,Care Provision,
A TEAM WIRRAL LIMITED,2078384,24/05/2021,"16,653.16","Children, Families & Education",E5731,School Transport - Primary,
A TEAM WIRRAL LIMITED,2073316,04/05/2021,"16,903.99","Children, Families & Education",E5731,School Transport - Primary,
A TEAM WIRRAL LIMITED,2075059,11/05/2021,"17,113.78","Children, Families & Education",E5731,School Transport - Primary,
A TEAM WIRRAL LIMITED,2080444,27/05/2021,"17,937.22","Children, Families & Education",E5731,School Transport - Primary,
A TEAM WIRRAL LIMITED,2078615,25/05/2021,185.50,"Children, Families & Education",E9480,Hired or Contracted services,
A1A TRAVEL,2073695,05/05/2021,"23,728.95",Neighbourhood Services,E5730,School Transport - Special,
A1A TRAVEL,2075720,13/05/2021,"13,627.51","Children, Families & Education",E5731,School Transport - Secondary,
A1A TRAVEL,2078616,25/05/2021,"17,655.10","Children, Families & Education",E5731,School Transport - Secondary,
A1A TRAVEL,2077642,19/05/2021,"17,655.10","Children, Families & Education",E5731,School Transport - Secondary,
A1A TRAVEL,2073317,04/05/2021,476.48,"Children, Families & Education",E5731,School Transport - Secondary,
A1A TRAVEL,2074224,07/05/2021,"17,655.10","Children, Families & Education",E5731,School Transport - Secondary,
A1A TRAVEL,2077642,19/05/2021,"17,059.50","Children, Families & Education",E5731,School Transport - Special,
A2B TRAVEL (UK) LIMITED,2078123,21/05/2021,"2,009.31","Children, Families & Education",E5731,School Transport - College,
A2B TRAVEL (UK) LIMITED,2074225,07/05/2021,"2,009.31","Children, Families & Education",E5731,School Transport - College,
A2B TRAVEL (UK) LIMITED,2078123,21/05/2021,"6,061.50","Children, Families & Education",E5731,School Transport - Special,
A2B TRAVEL (UK) LIMITED,2073318,04/05/2021,"6,061.50","Children, Families & Education",E5731,School Transport - Special,
A2B TRAVEL (UK) LIMITED,2074225,07/05/2021,"6,061.50","Children, Families & Education",E5731,School Transport - Special,
A2B TRAVEL (UK) LIMITED,2077643,19/05/2021,"1,561.65",Neighbourhood Services,S5600,Care Provision,
A2I TRANSCRIPTION SERVICES LIMITED,2078924,26/05/2021,288.50,Resources,F4610,Specialist Contracts & Fees,
ABBEYFIELD HOYLAKE & WEST KIRBY,2075060,11/05/2021,"1,936.00",Adults Care and Health and Strategic Commissioning,S6141,Physical Support - Older People (65+),
ABBEYFIELD HOYLAKE & WEST KIRBY,2075060,11/05/2021,"1,936.00",Adults Care and Health and Strategic Commissioning,S6141,Physical Support - Older People (65+),
ABBEYFIELD HOYLAKE & WEST KIRBY,2075060,11/05/2021,"1,936.00",Adults Care and Health and Strategic Commissioning,S6141,Physical Support - Older People (65+),
ABL HEALTH LIMITED,2078386,24/05/2021,"58,156.50",Adults Care and Health and Strategic Commissioning,P4040,Hired or Contracted services,
ABOUT WITH FRIENDS,2078617,25/05/2021,"1,008.24",Adults Care and Health and Strategic Commissioning,S6161,Mental Health Support - Adults (18-64),
ABSOLUTE INTERPRETING & TRANSLATIONS LIMITED,2078926,26/05/2021,24.00,Covid,H4114,Services,
ACE AUDIO VISUAL LIMITED,2080446,27/05/2021,682.73,Law & Governance (Monitoring Officer),A6000,"Equipment, Furniture & Materials",
ACE AUDIO VISUAL LIMITED,2080446,27/05/2021,358.02,Law & Governance (Monitoring Officer),A6000,"Equipment, Furniture & Materials",
ACORN INDUSTRIAL SERVICES LIMITED,2075485,12/05/2021,26.88,Neighbourhood Services,L3290,"Repairs, alterations and maintenance",
ACORN INDUSTRIAL SERVICES LIMITED,2080447,27/05/2021,188.28,Neighbourhood Services,L3320,"Repairs, alterations and maintenance",
ACTIVE 8 SUPPORT SERVICES,2074228,07/05/2021,"1,584.99","Children, Families & Education",E7081,Care Provision,
ACTIVE 8 SUPPORT SERVICES,2077645,19/05/2021,"1,319.57","Children, Families & Education",E7081,Care Provision,
ACTIVE 8 SUPPORT SERVICES,2077645,19/05/2021,"1,319.57","Children, Families & Education",E7081,Care Provision,
ACTIVE 8 SUPPORT SERVICES,2077645,19/05/2021,"1,533.86","Children, Families & Education",E7081,Care Provision,
ACTIVE 8 SUPPORT SERVICES,2073320,04/05/2021,100.00,"Children, Families & Education",E7029,Care Provision,
ACTIVE 8 SUPPORT SERVICES,2075724,13/05/2021,15.00,"Children, Families & Education",E7036,Care Provision,
ACTIVE 8 SUPPORT SERVICES,2080448,27/05/2021,60.00,"Children, Families & Education",E7036,Care Provision,
ACTIVECARE LIMITED T/A WESTWOOD HALL,2075061,11/05/2021,"2,096.00",Adults Care and Health and Strategic Commissioning,S6131,Physical Support - Older People (65+),
ACTIVECARE LIMITED T/A WESTWOOD HALL,2075061,11/05/2021,200.00,Adults Care and Health and Strategic Commissioning,S6131,Physical Support - Older People (65+),
ACTIVECARE LIMITED T/A WESTWOOD HALL,2075061,11/05/2021,"1,464.00",Adults Care and Health and Strategic Commissioning,S6131,Physical Support - Older People (65+),
ACTIVECARE LIMITED T/A WESTWOOD HALL,2075061,11/05/2021,"2,096.00",Adults Care and Health and Strategic Commissioning,S6131,Physical Support - Older People (65+),
ACTIVECARE LIMITED T/A WESTWOOD HALL,2075061,11/05/2021,"1,936.00",Adults Care and Health and Strategic Commissioning,S6131,Physical Support - Older People (65+),
ACTIVECARE LIMITED T/A WESTWOOD HALL,2075061,11/05/2021,"2,096.00",Adults Care and Health and Strategic Commissioning,S6132,Physical Support - Older People (65+),
ACTIVECARE LIMITED T/A WESTWOOD HALL,2075061,11/05/2021,-299.43,Adults Care and Health and Strategic Commissioning,S6141,Physical Support - Older People (65+),
ACTIVECARE LIMITED T/A WESTWOOD HALL,2075061,11/05/2021,-524.00,Adults Care and Health and Strategic Commissioning,S6141,Physical Support - Older People (65+),
ACTIVECARE LIMITED T/A WESTWOOD HALL,2075061,11/05/2021,"1,936.00",Adults Care and Health and Strategic Commissioning,S6167,Physical Support - Older People (65+),
ACTIVECARE LIMITED T/A WESTWOOD HALL,2075061,11/05/2021,"3,200.00",Adults Care and Health and Strategic Commissioning,S6998,Physical Support - Older People (65+),
ACTIVECARE LIMITED T/A WESTWOOD HALL,2075061,11/05/2021,823.43,Adults Care and Health and Strategic Commissioning,S6998,Physical Support - Older People (65+),
ADTAXIS-WIRRAL,2077646,19/05/2021,"2,694.80","Children, Families & Education",E5731,School Transport - Special,
ADTAXIS-WIRRAL,2078620,25/05/2021,"3,006.30","Children, Families & Education",E5731,School Transport - Special,
ADTAXIS-WIRRAL,2073697,05/05/2021,"2,694.80","Children, Families & Education",E5731,School Transport - Special,
ADTAXIS-WIRRAL,2075727,13/05/2021,"2,127.50","Children, Families & Education",E5731,School Transport - Special,
ADVANCE SYSTEMS (NW) LIMITED,2078931,26/05/2021,"2,934.90","Children, Families & Education",H4020,Hired or Contracted services,
ADVANCE SYSTEMS (NW) LIMITED,2078931,26/05/2021,"4,709.00","Children, Families & Education",H4020,Hired or Contracted services,
ADVANCED CHILD CARE ASSESSMENTS LIMITED,2074438,10/05/2021,"1,862.80","Children, Families & Education",E7025,Care Provision,
ADVOCACY SERVICES NORTH EAST WALES LIMITED,2077363,18/05/2021,60.00,Adults Care and Health and Strategic Commissioning,S6211,Medical Service Provider,
AFC RAEBURN F C,231657,18/05/2021,213.00,Balance Sheet,00000,Debtors - Other Entities and Individuals,
AFTERCARE (NW) LIMITED,2080652,28/05/2021,"16,698.00","Children, Families & Education",E7080,Care Provision,
AFTERCARE THE NEXT STEP LIMITED,2074440,10/05/2021,"10,640.00",Adults Care and Health and Strategic Commissioning,S6121,Learning & Disability Support - Adults (18-64),
AFTERCARE THE NEXT STEP LIMITED,2078127,21/05/2021,"10,640.00",Adults Care and Health and Strategic Commissioning,S6121,Learning & Disability Support - Adults (18-64),
AGE CONCERN WIRRAL T/A AGE UK WIRRAL,2073323,04/05/2021,"4,039.60",Covid,H4100,Grants to Voluntary Organisations,
AGE CONCERN WIRRAL T/A AGE UK WIRRAL,2075728,13/05/2021,"4,700.00",Covid,H4153,Grants to Voluntary Organisations,
AGE CONCERN WIRRAL T/A AGE UK WIRRAL,2075062,11/05/2021,"2,316.00",Adults Care and Health and Strategic Commissioning,S6131,Memory & Cognition Support - Older People (65+),
AGE CONCERN WIRRAL T/A AGE UK WIRRAL,2075062,11/05/2021,600.00,Adults Care and Health and Strategic Commissioning,S6131,Memory & Cognition Support - Older People (65+),
AGE CONCERN WIRRAL T/A AGE UK WIRRAL,2075062,11/05/2021,"2,316.00",Adults Care and Health and Strategic Commissioning,S6131,Mental Health Support - Older People (65+),
AGE CONCERN WIRRAL T/A AGE UK WIRRAL,2075062,11/05/2021,600.00,Adults Care and Health and Strategic Commissioning,S6131,Mental Health Support - Older People (65+),
AGE CONCERN WIRRAL T/A AGE UK WIRRAL,2075062,11/05/2021,424.00,Adults Care and Health and Strategic Commissioning,S6131,Physical Support - Older People (65+),
AGE CONCERN WIRRAL T/A AGE UK WIRRAL,2075062,11/05/2021,"2,316.00",Adults Care and Health and Strategic Commissioning,S6131,Physical Support - Older People (65+),
AGE CONCERN WIRRAL T/A AGE UK WIRRAL,2075062,11/05/2021,500.00,Adults Care and Health and Strategic Commissioning,S6131,Physical Support - Older People (65+),
AGE CONCERN WIRRAL T/A AGE UK WIRRAL,2075062,11/05/2021,579.00,Adults Care and Health and Strategic Commissioning,S6131,Physical Support - Older People (65+),
AGE CONCERN WIRRAL T/A AGE UK WIRRAL,2075062,11/05/2021,"2,316.00",Adults Care and Health and Strategic Commissioning,S6132,Memory & Cognition Support - Older People (65+),
AGE CONCERN WIRRAL T/A AGE UK WIRRAL,2075062,11/05/2021,82.71,Adults Care and Health and Strategic Commissioning,S6141,Memory & Cognition Support - Older People (65+),
AGE CONCERN WIRRAL T/A AGE UK WIRRAL,2075062,11/05/2021,"1,240.71",Adults Care and Health and Strategic Commissioning,S6141,Physical Support - Older People (65+),
AGE CONCERN WIRRAL T/A AGE UK WIRRAL,2075062,11/05/2021,"2,316.00",Adults Care and Health and Strategic Commissioning,S6142,Memory & Cognition Support - Older People (65+),
AGE CONCERN WIRRAL T/A AGE UK WIRRAL,2075062,11/05/2021,"2,316.00",Adults Care and Health and Strategic Commissioning,S6142,Physical Support - Older People (65+),
AGE CONCERN WIRRAL T/A AGE UK WIRRAL,2075062,11/05/2021,"2,316.00",Adults Care and Health and Strategic Commissioning,S6161,Social Care Activities,
AGILYSIS LIMITED,2080450,27/05/2021,750.00,Neighbourhood Services,V1700,"Advertising, Publicity & Marketing",
ALAN JONES.,2073701,05/05/2021,365.40,Law & Governance (Monitoring Officer),A1305,Legal Service Provider,
ALD AUTOMOTIVE LIMITED,2080654,28/05/2021,375.00,Neighbourhood Services,T4020,"Equipment, Furniture & Materials",
ALD AUTOMOTIVE LIMITED,2078621,25/05/2021,332.32,Neighbourhood Services,T4020,"Equipment, Furniture & Materials",
ALD AUTOMOTIVE LIMITED,2078621,25/05/2021,387.50,Neighbourhood Services,T4020,"Equipment, Furniture & Materials",
ALD AUTOMOTIVE LIMITED,2078621,25/05/2021,383.16,Neighbourhood Services,T4020,"Equipment, Furniture & Materials",
ALD AUTOMOTIVE LIMITED,2080654,28/05/2021,370.80,Neighbourhood Services,T4020,"Equipment, Furniture & Materials",
ALD AUTOMOTIVE LIMITED,2080654,28/05/2021,321.60,Neighbourhood Services,T4020,"Equipment, Furniture & Materials",
ALEVE MEDICAL SERVICES LIMITED,2077367,18/05/2021,583.56,Adults Care and Health and Strategic Commissioning,S6211,Medical Service Provider,
ALINE MOBILITY,2080656,28/05/2021,"8,134.95",RE  Housing & Community Safety,C4117,Expenditure on Capital Grants,
ALINE MOBILITY,2076657,14/05/2021,"1,530.00",Neighbourhood Services,L3240,"Equipment, Furniture & Materials",
ALINE MOBILITY,2077109,17/05/2021,35.00,Adults Care and Health and Strategic Commissioning,S6134,"Equipment, Furniture & Materials",
ALINE MOBILITY,2077905,20/05/2021,35.00,Adults Care and Health and Strategic Commissioning,S6134,"Equipment, Furniture & Materials",
ALINE MOBILITY,2077905,20/05/2021,52.00,Adults Care and Health and Strategic Commissioning,S6134,"Equipment, Furniture & Materials",
ALINE MOBILITY,2078624,25/05/2021,579.00,Adults Care and Health and Strategic Commissioning,S6134,"Equipment, Furniture & Materials",
ALINE MOBILITY,2078624,25/05/2021,82.00,Adults Care and Health and Strategic Commissioning,S6134,"Equipment, Furniture & Materials",
ALINE MOBILITY,2077368,18/05/2021,588.64,Adults Care and Health and Strategic Commissioning,S6134,"Equipment, Furniture & Materials",
ALINE MOBILITY,2077109,17/05/2021,35.00,Adults Care and Health and Strategic Commissioning,S6134,"Equipment, Furniture & Materials",
ALINE MOBILITY,2075487,12/05/2021,70.00,Adults Care and Health and Strategic Commissioning,S6134,"Equipment, Furniture & Materials",
ALINE MOBILITY,2080451,27/05/2021,70.00,Adults Care and Health and Strategic Commissioning,S6134,"Equipment, Furniture & Materials",
ALINE MOBILITY,2077905,20/05/2021,39.35,Adults Care and Health and Strategic Commissioning,S6136,"Repairs, alterations and maintenance",
ALISON BURBAGE,2075063,11/05/2021,500.00,"Children, Families & Education",E2030,Consultants,
ALLANDALE CARE HOMES LIMITED,2075064,11/05/2021,"1,936.00",Adults Care and Health and Strategic Commissioning,S6131,Memory & Cognition Support - Older People (65+),
ALLANDALE CARE HOMES LIMITED,2075064,11/05/2021,"1,086.24",Adults Care and Health and Strategic Commissioning,S6131,Memory & Cognition Support - Older People (65+),
ALLANDALE CARE HOMES LIMITED,2075064,11/05/2021,-484.00,Adults Care and Health and Strategic Commissioning,S6131,Physical Support - Older People (65+),
ALLANDALE CARE HOMES LIMITED,2075064,11/05/2021,"-1,175.43",Adults Care and Health and Strategic Commissioning,S6131,Physical Support - Older People (65+),
ALLANDALE CARE HOMES LIMITED,2075065,11/05/2021,138.29,Adults Care and Health and Strategic Commissioning,S6131,Physical Support - Older People (65+),
ALLANDALE CARE HOMES LIMITED,2075065,11/05/2021,-207.43,Adults Care and Health and Strategic Commissioning,S6131,Physical Support - Older People (65+),
ALLANDALE CARE HOMES LIMITED,2075065,11/05/2021,"1,936.00",Adults Care and Health and Strategic Commissioning,S6131,Physical Support - Older People (65+),
ALLANDALE CARE HOMES LIMITED,2075065,11/05/2021,"1,220.00",Adults Care and Health and Strategic Commissioning,S6141,Physical Support - Older People (65+),
ALLANDALE CARE HOMES LIMITED,2075065,11/05/2021,"1,936.00",Adults Care and Health and Strategic Commissioning,S6141,Physical Support - Older People (65+),
ALLIANCE LEISURE SERVICES LIMITED,2074230,07/05/2021,100.00,Neighbourhood Services,L1040,"Advertising, Publicity & Marketing",
ALLIANCE UK LIMITED,2074231,07/05/2021,950.00,Neighbourhood Services,L3950,"Repairs, alterations and maintenance",
ALLIANCE UK LIMITED,2074231,07/05/2021,330.00,Neighbourhood Services,L3950,"Repairs, alterations and maintenance",
ALLIED HEALTHCARE-SERVICES LIMITED,2078961,26/05/2021,"60,878.56",Adults Care and Health and Strategic Commissioning,S6142,Physical Support - Adults (18-64),
ALLIED PUBLICITY SERVICES (MANCHESTER) LIMITED,2078626,25/05/2021,"1,133.29",Resources,F1120,Hired or Contracted services,
ALLISON ATHILL(CHILDMINDER),2080657,28/05/2021,202.80,"Children, Families & Education",E1170,Services,
ALLISON ATHILL(CHILDMINDER),2080657,28/05/2021,165.75,"Children, Families & Education",E1170,Services,
ALLPAY LIMITED,2080658,28/05/2021,"9,982.94",Covid,H4092,Grants to Voluntary Organisations,
ALLPAY LIMITED,2076658,14/05/2021,39.27,Covid,H4092,Grants to Voluntary Organisations,
ALPHA (RSL) LTD,2074232,07/05/2021,"280,933.60",RE  Housing & Community Safety,C4118,Expenditure on Capital Grants,
ALPHA (RSL) LTD,2077369,18/05/2021,596.33,Regeneration & Place,H6080,Expenses,
ALPHA (RSL) LTD,2078627,25/05/2021,196.85,Regeneration & Place,H7180,Grants Paid,
ALPHA (RSL) LTD,2078627,25/05/2021,274.34,Regeneration & Place,H7180,Grants Paid,
ALPHA (RSL) LTD,2078627,25/05/2021,220.54,Regeneration & Place,H7180,Grants Paid,
ALPHA (RSL) LTD,2078627,25/05/2021,486.50,Regeneration & Place,H7180,Grants Paid,
ALPHA (RSL) LTD,2078627,25/05/2021,262.32,Regeneration & Place,H7180,Grants Paid,
ALPHA (RSL) LTD,2078627,25/05/2021,73.30,Regeneration & Place,H7180,Grants Paid,
ALPHA (RSL) LTD,2078627,25/05/2021,651.28,Regeneration & Place,H7180,Grants Paid,
ALPHA (RSL) LTD,2078627,25/05/2021,102.56,Regeneration & Place,H7180,Grants Paid,
ALPHA (RSL) LTD,2078627,25/05/2021,218.73,Regeneration & Place,H7180,Grants Paid,
ALPHA (RSL) LTD,2078627,25/05/2021,176.29,Regeneration & Place,H7180,Grants Paid,
ALPHA BIOLABORATORIES LEGAL LIMITED,2075489,12/05/2021,392.99,Law & Governance (Monitoring Officer),A1305,Legal Service Provider,
ALPHA BIOLABORATORIES LEGAL LIMITED,2075489,12/05/2021,574.66,Law & Governance (Monitoring Officer),A1305,Legal Service Provider,
ALPHA BIOLABORATORIES LEGAL LIMITED,2075066,11/05/2021,77.50,Law & Governance (Monitoring Officer),A1305,Legal Service Provider,
ALPHA BIOLABORATORIES LEGAL LIMITED,2076659,14/05/2021,70.83,Law & Governance (Monitoring Officer),A1305,Legal Service Provider,
ALPHA PLUS FOSTERING LIMITED,2080659,28/05/2021,"5,073.00","Children, Families & Education",E7080,Care Provision,
ALPHABET (GB) LIMITED,2073964,06/05/2021,497.70,Resources,X7105,Car Leasing,40.36
ALPHABET (GB) LIMITED,2073964,06/05/2021,361.45,Resources,X7105,Car Leasing,
ALPHABET (GB) LIMITED,2073964,06/05/2021,543.16,Resources,X7105,Car Leasing,44.05
ALPHABIOLABORATORIES LIMITED,2075067,11/05/2021,431.00,Law & Governance (Monitoring Officer),A1305,Legal Service Provider,
ALPHABIOLABORATORIES LIMITED,2078628,25/05/2021,456.00,Law & Governance (Monitoring Officer),A1305,Legal Service Provider,
ALTERNATIVE APPROACH,2077650,19/05/2021,"1,363.17","Children, Families & Education",E7080,Care Provision,
ALTERNATIVE APPROACH,2080660,28/05/2021,"5,848.50","Children, Families & Education",E7080,Care Provision,
ALTERNATIVE APPROACH,2080660,28/05/2021,"7,443.54","Children, Families & Education",E7080,Care Provision,
ALTERNATIVE APPROACH,2080660,28/05/2021,"2,658.41","Children, Families & Education",E7080,Care Provision,
ALTERNATIVE APPROACH,2080660,28/05/2021,"4,818.80","Children, Families & Education",E7080,Care Provision,
ALTERNATIVE APPROACH,2073327,04/05/2021,"3,342.42","Children, Families & Education",E7080,Contributions,
ALTERNATIVE APPROACH,2073327,04/05/2021,"3,342.42","Children, Families & Education",E7080,Contributions,
ALTERNATIVE APPROACH,2073327,04/05/2021,"3,342.42","Children, Families & Education",E7080,Contributions,
ALTERNATIVE APPROACH,2073327,04/05/2021,"3,342.42","Children, Families & Education",E7080,Contributions,
ALTERNATIVE APPROACH,2073327,04/05/2021,"1,935.54","Children, Families & Education",E7080,Contributions,
ALTERNATIVE APPROACH,2077908,20/05/2021,691.26,"Children, Families & Education",E7080,Contributions,
ALTERNATIVE APPROACH,2077908,20/05/2021,"1,193.72","Children, Families & Education",E7080,Contributions,
ALTERNATIVE APPROACH,2077908,20/05/2021,"1,193.72","Children, Families & Education",E7080,Contributions,
ALTERNATIVE APPROACH,2077908,20/05/2021,"1,193.72","Children, Families & Education",E7080,Contributions,
ALTERNATIVE APPROACH,2077908,20/05/2021,"1,193.72","Children, Families & Education",E7080,Contributions,
ALTERNATIVE FUTURES LTD,2078962,26/05/2021,"422,628.91",Adults Care and Health and Strategic Commissioning,S6121,Learning & Disability Support - Adults (18-64),
AMBER BUTTON COMMUNITY CIC,2073966,06/05/2021,"3,871.00",Covid,H4100,Grants to Voluntary Organisations,
AMBER BUTTON COMMUNITY CIC,2075070,11/05/2021,"1,950.00","Children, Families & Education",E6150,Hired or Contracted services,
AMEY OW LIMITED,2075071,11/05/2021,422.16,RE  Environment & Regulation,C5112,Contractors - Main,
AMEY OW LIMITED,2078131,21/05/2021,"11,761.44",RE  Environment & Regulation,C5253,Contractors - Main,
AMEY OW LIMITED,2078131,21/05/2021,422.16,Regeneration & Place,V1070,Services,
AMEY OW LIMITED,2078131,21/05/2021,"13,040.58",Neighbourhood Services,V1100,Consultants,
AMY BUTTERWORTH T/A MAKE IT HAPPEN BIRKENHEAD,2075753,13/05/2021,"5,000.00",Covid,H4153,Grants to Voluntary Organisations,
AMY CHRISTINA FLYNN,2073706,05/05/2021,"1,000.00",Neighbourhood Services,H3130,APT&C,
AMY CHRISTINA FLYNN,2073706,05/05/2021,821.02,Neighbourhood Services,H3130,APT&C,
AMY ROBINSON-CHILDMINDER,2080662,28/05/2021,329.94,"Children, Families & Education",E1170,Services,
AMY ROBINSON-CHILDMINDER,2080662,28/05/2021,164.97,"Children, Families & Education",E1170,Services,
AMY'S CHILDMINDING - AMY BRENNAN,2080663,28/05/2021,326.04,"Children, Families & Education",E1170,Services,
AMY'S CHILDMINDING SERVICES-AMY DINSDALE,2080664,28/05/2021,329.94,"Children, Families & Education",E1170,Services,
ANCHOR CARE HOMES LIMITED (HURST PARK COURT),2075072,11/05/2021,"1,383.90",Adults Care and Health and Strategic Commissioning,S6142,Memory & Cognition Support - Older People (65+),
ANCHOR CARE HOMES LIMITED (HURST PARK COURT),2075072,11/05/2021,461.30,Adults Care and Health and Strategic Commissioning,S6142,Memory & Cognition Support - Older People (65+),
ANCHOR CAREHOMES GROUP LIMITED,2075073,11/05/2021,"2,160.00",Adults Care and Health and Strategic Commissioning,S6131,Memory & Cognition Support - Older People (65+),
ANCHOR CAREHOMES GROUP LIMITED,2075074,11/05/2021,"1,936.00",Adults Care and Health and Strategic Commissioning,S6131,Physical Support - Older People (65+),
ANCHOR CAREHOMES GROUP LIMITED,2075074,11/05/2021,"1,936.00",Adults Care and Health and Strategic Commissioning,S6131,Physical Support - Older People (65+),
ANCHOR CAREHOMES GROUP LIMITED,2075073,11/05/2021,"2,160.00",Adults Care and Health and Strategic Commissioning,S6132,Memory & Cognition Support - Older People (65+),
ANCHOR CAREHOMES GROUP LIMITED,2075073,11/05/2021,"2,160.00",Adults Care and Health and Strategic Commissioning,S6132,Memory & Cognition Support - Older People (65+),
ANCHOR CAREHOMES GROUP LIMITED,2075073,11/05/2021,"2,160.00",Adults Care and Health and Strategic Commissioning,S6132,Memory & Cognition Support - Older People (65+),
ANCHOR CAREHOMES GROUP LIMITED,2075073,11/05/2021,240.00,Adults Care and Health and Strategic Commissioning,S6132,Memory & Cognition Support - Older People (65+),
ANCHOR CAREHOMES GROUP LIMITED,2075073,11/05/2021,"2,160.00",Adults Care and Health and Strategic Commissioning,S6132,Memory & Cognition Support - Older People (65+),
ANCHOR CAREHOMES GROUP LIMITED,2075073,11/05/2021,"1,936.00",Adults Care and Health and Strategic Commissioning,S6132,Memory & Cognition Support - Older People (65+),
ANCHOR CAREHOMES GROUP LIMITED,2075073,11/05/2021,220.00,Adults Care and Health and Strategic Commissioning,S6132,Memory & Cognition Support - Older People (65+),
ANCHOR CAREHOMES GROUP LIMITED,2075073,11/05/2021,"2,160.00",Adults Care and Health and Strategic Commissioning,S6132,Mental Health Support - Older People (65+),
ANCHOR CAREHOMES GROUP LIMITED,2075073,11/05/2021,"1,936.00",Adults Care and Health and Strategic Commissioning,S6132,Mental Health Support - Older People (65+),
ANCHOR CAREHOMES GROUP LIMITED,2075073,11/05/2021,240.00,Adults Care and Health and Strategic Commissioning,S6132,Mental Health Support - Older People (65+),
ANCHOR CAREHOMES GROUP LIMITED,2075073,11/05/2021,"2,160.00",Adults Care and Health and Strategic Commissioning,S6132,Mental Health Support - Older People (65+),
ANCHOR CAREHOMES GROUP LIMITED,2075074,11/05/2021,"1,936.00",Adults Care and Health and Strategic Commissioning,S6132,Physical Support - Older People (65+),
ANCHOR CAREHOMES GROUP LIMITED,2075073,11/05/2021,"2,160.00",Adults Care and Health and Strategic Commissioning,S6132,Physical Support - Older People (65+),
ANCHOR CAREHOMES GROUP LIMITED,2075073,11/05/2021,"2,160.00",Adults Care and Health and Strategic Commissioning,S6132,Physical Support - Older People (65+),
ANCHOR CAREHOMES GROUP LIMITED,2075073,11/05/2021,240.00,Adults Care and Health and Strategic Commissioning,S6132,Physical Support - Older People (65+),
ANCHOR CAREHOMES GROUP LIMITED,2075073,11/05/2021,"1,936.00",Adults Care and Health and Strategic Commissioning,S6132,Physical Support - Older People (65+),
ANCHOR CAREHOMES GROUP LIMITED,2075073,11/05/2021,"2,160.00",Adults Care and Health and Strategic Commissioning,S6132,Physical Support - Older People (65+),
ANCHOR CAREHOMES GROUP LIMITED,2075073,11/05/2021,"2,160.00",Adults Care and Health and Strategic Commissioning,S6132,Physical Support - Older People (65+),
ANCHOR CAREHOMES GROUP LIMITED,2075073,11/05/2021,"2,160.00",Adults Care and Health and Strategic Commissioning,S6132,Physical Support - Older People (65+),
ANCHOR CAREHOMES GROUP LIMITED,2075073,11/05/2021,"2,160.00",Adults Care and Health and Strategic Commissioning,S6132,Physical Support - Older People (65+),
ANCHOR CAREHOMES GROUP LIMITED,2075073,11/05/2021,"1,936.00",Adults Care and Health and Strategic Commissioning,S6132,Physical Support - Older People (65+),
ANCHOR CAREHOMES GROUP LIMITED,2075073,11/05/2021,220.00,Adults Care and Health and Strategic Commissioning,S6132,Physical Support - Older People (65+),
ANCHOR CAREHOMES GROUP LIMITED,2075073,11/05/2021,231.43,Adults Care and Health and Strategic Commissioning,S6132,Physical Support - Older People (65+),
ANCHOR CAREHOMES GROUP LIMITED,2075073,11/05/2021,"1,936.00",Adults Care and Health and Strategic Commissioning,S6132,Physical Support - Older People (65+),
ANCHOR CAREHOMES GROUP LIMITED,2075073,11/05/2021,240.00,Adults Care and Health and Strategic Commissioning,S6132,Social Care Activities,
ANCHOR CAREHOMES GROUP LIMITED,2075073,11/05/2021,"2,160.00",Adults Care and Health and Strategic Commissioning,S6132,Social Care Activities,
ANCHOR CAREHOMES GROUP LIMITED,2075074,11/05/2021,"1,936.00",Adults Care and Health and Strategic Commissioning,S6141,Memory & Cognition Support - Older People (65+),
ANCHOR CAREHOMES GROUP LIMITED,2075074,11/05/2021,400.00,Adults Care and Health and Strategic Commissioning,S6141,Memory & Cognition Support - Older People (65+),
ANCHOR CAREHOMES GROUP LIMITED,2075073,11/05/2021,240.00,Adults Care and Health and Strategic Commissioning,S6141,Memory & Cognition Support - Older People (65+),
ANCHOR CAREHOMES GROUP LIMITED,2075073,11/05/2021,"2,160.00",Adults Care and Health and Strategic Commissioning,S6141,Memory & Cognition Support - Older People (65+),
ANCHOR CAREHOMES GROUP LIMITED,2075073,11/05/2021,"2,160.00",Adults Care and Health and Strategic Commissioning,S6141,Mental Health Support - Older People (65+),
ANCHOR CAREHOMES GROUP LIMITED,2075073,11/05/2021,240.00,Adults Care and Health and Strategic Commissioning,S6141,Mental Health Support - Older People (65+),
ANCHOR CAREHOMES GROUP LIMITED,2075074,11/05/2021,"1,936.00",Adults Care and Health and Strategic Commissioning,S6141,Physical Support - Older People (65+),
ANCHOR CAREHOMES GROUP LIMITED,2075074,11/05/2021,400.00,Adults Care and Health and Strategic Commissioning,S6141,Physical Support - Older People (65+),
ANCHOR CAREHOMES GROUP LIMITED,2075074,11/05/2021,"1,936.00",Adults Care and Health and Strategic Commissioning,S6141,Physical Support - Older People (65+),
ANCHOR CAREHOMES GROUP LIMITED,2075074,11/05/2021,320.00,Adults Care and Health and Strategic Commissioning,S6141,Physical Support - Older People (65+),
ANCHOR CAREHOMES GROUP LIMITED,2075074,11/05/2021,"1,936.00",Adults Care and Health and Strategic Commissioning,S6141,Physical Support - Older People (65+),
ANCHOR CAREHOMES GROUP LIMITED,2075074,11/05/2021,"1,936.00",Adults Care and Health and Strategic Commissioning,S6141,Physical Support - Older People (65+),
ANCHOR CAREHOMES GROUP LIMITED,2075074,11/05/2021,"1,936.00",Adults Care and Health and Strategic Commissioning,S6141,Physical Support - Older People (65+),
ANCHOR CAREHOMES GROUP LIMITED,2075074,11/05/2021,"1,936.00",Adults Care and Health and Strategic Commissioning,S6141,Physical Support - Older People (65+),
ANCHOR CAREHOMES GROUP LIMITED,2075074,11/05/2021,"1,936.00",Adults Care and Health and Strategic Commissioning,S6141,Physical Support - Older People (65+),
ANCHOR CAREHOMES GROUP LIMITED,2075074,11/05/2021,"1,936.00",Adults Care and Health and Strategic Commissioning,S6141,Physical Support - Older People (65+),
ANCHOR CAREHOMES GROUP LIMITED,2075074,11/05/2021,"1,936.00",Adults Care and Health and Strategic Commissioning,S6141,Physical Support - Older People (65+),
ANCHOR CAREHOMES GROUP LIMITED,2075074,11/05/2021,"1,936.00",Adults Care and Health and Strategic Commissioning,S6141,Physical Support - Older People (65+),
ANCHOR CAREHOMES GROUP LIMITED,2075074,11/05/2021,"1,244.00",Adults Care and Health and Strategic Commissioning,S6141,Physical Support - Older People (65+),
ANCHOR CAREHOMES GROUP LIMITED,2075074,11/05/2021,"1,936.00",Adults Care and Health and Strategic Commissioning,S6141,Physical Support - Older People (65+),
ANCHOR CAREHOMES GROUP LIMITED,2075074,11/05/2021,400.00,Adults Care and Health and Strategic Commissioning,S6141,Physical Support - Older People (65+),
ANCHOR CAREHOMES GROUP LIMITED,2075074,11/05/2021,"1,936.00",Adults Care and Health and Strategic Commissioning,S6141,Physical Support - Older People (65+),
ANCHOR CAREHOMES GROUP LIMITED,2075074,11/05/2021,"1,936.00",Adults Care and Health and Strategic Commissioning,S6141,Physical Support - Older People (65+),
ANCHOR CAREHOMES GROUP LIMITED,2075074,11/05/2021,400.00,Adults Care and Health and Strategic Commissioning,S6141,Physical Support - Older People (65+),
ANCHOR CAREHOMES GROUP LIMITED,2075074,11/05/2021,"1,936.00",Adults Care and Health and Strategic Commissioning,S6141,Physical Support - Older People (65+),
ANCHOR CAREHOMES GROUP LIMITED,2075074,11/05/2021,"1,196.00",Adults Care and Health and Strategic Commissioning,S6141,Physical Support - Older People (65+),
ANCHOR CAREHOMES GROUP LIMITED,2075074,11/05/2021,"1,936.00",Adults Care and Health and Strategic Commissioning,S6141,Physical Support - Older People (65+),
ANCHOR CAREHOMES GROUP LIMITED,2075074,11/05/2021,"1,936.00",Adults Care and Health and Strategic Commissioning,S6142,Memory & Cognition Support - Older People (65+),
ANCHOR CAREHOMES GROUP LIMITED,2075073,11/05/2021,"2,160.00",Adults Care and Health and Strategic Commissioning,S6142,Memory & Cognition Support - Older People (65+),
ANCHOR CAREHOMES GROUP LIMITED,2075073,11/05/2021,"2,160.00",Adults Care and Health and Strategic Commissioning,S6142,Memory & Cognition Support - Older People (65+),
ANCHOR CAREHOMES GROUP LIMITED,2075073,11/05/2021,240.00,Adults Care and Health and Strategic Commissioning,S6142,Memory & Cognition Support - Older People (65+),
ANCHOR CAREHOMES GROUP LIMITED,2075073,11/05/2021,"2,160.00",Adults Care and Health and Strategic Commissioning,S6142,Mental Health Support - Older People (65+),
ANCHOR CAREHOMES GROUP LIMITED,2075073,11/05/2021,540.00,Adults Care and Health and Strategic Commissioning,S6142,Physical Support - Adults (18-64),
ANCHOR CAREHOMES GROUP LIMITED,2075074,11/05/2021,"1,196.00",Adults Care and Health and Strategic Commissioning,S6142,Physical Support - Older People (65+),
ANCHOR CAREHOMES GROUP LIMITED,2075074,11/05/2021,"1,936.00",Adults Care and Health and Strategic Commissioning,S6142,Physical Support - Older People (65+),
ANCHOR CAREHOMES GROUP LIMITED,2075074,11/05/2021,"1,244.57",Adults Care and Health and Strategic Commissioning,S6142,Physical Support - Older People (65+),
ANCHOR CAREHOMES GROUP LIMITED,2075073,11/05/2021,"2,160.00",Adults Care and Health and Strategic Commissioning,S6142,Physical Support - Older People (65+),
ANCHOR CAREHOMES GROUP LIMITED,2075073,11/05/2021,"2,160.00",Adults Care and Health and Strategic Commissioning,S6142,Physical Support - Older People (65+),
ANCHOR CAREHOMES GROUP LIMITED,2075073,11/05/2021,200.00,Adults Care and Health and Strategic Commissioning,S6142,Physical Support - Older People (65+),
ANCHOR CAREHOMES GROUP LIMITED,2075073,11/05/2021,"2,160.00",Adults Care and Health and Strategic Commissioning,S6142,Physical Support - Older People (65+),
ANCHOR CAREHOMES GROUP LIMITED,2075073,11/05/2021,200.00,Adults Care and Health and Strategic Commissioning,S6142,Physical Support - Older People (65+),
ANCHOR CAREHOMES GROUP LIMITED,2075073,11/05/2021,"2,160.00",Adults Care and Health and Strategic Commissioning,S6166,Mental Health Support - Adults (18-64),
ANCHOR CAREHOMES GROUP LIMITED,2075073,11/05/2021,"2,160.00",Adults Care and Health and Strategic Commissioning,S6167,Mental Health Support - Older People (65+),
ANCHOR CAREHOMES GROUP LIMITED,2075073,11/05/2021,"2,160.00",Adults Care and Health and Strategic Commissioning,S6167,Physical Support - Older People (65+),
ANCHOR CAREHOMES GROUP LIMITED,2075073,11/05/2021,"2,160.00",Adults Care and Health and Strategic Commissioning,S6167,Physical Support - Older People (65+),
ANCHOR TRUST                  *001,2075075,11/05/2021,"1,590.29",Adults Care and Health and Strategic Commissioning,S6141,Physical Support - Older People (65+),
ANCHOR TRUST                  *001,2075075,11/05/2021,213.57,Adults Care and Health and Strategic Commissioning,S6141,Physical Support - Older People (65+),
ANCHOR TRUST                  *001,2075075,11/05/2021,"1,936.00",Adults Care and Health and Strategic Commissioning,S6141,Physical Support - Older People (65+),
ANCHOR TRUST                  *001,2075075,11/05/2021,320.00,Adults Care and Health and Strategic Commissioning,S6141,Physical Support - Older People (65+),
ANCHOR TRUST                  *001,2075075,11/05/2021,"1,936.00",Adults Care and Health and Strategic Commissioning,S6142,Memory & Cognition Support - Older People (65+),
ANCHOR TRUST                  *001,2075075,11/05/2021,200.00,Adults Care and Health and Strategic Commissioning,S6142,Memory & Cognition Support - Older People (65+),
ANCHOR TRUST                  *001,2075075,11/05/2021,"1,936.00",Adults Care and Health and Strategic Commissioning,S6142,Physical Support - Older People (65+),
ANCHOR TRUST                  *001,2075075,11/05/2021,"1,936.00",Adults Care and Health and Strategic Commissioning,S6142,Physical Support - Older People (65+),
ANCHOR TRUST                  *001,2075075,11/05/2021,400.00,Adults Care and Health and Strategic Commissioning,S6142,Physical Support - Older People (65+),
ANCHOR TRUST                  *001,2075075,11/05/2021,"1,244.57",Adults Care and Health and Strategic Commissioning,S6142,Physical Support - Older People (65+),
ANCHOR TRUST                  *001,2075075,11/05/2021,"1,936.00",Adults Care and Health and Strategic Commissioning,S6142,Physical Support - Older People (65+),
ANCHOR TRUST                  *001,2075075,11/05/2021,"1,936.00",Adults Care and Health and Strategic Commissioning,S6142,Physical Support - Older People (65+),
ANCHOR TRUST                  *001,2075075,11/05/2021,"2,160.00",Adults Care and Health and Strategic Commissioning,S6142,Physical Support - Older People (65+),
ANCHOR TRUST                  *001,2075075,11/05/2021,260.00,Adults Care and Health and Strategic Commissioning,S6142,Physical Support - Older People (65+),
ANCHOR TRUST                  *001,2075075,11/05/2021,"1,936.00",Adults Care and Health and Strategic Commissioning,S6142,Physical Support - Older People (65+),
ANCHOR TRUST                  *001,2075075,11/05/2021,"1,936.00",Adults Care and Health and Strategic Commissioning,S6142,Physical Support - Older People (65+),
ANCHOR TRUST                  *001,2075075,11/05/2021,"1,936.00",Adults Care and Health and Strategic Commissioning,S6142,Physical Support - Older People (65+),
ANCHOR TRUST                  *001,2075075,11/05/2021,200.00,Adults Care and Health and Strategic Commissioning,S6142,Physical Support - Older People (65+),
ANCHOR TRUST                  *001,2075075,11/05/2021,69.14,Adults Care and Health and Strategic Commissioning,S6142,Physical Support - Older People (65+),
ANCHOR TRUST                  *001,2075075,11/05/2021,"1,936.00",Adults Care and Health and Strategic Commissioning,S6167,Mental Health Support - Older People (65+),
ANCHOR TRUST                  *001,2075075,11/05/2021,"1,936.00",Adults Care and Health and Strategic Commissioning,S6167,Physical Support - Older People (65+),
ANCHOR TRUST                  *002,2078631,25/05/2021,122.08,Regeneration & Place,H7180,Grants Paid,
ANCHOR TRUST                  *002,2078631,25/05/2021,113.10,Regeneration & Place,H7180,Grants Paid,
ANCHOR TRUST                  *002,2078631,25/05/2021,149.85,Regeneration & Place,H7180,Grants Paid,
ANCHOR TRUST                  *002,2078631,25/05/2021,219.18,Regeneration & Place,H7180,Grants Paid,
ANCHOR TRUST                  *002,2078631,25/05/2021,514.89,Regeneration & Place,H7180,Grants Paid,
ANCHOR TRUST                  *002,2078631,25/05/2021,601.19,Regeneration & Place,H7180,Grants Paid,
ANCHOR TRUST HOMES,2075076,11/05/2021,"1,936.00",Adults Care and Health and Strategic Commissioning,S6131,Memory & Cognition Support - Older People (65+),
ANCHOR TRUST HOMES,2075076,11/05/2021,"1,936.00",Adults Care and Health and Strategic Commissioning,S6131,Physical Support - Older People (65+),
ANCHOR TRUST HOMES,2075076,11/05/2021,320.00,Adults Care and Health and Strategic Commissioning,S6131,Physical Support - Older People (65+),
ANCHOR TRUST HOMES,2075076,11/05/2021,-69.14,Adults Care and Health and Strategic Commissioning,S6131,Physical Support - Older People (65+),
ANCHOR TRUST HOMES,2075076,11/05/2021,"-1,936.00",Adults Care and Health and Strategic Commissioning,S6131,Physical Support - Older People (65+),
ANCHOR TRUST HOMES,2075076,11/05/2021,-484.00,Adults Care and Health and Strategic Commissioning,S6131,Physical Support - Older People (65+),
ANCHOR TRUST HOMES,2075076,11/05/2021,"-1,452.00",Adults Care and Health and Strategic Commissioning,S6131,Physical Support - Older People (65+),
ANCHOR TRUST HOMES,2075076,11/05/2021,"-1,039.29",Adults Care and Health and Strategic Commissioning,S6131,Physical Support - Older People (65+),
ANCHOR TRUST HOMES,2075076,11/05/2021,"-1,728.57",Adults Care and Health and Strategic Commissioning,S6131,Physical Support - Older People (65+),
ANCHOR TRUST HOMES,2075076,11/05/2021,"-1,936.00",Adults Care and Health and Strategic Commissioning,S6131,Physical Support - Older People (65+),
ANCHOR TRUST HOMES,2075076,11/05/2021,"-1,164.00",Adults Care and Health and Strategic Commissioning,S6131,Physical Support - Older People (65+),
ANCHOR TRUST HOMES,2075076,11/05/2021,"-1,452.00",Adults Care and Health and Strategic Commissioning,S6131,Physical Support - Older People (65+),
ANCHOR TRUST HOMES,2075076,11/05/2021,-873.00,Adults Care and Health and Strategic Commissioning,S6131,Physical Support - Older People (65+),
ANCHOR TRUST HOMES,2075076,11/05/2021,-484.00,Adults Care and Health and Strategic Commissioning,S6131,Physical Support - Older People (65+),
ANCHOR TRUST HOMES,2075076,11/05/2021,-291.00,Adults Care and Health and Strategic Commissioning,S6131,Physical Support - Older People (65+),
ANCHOR TRUST HOMES,2075076,11/05/2021,"1,936.00",Adults Care and Health and Strategic Commissioning,S6132,Mental Health Support - Older People (65+),
ANCHOR TRUST HOMES,2075076,11/05/2021,"1,936.00",Adults Care and Health and Strategic Commissioning,S6132,Mental Health Support - Older People (65+),
ANCHOR TRUST HOMES,2075076,11/05/2021,"1,808.00",Adults Care and Health and Strategic Commissioning,S6132,Mental Health Support - Older People (65+),
ANCHOR TRUST HOMES,2075076,11/05/2021,"1,936.00",Adults Care and Health and Strategic Commissioning,S6132,Physical Support - Older People (65+),
ANCHOR TRUST HOMES,2075076,11/05/2021,"1,936.00",Adults Care and Health and Strategic Commissioning,S6132,Physical Support - Older People (65+),
ANCHOR TRUST HOMES,2075076,11/05/2021,"1,936.00",Adults Care and Health and Strategic Commissioning,S6132,Physical Support - Older People (65+),
ANCHOR TRUST HOMES,2075076,11/05/2021,"1,936.00",Adults Care and Health and Strategic Commissioning,S6132,Physical Support - Older People (65+),
ANCHOR TRUST HOMES,2075076,11/05/2021,200.00,Adults Care and Health and Strategic Commissioning,S6132,Physical Support - Older People (65+),
ANCHOR TRUST HOMES,2075076,11/05/2021,"1,936.00",Adults Care and Health and Strategic Commissioning,S6132,Physical Support - Older People (65+),
ANCHOR TRUST HOMES,2075076,11/05/2021,"1,936.00",Adults Care and Health and Strategic Commissioning,S6132,Physical Support - Older People (65+),
ANCHOR TRUST HOMES,2075076,11/05/2021,"1,936.00",Adults Care and Health and Strategic Commissioning,S6132,Physical Support - Older People (65+),
ANCHOR TRUST HOMES,2075076,11/05/2021,"1,936.00",Adults Care and Health and Strategic Commissioning,S6141,Memory & Cognition Support - Older People (65+),
ANCHOR TRUST HOMES,2075076,11/05/2021,-622.29,Adults Care and Health and Strategic Commissioning,S6141,Mental Health Support - Older People (65+),
ANCHOR TRUST HOMES,2075076,11/05/2021,"-1,936.00",Adults Care and Health and Strategic Commissioning,S6141,Mental Health Support - Older People (65+),
ANCHOR TRUST HOMES,2075076,11/05/2021,"-1,452.00",Adults Care and Health and Strategic Commissioning,S6141,Mental Health Support - Older People (65+),
ANCHOR TRUST HOMES,2075076,11/05/2021,-484.00,Adults Care and Health and Strategic Commissioning,S6141,Mental Health Support - Older People (65+),
ANCHOR TRUST HOMES,2075076,11/05/2021,"1,936.00",Adults Care and Health and Strategic Commissioning,S6141,Physical Support - Older People (65+),
ANCHOR TRUST HOMES,2075076,11/05/2021,997.71,Adults Care and Health and Strategic Commissioning,S6141,Physical Support - Older People (65+),
ANCHOR TRUST HOMES,2075076,11/05/2021,"1,659.43",Adults Care and Health and Strategic Commissioning,S6141,Physical Support - Older People (65+),
ANCHOR TRUST HOMES,2075076,11/05/2021,"1,164.00",Adults Care and Health and Strategic Commissioning,S6141,Physical Support - Older People (65+),
ANCHOR TRUST HOMES,2075076,11/05/2021,"1,936.00",Adults Care and Health and Strategic Commissioning,S6141,Physical Support - Older People (65+),
ANCHOR TRUST HOMES,2075076,11/05/2021,291.00,Adults Care and Health and Strategic Commissioning,S6141,Physical Support - Older People (65+),
ANCHOR TRUST HOMES,2075076,11/05/2021,873.00,Adults Care and Health and Strategic Commissioning,S6141,Physical Support - Older People (65+),
ANCHOR TRUST HOMES,2075076,11/05/2021,484.00,Adults Care and Health and Strategic Commissioning,S6141,Physical Support - Older People (65+),
ANCHOR TRUST HOMES,2075076,11/05/2021,"1,452.00",Adults Care and Health and Strategic Commissioning,S6141,Physical Support - Older People (65+),
ANCHOR TRUST HOMES,2075076,11/05/2021,"1,164.00",Adults Care and Health and Strategic Commissioning,S6141,Physical Support - Older People (65+),
ANCHOR TRUST HOMES,2075076,11/05/2021,"1,936.00",Adults Care and Health and Strategic Commissioning,S6141,Physical Support - Older People (65+),
ANCHOR TRUST HOMES,2075076,11/05/2021,"1,936.00",Adults Care and Health and Strategic Commissioning,S6142,Physical Support - Older People (65+),
ANCHOR TRUST HOMES,2075076,11/05/2021,"1,936.00",Adults Care and Health and Strategic Commissioning,S6166,Mental Health Support - Older People (65+),
ANCHOR TRUST HOMES,2075076,11/05/2021,"1,936.00",Adults Care and Health and Strategic Commissioning,S6167,Physical Support - Older People (65+),
ANDREW HAGGIS,2073708,05/05/2021,400.00,Law & Governance (Monitoring Officer),A1305,Legal Service Provider,
ANDREW HAGGIS,2077653,19/05/2021,450.00,Law & Governance (Monitoring Officer),A1305,Legal Service Provider,
ANDREW HAGGIS,2077653,19/05/2021,250.00,Law & Governance (Monitoring Officer),A1305,Legal Service Provider,
ANDREW HAGGIS,2077653,19/05/2021,350.00,Law & Governance (Monitoring Officer),A1305,Legal Service Provider,
ANGELS CARE WIRRAL LIMITED,2073333,04/05/2021,348.00,Adults Care and Health and Strategic Commissioning,S6141,Physical Support - Adults (18-64),
ANGELS CARE WIRRAL LIMITED,2078632,25/05/2021,348.00,Adults Care and Health and Strategic Commissioning,S6141,Physical Support - Adults (18-64),
ANNA'S LITTLE ANGELS - ANNA COOK,2080670,28/05/2021,326.04,"Children, Families & Education",E1170,Services,
ANNA'S LITTLE ANGELS - ANNA COOK,2080670,28/05/2021,326.04,"Children, Families & Education",E1170,Services,
ANTOINETTE KATHLEEN CARR,2077372,18/05/2021,60.00,"Children, Families & Education",E9602,Agency Staff,
APEX CHILDRENS SERVICES LIMITED,2073340,04/05/2021,"12,529.20","Children, Families & Education",E7080,Care Provision,
APEX CHILDRENS SERVICES LIMITED,2073340,04/05/2021,"12,529.20","Children, Families & Education",E7080,Care Provision,
APEX CHILDRENS SERVICES LIMITED,2073340,04/05/2021,"13,289.06","Children, Families & Education",E7080,Care Provision,
APEX CHILDRENS SERVICES LIMITED,2077910,20/05/2021,"2,505.84","Children, Families & Education",E7080,Care Provision,
APOLLO CARE LIMITED,2073971,06/05/2021,"18,859.33",Adults Care and Health and Strategic Commissioning,S6111,Physical Support - Older People (65+),
APOLLO CARE LIMITED,2079018,26/05/2021,"6,991.86",Adults Care and Health and Strategic Commissioning,S6111,Physical Support - Older People (65+),
APOLLO CARE LIMITED,2078637,25/05/2021,396.12,Adults Care and Health and Strategic Commissioning,S6131,Physical Support - Older People (65+),
APOLLO CARE LIMITED,2073341,04/05/2021,"1,076.40",Adults Care and Health and Strategic Commissioning,S6167,Physical Support - Older People (65+),
APOLLO CARE LIMITED,2073970,06/05/2021,"1,076.40",Adults Care and Health and Strategic Commissioning,S6167,Physical Support - Older People (65+),
APPLE BLOSSOM COURT LIMITED,2075078,11/05/2021,"2,252.00",Adults Care and Health and Strategic Commissioning,S6121,Learning & Disability Support - Adults (18-64),
APPLE BLOSSOM COURT LIMITED,2075078,11/05/2021,"2,252.00",Adults Care and Health and Strategic Commissioning,S6121,Learning & Disability Support - Adults (18-64),
APPLE BLOSSOM COURT LIMITED,2075078,11/05/2021,"2,252.00",Adults Care and Health and Strategic Commissioning,S6121,Learning & Disability Support - Adults (18-64),
APPLE BLOSSOM COURT LIMITED,2075078,11/05/2021,"2,252.00",Adults Care and Health and Strategic Commissioning,S6121,Learning & Disability Support - Adults (18-64),
APPLE BLOSSOM COURT LIMITED,2075078,11/05/2021,"2,252.00",Adults Care and Health and Strategic Commissioning,S6121,Learning & Disability Support - Adults (18-64),
APPLE BLOSSOM COURT LIMITED,2075078,11/05/2021,"2,252.00",Adults Care and Health and Strategic Commissioning,S6121,Learning & Disability Support - Adults (18-64),
APPLE BLOSSOM COURT LIMITED,2075078,11/05/2021,507.84,Adults Care and Health and Strategic Commissioning,S6121,Learning & Disability Support - Adults (18-64),
APPLE BLOSSOM COURT LIMITED,2075078,11/05/2021,"2,274.24",Adults Care and Health and Strategic Commissioning,S6121,Learning & Disability Support - Adults (18-64),
APPLE BLOSSOM COURT LIMITED,2075078,11/05/2021,"1,170.24",Adults Care and Health and Strategic Commissioning,S6121,Learning & Disability Support - Adults (18-64),
APPLE BLOSSOM COURT LIMITED,2075078,11/05/2021,949.44,Adults Care and Health and Strategic Commissioning,S6121,Learning & Disability Support - Adults (18-64),
APPLE BLOSSOM COURT LIMITED,2075078,11/05/2021,"2,274.24",Adults Care and Health and Strategic Commissioning,S6121,Learning & Disability Support - Adults (18-64),
APPLE BLOSSOM COURT LIMITED,2075078,11/05/2021,"1,391.04",Adults Care and Health and Strategic Commissioning,S6121,Learning & Disability Support - Adults (18-64),
APPLE BLOSSOM COURT LIMITED,2075078,11/05/2021,772.80,Adults Care and Health and Strategic Commissioning,S6121,Learning & Disability Support - Adults (18-64),
APPLE BLOSSOM COURT LIMITED,2075078,11/05/2021,"2,252.00",Adults Care and Health and Strategic Commissioning,S6121,Learning & Disability Support - Older People (65+),
APPLE BLOSSOM COURT LIMITED,2075078,11/05/2021,287.04,Adults Care and Health and Strategic Commissioning,S6121,Learning & Disability Support - Older People (65+),
APPLE BLOSSOM COURT LIMITED,2075078,11/05/2021,"1,126.00",Adults Care and Health and Strategic Commissioning,S6121,Learning & Disability Support - Older People (65+),
APPLE BLOSSOM COURT LIMITED,2075078,11/05/2021,"2,252.00",Adults Care and Health and Strategic Commissioning,S6142,Learning & Disability Support - Adults (18-64),
APPLE BLOSSOM COURT LIMITED,2075078,11/05/2021,"2,252.00",Adults Care and Health and Strategic Commissioning,S6142,Learning & Disability Support - Adults (18-64),
ARAN HALL SCHOOL LIMITED,2077656,19/05/2021,"94,057.33","Children, Families & Education",E7080,Care Provision,
ARCH INITIATIVES,2075080,11/05/2021,"1,200.00","Children, Families & Education",E6150,Hired or Contracted services,
ARCO LTD,2077117,17/05/2021,101.46,Neighbourhood Services,L3250,"Equipment, Furniture & Materials",
ARCO LTD,2076668,14/05/2021,35.73,Neighbourhood Services,L4003,Grounds Maintenance,
ARCO LTD,2078134,21/05/2021,19.99,Neighbourhood Services,L4950,"Clothes, Uniform & Laundry",
ARCO LTD,2076668,14/05/2021,75.08,Neighbourhood Services,L4950,"Clothes, Uniform & Laundry",
ARDEN PLANT LTD T/A PETER DOUGLASS PLATFORMS,2080674,28/05/2021,"1,295.00",Neighbourhood Services,T4020,Contract Hire & Operating Leases,
ARDEN PLANT LTD T/A PETER DOUGLASS PLATFORMS,2080674,28/05/2021,"1,295.00",Neighbourhood Services,T4020,Contract Hire & Operating Leases,
ARGYLE SATELLITE CONTRACT SERVICE LIMITED,2077657,19/05/2021,"7,054.17","Children, Families & Education",E5731,School Transport - Primary,
ARGYLE SATELLITE CONTRACT SERVICE LIMITED,2075496,12/05/2021,"7,613.42","Children, Families & Education",E5731,School Transport - Primary,
ARGYLE SATELLITE CONTRACT SERVICE LIMITED,2079020,26/05/2021,"7,685.97","Children, Families & Education",E5731,School Transport - Primary,
ARGYLE SATELLITE CONTRACT SERVICE LIMITED,2074236,07/05/2021,"7,736.14","Children, Families & Education",E5731,School Transport - Primary,
ARGYLE SATELLITE CONTRACT SERVICE LIMITED,2077119,17/05/2021,76.58,"Children, Families & Education",E7025,Care Provision,
ARGYLE SATELLITE CONTRACT SERVICE LIMITED,2077375,18/05/2021,380.34,"Children, Families & Education",E7025,Care Provision,
ARGYLE SATELLITE CONTRACT SERVICE LIMITED,2077375,18/05/2021,409.44,"Children, Families & Education",E7025,Care Provision,
ARGYLE SATELLITE CONTRACT SERVICE LIMITED,2075496,12/05/2021,77.02,"Children, Families & Education",E7025,Care Provision,
ARGYLE SATELLITE CONTRACT SERVICE LIMITED,2073973,06/05/2021,74.02,"Children, Families & Education",E7025,Care Provision,
ARGYLE SATELLITE CONTRACT SERVICE LIMITED,2077375,18/05/2021,7.50,"Children, Families & Education",E7029,Care Provision,
ARGYLE SATELLITE CONTRACT SERVICE LIMITED,2077119,17/05/2021,82.63,"Children, Families & Education",E7033,Care Provision,
ARGYLE SATELLITE CONTRACT SERVICE LIMITED,2078639,25/05/2021,12.42,"Children, Families & Education",E7033,Care Provision,
ARGYLE SATELLITE CONTRACT SERVICE LIMITED,2079020,26/05/2021,15.93,Regeneration & Place,H6080,Expenses,
ARGYLE SATELLITE CONTRACT SERVICE LIMITED,2075081,11/05/2021,20.01,Regeneration & Place,H6080,Expenses,
ARGYLE SATELLITE CONTRACT SERVICE LIMITED,2075081,11/05/2021,11.73,Regeneration & Place,H6080,Expenses,
ARGYLE SATELLITE CONTRACT SERVICE LIMITED,2075081,11/05/2021,22.54,Regeneration & Place,H6080,Expenses,
ARGYLE SATELLITE CONTRACT SERVICE LIMITED,2075496,12/05/2021,835.80,Neighbourhood Services,S5600,Care Provision,
ARGYLE SATELLITE CONTRACT SERVICE LIMITED,2079020,26/05/2021,784.50,Neighbourhood Services,S5600,Care Provision,
ARGYLE SATELLITE CONTRACT SERVICE LIMITED,2074236,07/05/2021,"1,314.56",Neighbourhood Services,S5600,Care Provision,
ARGYLE SATELLITE CONTRACT SERVICE LIMITED,2073713,05/05/2021,20.81,Adults Care and Health and Strategic Commissioning,S6132,Care Provision,
ARGYLE SATELLITE CONTRACT SERVICE LIMITED,2076670,14/05/2021,41.83,Adults Care and Health and Strategic Commissioning,S6142,Care Provision,
ARK COMMUNITY TRANSPORT,2075786,13/05/2021,"6,732.00",Neighbourhood Services,S5600,Care Provision,
ARK COMMUNITY TRANSPORT,2077658,19/05/2021,"8,415.00",Neighbourhood Services,S5600,Care Provision,
ARK COMMUNITY TRANSPORT,2078640,25/05/2021,"8,415.00",Neighbourhood Services,S5600,Care Provision,
ARK COMMUNITY TRANSPORT,2073715,05/05/2021,"8,415.00",Neighbourhood Services,S5600,Care Provision,
ARNOLD CLARK,2078641,25/05/2021,-844.86,Resources,X7105,Car Leasing,-66.25
ARNOLD CLARK,2073716,05/05/2021,203.59,Resources,X7105,Car Leasing,-15.58
ARNOLD CLARK,2078641,25/05/2021,203.28,Neighbourhood Services,T4020,Contract Hire & Operating Leases,
ARNOLD CLARK,2079022,26/05/2021,292.60,Neighbourhood Services,T4020,Contract Hire & Operating Leases,
ARNOLD CLARK,2078641,25/05/2021,122.92,Neighbourhood Services,T4020,Contract Hire & Operating Leases,
ARNOLD CLARK,2078641,25/05/2021,143.50,Neighbourhood Services,T4020,Contract Hire & Operating Leases,
ARNOLD CLARK,2075082,11/05/2021,122.92,Neighbourhood Services,T4020,Contract Hire & Operating Leases,
ARNOLD CLARK,2078641,25/05/2021,122.92,Neighbourhood Services,T4020,Contract Hire & Operating Leases,
ARNOLD CLARK,2078641,25/05/2021,292.60,Neighbourhood Services,T4020,Contract Hire & Operating Leases,
ARNOLD CLARK,2073344,04/05/2021,138.88,Neighbourhood Services,T4020,Contract Hire & Operating Leases,
ARNOLD CLARK,2073344,04/05/2021,138.88,Neighbourhood Services,T4020,Contract Hire & Operating Leases,
ARNOLD CLARK,2073344,04/05/2021,138.88,Neighbourhood Services,T4020,Contract Hire & Operating Leases,
ARNOLD CLARK,2074473,10/05/2021,122.92,Neighbourhood Services,T4020,Contract Hire & Operating Leases,
ARNOLD CLARK,2074473,10/05/2021,292.60,Neighbourhood Services,T4020,Contract Hire & Operating Leases,
ARNOLD CLARK,2074473,10/05/2021,143.50,Neighbourhood Services,T4020,Contract Hire & Operating Leases,
ARNOLD CLARK,2078641,25/05/2021,167.20,Neighbourhood Services,T4020,Contract Hire & Operating Leases,
ARNOLD CLARK,2080456,27/05/2021,203.28,Neighbourhood Services,T4020,Contract Hire & Operating Leases,
ARNOLD CLARK,2073974,06/05/2021,420.01,Resources,X7105,Car Leasing,32.56
ARRAN PIPELINE SUPPLIES LIMITED T/A COLLISTER & GLOVER,2075083,11/05/2021,"1,584.19",Neighbourhood Services,L3240,"Repairs, alterations and maintenance",
ARRAN PIPELINE SUPPLIES LIMITED T/A COLLISTER & GLOVER,2075083,11/05/2021,199.98,Neighbourhood Services,L3250,"Repairs, alterations and maintenance",
ARRAN PIPELINE SUPPLIES LIMITED T/A COLLISTER & GLOVER,2073717,05/05/2021,46.74,Neighbourhood Services,L3250,"Repairs, alterations and maintenance",
ARRAN PIPELINE SUPPLIES LIMITED T/A COLLISTER & GLOVER,2078642,25/05/2021,137.63,Neighbourhood Services,L3404,"Repairs, alterations and maintenance",
ARROWE PARK FC,2078396,24/05/2021,211.00,Balance Sheet,00000,Debtors - Other Entities and Individuals,
ARVAL UK LIMITED,2077120,17/05/2021,350.41,Neighbourhood Services,T4020,Contract Hire & Operating Leases,
AS GOOD AS GRASS (UK) LIMITED,2075787,13/05/2021,"1,500.00","Children, Families & Education",E8940,"Equipment, Furniture & Materials",
ASBESTOS CONTROL & TREATMENT LIMITED,2073718,05/05/2021,"1,580.00",Children & Young People,C2113,Contractors - Main,
ASBESTOS CONTROL & TREATMENT LIMITED,2073718,05/05/2021,"3,840.00",Children & Young People,C2127,Contractors - Main,
ASBESTOS CONTROL & TREATMENT LIMITED,2073718,05/05/2021,200.00,Children & Young People,C2127,Contractors - Main,
ASBESTOS CONTROL & TREATMENT LIMITED,2075085,11/05/2021,"6,380.00",Children & Young People,C2127,Contractors - Main,
ASBESTOS CONTROL & TREATMENT LIMITED,2075788,13/05/2021,"8,300.00",Children & Young People,C2130,Contractors - Main,
ASBESTOS CONTROL & TREATMENT LIMITED,2075788,13/05/2021,"1,486.00",Transformation and Resources,C8074,Contractors - Main,
ASBESTOS CONTROL & TREATMENT LIMITED,2073345,04/05/2021,480.00,Regeneration & Place,D2180,"Repairs, alterations and maintenance",
ASBESTOS CONTROL & TREATMENT LIMITED,2073345,04/05/2021,186.59,Regeneration & Place,D2403,"Repairs, alterations and maintenance",
ASBESTOS CONTROL & TREATMENT LIMITED,2073718,05/05/2021,160.00,Regeneration & Place,D2550,"Repairs, alterations and maintenance",
ASBESTOS CONTROL & TREATMENT LIMITED,2075085,11/05/2021,100.00,Neighbourhood Services,D3543,"Repairs, alterations and maintenance",
ASBESTOS CONTROL & TREATMENT LIMITED,2073345,04/05/2021,344.75,"Children, Families & Education",E1910,"Repairs, alterations and maintenance",
ASBESTOS CONTROL & TREATMENT LIMITED,2073718,05/05/2021,576.00,"Children, Families & Education",E2380,"Repairs, alterations and maintenance",
ASBESTOS CONTROL & TREATMENT LIMITED,2075085,11/05/2021,350.00,"Children, Families & Education",E8610,"Repairs, alterations and maintenance",
ASBESTOS CONTROL & TREATMENT LIMITED,2078644,25/05/2021,200.00,Neighbourhood Services,L4390,"Repairs, alterations and maintenance",
ASBESTOS CONTROL & TREATMENT LIMITED,2073345,04/05/2021,200.00,Neighbourhood Services,L4390,"Repairs, alterations and maintenance",
ASCENTIS,2078645,25/05/2021,600.00,"Children, Families & Education",E6150,Educational Provider,
ASD LIGHTING PLC,2077121,17/05/2021,"2,491.00",Neighbourhood Services,V1920,"Equipment, Furniture & Materials",
ASH HOUSE DAY NURSERY,2080676,28/05/2021,"1,419.60","Children, Families & Education",E1170,Services,
ASH HOUSE DAY NURSERY,2080676,28/05/2021,"7,605.39","Children, Families & Education",E1170,Services,
ASH HOUSE DAY NURSERY,2080676,28/05/2021,"3,444.48","Children, Families & Education",E1170,Services,
ASH HOUSE DAY NURSERY,2075789,13/05/2021,125.00,"Children, Families & Education",E3020,Contributions,
ASH WASTE SERVICES LIMITED,2075498,12/05/2021,"3,828.20",Neighbourhood Services,V1920,"Equipment, Furniture & Materials",
ASH WASTE SERVICES LIMITED,2075498,12/05/2021,111.32,Neighbourhood Services,V1920,"Equipment, Furniture & Materials",
ASH WASTE SERVICES LIMITED,2078646,25/05/2021,"1,858.00",Neighbourhood Services,V1920,"Equipment, Furniture & Materials",
ASH WASTE SERVICES LIMITED,2080677,28/05/2021,"2,178.50",Neighbourhood Services,V1920,"Equipment, Furniture & Materials",
ASH WASTE SERVICES LIMITED,2080677,28/05/2021,95.40,Neighbourhood Services,V1920,"Equipment, Furniture & Materials",
ASH WASTE SERVICES LIMITED,2078646,25/05/2021,-386.40,Neighbourhood Services,V1920,"Equipment, Furniture & Materials",
ASHVILLE F C,231705,24/05/2021,"1,061.00",Balance Sheet,00000,Debtors - Other Entities and Individuals,
ASKEWS & HOLTS LIBRARY SERVICES LIMITED,2077122,17/05/2021,127.44,Neighbourhood Services,L2300,"Equipment, Furniture & Materials",
ASKEWS & HOLTS LIBRARY SERVICES LIMITED,2077122,17/05/2021,87.38,Neighbourhood Services,L2300,"Equipment, Furniture & Materials",
ASKEWS & HOLTS LIBRARY SERVICES LIMITED,2077122,17/05/2021,45.58,Neighbourhood Services,L2300,"Equipment, Furniture & Materials",
ASPIRATIONS CARE,2078649,25/05/2021,"52,718.30",Adults Care and Health and Strategic Commissioning,S6121,Learning & Disability Support - Adults (18-64),
ASPIRE CARE SUPPORT SERVICES LIMITED,2075086,11/05/2021,"81,242.23",Adults Care and Health and Strategic Commissioning,S6141,Physical Support - Older People (65+),
ASSIST MANAGED SERVICES LIMITED,2073975,06/05/2021,"7,285.87",Neighbourhood Services,V2230,Agency Staff,
ASSOCIATED NEWSPAPER LIMITED,2073719,05/05/2021,375.00,Regeneration & Place,H8050,"Advertising, Publicity & Marketing",
ASSOCIATED NEWSPAPER LIMITED,2077659,19/05/2021,375.00,Regeneration & Place,H8050,"Advertising, Publicity & Marketing",
ASSURE TECHNICAL LIMITED,2073976,06/05/2021,"2,845.00",Resources,F4412,Communications & Computing,
ATHENA CARE (NEW BRIGHTON ONE) LIMITED,2075087,11/05/2021,"2,160.00",Adults Care and Health and Strategic Commissioning,S6131,Physical Support - Older People (65+),
ATHENA CARE (NEW BRIGHTON ONE) LIMITED,2075087,11/05/2021,"1,924.00",Adults Care and Health and Strategic Commissioning,S6141,Physical Support - Older People (65+),
ATHENA CARE (NEW BRIGHTON ONE) LIMITED,2075087,11/05/2021,"1,936.00",Adults Care and Health and Strategic Commissioning,S6141,Physical Support - Older People (65+),
ATHENA CARE (NEW BRIGHTON ONE) LIMITED,2075087,11/05/2021,"2,160.00",Adults Care and Health and Strategic Commissioning,S6142,Memory & Cognition Support - Older People (65+),
ATHENA CARE (NEW BRIGHTON ONE) LIMITED,2075087,11/05/2021,"1,355.20",Adults Care and Health and Strategic Commissioning,S6142,Memory & Cognition Support - Older People (65+),
ATHENA CARE (NEW BRIGHTON ONE) LIMITED,2075087,11/05/2021,"2,160.00",Adults Care and Health and Strategic Commissioning,S6142,Physical Support - Older People (65+),
ATHENA CARE (NEW BRIGHTON ONE) LIMITED,2075087,11/05/2021,"2,160.00",Adults Care and Health and Strategic Commissioning,S6167,Physical Support - Older People (65+),
ATHENA CARE (NEW BRIGHTON ONE) LIMITED,2075087,11/05/2021,"2,304.00",Adults Care and Health and Strategic Commissioning,S6998,Memory & Cognition Support - Older People (65+),
ATHENA HEALTHCARE (NEW BRIGHTON TWO) LIMITED,2075088,11/05/2021,882.00,Adults Care and Health and Strategic Commissioning,S6142,Physical Support - Older People (65+),
ATHENA HEALTHCARE (NEW BRIGHTON TWO) LIMITED,2075088,11/05/2021,"3,024.00",Adults Care and Health and Strategic Commissioning,S6142,Physical Support - Older People (65+),
ATHENA HEALTHCARE (NEW BRIGHTON TWO) LIMITED,2075088,11/05/2021,"4,758.24",Adults Care and Health and Strategic Commissioning,S6161,Mental Health Support - Adults (18-64),
ATLAS FIRE & SECURITY LIMITED,2075500,12/05/2021,966.00,Neighbourhood Services,L3250,"Repairs, alterations and maintenance",
ATTIVO CARE LIMITED,2077661,19/05/2021,"24,357.32","Children, Families & Education",E7080,Care Provision,
AUNTIE EM'S CHILDMINDING SERVICE,2080683,28/05/2021,944.45,"Children, Families & Education",E1170,Services,
AUNTIE EM'S CHILDMINDING SERVICE,2080683,28/05/2021,326.04,"Children, Families & Education",E1170,Services,
AUNTIE JAYNE'S HOUSE LIMITED,2080684,28/05/2021,202.80,"Children, Families & Education",E1170,Services,
AUNTIE JAYNE'S HOUSE LIMITED,2080684,28/05/2021,"2,969.46","Children, Families & Education",E1170,Services,
AUNTIE JAYNE'S HOUSE LIMITED,2080684,28/05/2021,879.84,"Children, Families & Education",E1170,Services,
AUTISM INITIATIVES,2077662,19/05/2021,"5,896.42","Children, Families & Education",E7080,Care Provision,
AUTISM INITIATIVES,2077662,19/05/2021,"7,916.66","Children, Families & Education",E7080,Care Provision,
AUTISM INITIATIVES,2075090,11/05/2021,-423.00,Adults Care and Health and Strategic Commissioning,S6121,Customer and Client - Community Care,
AUTISM INITIATIVES,2075090,11/05/2021,"4,792.28",Adults Care and Health and Strategic Commissioning,S6121,Learning & Disability Support - Adults (18-64),
AUTISM INITIATIVES,2075090,11/05/2021,"13,826.88",Adults Care and Health and Strategic Commissioning,S6121,Learning & Disability Support - Adults (18-64),
AUTISM INITIATIVES,2077378,18/05/2021,"41,533.48",Adults Care and Health and Strategic Commissioning,S6121,Learning & Disability Support - Adults (18-64),
AUTISM TOGETHER,2079030,26/05/2021,"37,832.36",Adults Care and Health and Strategic Commissioning,S6006,Care Provision,
AUTISM TOGETHER,2075092,11/05/2021,-411.00,Adults Care and Health and Strategic Commissioning,S6121,Customer and Client - Community Care,
AUTISM TOGETHER,2075092,11/05/2021,-423.00,Adults Care and Health and Strategic Commissioning,S6121,Customer and Client - Community Care,
AUTISM TOGETHER,2075092,11/05/2021,-423.00,Adults Care and Health and Strategic Commissioning,S6121,Customer and Client - Community Care,
AUTISM TOGETHER,2075092,11/05/2021,-423.00,Adults Care and Health and Strategic Commissioning,S6121,Customer and Client - Community Care,
AUTISM TOGETHER,2075092,11/05/2021,-423.00,Adults Care and Health and Strategic Commissioning,S6121,Customer and Client - Community Care,
AUTISM TOGETHER,2075092,11/05/2021,-423.00,Adults Care and Health and Strategic Commissioning,S6121,Customer and Client - Community Care,
AUTISM TOGETHER,2075092,11/05/2021,-354.60,Adults Care and Health and Strategic Commissioning,S6121,Customer and Client - Community Care,
AUTISM TOGETHER,2075092,11/05/2021,-423.00,Adults Care and Health and Strategic Commissioning,S6121,Customer and Client - Community Care,
AUTISM TOGETHER,2075092,11/05/2021,-423.00,Adults Care and Health and Strategic Commissioning,S6121,Customer and Client - Community Care,
AUTISM TOGETHER,2075091,11/05/2021,-423.00,Adults Care and Health and Strategic Commissioning,S6121,Customer and Client - Community Care,
AUTISM TOGETHER,2075091,11/05/2021,-423.00,Adults Care and Health and Strategic Commissioning,S6121,Customer and Client - Community Care,
AUTISM TOGETHER,2075092,11/05/2021,"2,353.68",Adults Care and Health and Strategic Commissioning,S6121,Learning & Disability Support - Adults (18-64),
AUTISM TOGETHER,2075092,11/05/2021,"10,390.40",Adults Care and Health and Strategic Commissioning,S6121,Learning & Disability Support - Adults (18-64),
AUTISM TOGETHER,2075092,11/05/2021,"4,697.00",Adults Care and Health and Strategic Commissioning,S6121,Learning & Disability Support - Adults (18-64),
AUTISM TOGETHER,2075092,11/05/2021,308.57,Adults Care and Health and Strategic Commissioning,S6121,Learning & Disability Support - Adults (18-64),
AUTISM TOGETHER,2075091,11/05/2021,"1,134.00",Adults Care and Health and Strategic Commissioning,S6121,Learning & Disability Support - Adults (18-64),
AUTISM TOGETHER,2075092,11/05/2021,"1,620.00",Adults Care and Health and Strategic Commissioning,S6121,Learning & Disability Support - Adults (18-64),
AUTISM TOGETHER,2075092,11/05/2021,"-1,179.22",Adults Care and Health and Strategic Commissioning,S6121,Learning & Disability Support - Adults (18-64),
AUTISM TOGETHER,2075092,11/05/2021,"1,221.05",Adults Care and Health and Strategic Commissioning,S6121,Learning & Disability Support - Adults (18-64),
AUTISM TOGETHER,2075092,11/05/2021,"2,136.83",Adults Care and Health and Strategic Commissioning,S6121,Learning & Disability Support - Adults (18-64),
AUTISM TOGETHER,2075092,11/05/2021,-910.42,Adults Care and Health and Strategic Commissioning,S6121,Learning & Disability Support - Adults (18-64),
AUTISM TOGETHER,2075092,11/05/2021,942.87,Adults Care and Health and Strategic Commissioning,S6121,Learning & Disability Support - Adults (18-64),
AUTISM TOGETHER,2075092,11/05/2021,"1,650.02",Adults Care and Health and Strategic Commissioning,S6121,Learning & Disability Support - Adults (18-64),
AUTISM TOGETHER,2075092,11/05/2021,"-1,362.55",Adults Care and Health and Strategic Commissioning,S6121,Learning & Disability Support - Adults (18-64),
AUTISM TOGETHER,2075092,11/05/2021,"1,410.62",Adults Care and Health and Strategic Commissioning,S6121,Learning & Disability Support - Adults (18-64),
AUTISM TOGETHER,2075092,11/05/2021,"2,468.58",Adults Care and Health and Strategic Commissioning,S6121,Learning & Disability Support - Adults (18-64),
AUTISM TOGETHER,2075092,11/05/2021,-642.97,Adults Care and Health and Strategic Commissioning,S6121,Learning & Disability Support - Adults (18-64),
AUTISM TOGETHER,2075092,11/05/2021,666.46,Adults Care and Health and Strategic Commissioning,S6121,Learning & Disability Support - Adults (18-64),
AUTISM TOGETHER,2075092,11/05/2021,"1,166.31",Adults Care and Health and Strategic Commissioning,S6121,Learning & Disability Support - Adults (18-64),
AUTISM TOGETHER,2075092,11/05/2021,"-1,495.43",Adults Care and Health and Strategic Commissioning,S6121,Learning & Disability Support - Adults (18-64),
AUTISM TOGETHER,2075092,11/05/2021,"1,548.87",Adults Care and Health and Strategic Commissioning,S6121,Learning & Disability Support - Adults (18-64),
AUTISM TOGETHER,2075092,11/05/2021,"2,710.53",Adults Care and Health and Strategic Commissioning,S6121,Learning & Disability Support - Adults (18-64),
AUTISM TOGETHER,2075092,11/05/2021,"-1,492.71",Adults Care and Health and Strategic Commissioning,S6121,Learning & Disability Support - Adults (18-64),
AUTISM TOGETHER,2075092,11/05/2021,"1,544.81",Adults Care and Health and Strategic Commissioning,S6121,Learning & Disability Support - Adults (18-64),
AUTISM TOGETHER,2075092,11/05/2021,"2,703.42",Adults Care and Health and Strategic Commissioning,S6121,Learning & Disability Support - Adults (18-64),
AUTISM TOGETHER,2075092,11/05/2021,-590.15,Adults Care and Health and Strategic Commissioning,S6121,Learning & Disability Support - Adults (18-64),
AUTISM TOGETHER,2075092,11/05/2021,611.46,Adults Care and Health and Strategic Commissioning,S6121,Learning & Disability Support - Adults (18-64),
AUTISM TOGETHER,2075092,11/05/2021,"1,070.06",Adults Care and Health and Strategic Commissioning,S6121,Learning & Disability Support - Adults (18-64),
AUTISM TOGETHER,2075092,11/05/2021,-655.77,Adults Care and Health and Strategic Commissioning,S6121,Learning & Disability Support - Adults (18-64),
AUTISM TOGETHER,2075092,11/05/2021,679.47,Adults Care and Health and Strategic Commissioning,S6121,Learning & Disability Support - Adults (18-64),
AUTISM TOGETHER,2075092,11/05/2021,"1,189.08",Adults Care and Health and Strategic Commissioning,S6121,Learning & Disability Support - Adults (18-64),
AUTISM TOGETHER,2075092,11/05/2021,-611.01,Adults Care and Health and Strategic Commissioning,S6121,Learning & Disability Support - Adults (18-64),
AUTISM TOGETHER,2075092,11/05/2021,633.34,Adults Care and Health and Strategic Commissioning,S6121,Learning & Disability Support - Adults (18-64),
AUTISM TOGETHER,2075092,11/05/2021,"1,108.35",Adults Care and Health and Strategic Commissioning,S6121,Learning & Disability Support - Adults (18-64),
AUTISM TOGETHER,2075092,11/05/2021,"-1,264.41",Adults Care and Health and Strategic Commissioning,S6121,Learning & Disability Support - Adults (18-64),
AUTISM TOGETHER,2075092,11/05/2021,"1,309.17",Adults Care and Health and Strategic Commissioning,S6121,Learning & Disability Support - Adults (18-64),
AUTISM TOGETHER,2075092,11/05/2021,"2,291.04",Adults Care and Health and Strategic Commissioning,S6121,Learning & Disability Support - Adults (18-64),
AUTISM TOGETHER,2075092,11/05/2021,"-1,335.85",Adults Care and Health and Strategic Commissioning,S6121,Learning & Disability Support - Adults (18-64),
AUTISM TOGETHER,2075092,11/05/2021,"1,382.60",Adults Care and Health and Strategic Commissioning,S6121,Learning & Disability Support - Adults (18-64),
AUTISM TOGETHER,2075092,11/05/2021,"2,419.55",Adults Care and Health and Strategic Commissioning,S6121,Learning & Disability Support - Adults (18-64),
AUTISM TOGETHER,2075092,11/05/2021,"-1,353.75",Adults Care and Health and Strategic Commissioning,S6121,Learning & Disability Support - Adults (18-64),
AUTISM TOGETHER,2075092,11/05/2021,"1,401.10",Adults Care and Health and Strategic Commissioning,S6121,Learning & Disability Support - Adults (18-64),
AUTISM TOGETHER,2075092,11/05/2021,"2,451.92",Adults Care and Health and Strategic Commissioning,S6121,Learning & Disability Support - Adults (18-64),
AUTISM TOGETHER,2075092,11/05/2021,"-1,068.48",Adults Care and Health and Strategic Commissioning,S6121,Learning & Disability Support - Adults (18-64),
AUTISM TOGETHER,2075092,11/05/2021,"1,105.87",Adults Care and Health and Strategic Commissioning,S6121,Learning & Disability Support - Adults (18-64),
AUTISM TOGETHER,2075092,11/05/2021,"1,935.28",Adults Care and Health and Strategic Commissioning,S6121,Learning & Disability Support - Adults (18-64),
AUTISM TOGETHER,2075092,11/05/2021,-590.15,Adults Care and Health and Strategic Commissioning,S6121,Learning & Disability Support - Adults (18-64),
AUTISM TOGETHER,2075092,11/05/2021,611.46,Adults Care and Health and Strategic Commissioning,S6121,Learning & Disability Support - Adults (18-64),
AUTISM TOGETHER,2075092,11/05/2021,"1,070.06",Adults Care and Health and Strategic Commissioning,S6121,Learning & Disability Support - Adults (18-64),
AUTISM TOGETHER,2075092,11/05/2021,"-1,294.88",Adults Care and Health and Strategic Commissioning,S6121,Learning & Disability Support - Adults (18-64),
AUTISM TOGETHER,2075092,11/05/2021,"1,340.18",Adults Care and Health and Strategic Commissioning,S6121,Learning & Disability Support - Adults (18-64),
AUTISM TOGETHER,2075092,11/05/2021,"2,345.31",Adults Care and Health and Strategic Commissioning,S6121,Learning & Disability Support - Adults (18-64),
AUTISM TOGETHER,2075092,11/05/2021,-361.08,Adults Care and Health and Strategic Commissioning,S6121,Learning & Disability Support - Adults (18-64),
AUTISM TOGETHER,2075092,11/05/2021,373.72,Adults Care and Health and Strategic Commissioning,S6121,Learning & Disability Support - Adults (18-64),
AUTISM TOGETHER,2075092,11/05/2021,654.01,Adults Care and Health and Strategic Commissioning,S6121,Learning & Disability Support - Adults (18-64),
AUTISM TOGETHER,2075092,11/05/2021,-500.00,Adults Care and Health and Strategic Commissioning,S6121,Learning & Disability Support - Adults (18-64),
AUTISM TOGETHER,2075092,11/05/2021,517.50,Adults Care and Health and Strategic Commissioning,S6121,Learning & Disability Support - Adults (18-64),
AUTISM TOGETHER,2075092,11/05/2021,905.63,Adults Care and Health and Strategic Commissioning,S6121,Learning & Disability Support - Adults (18-64),
AUTISM TOGETHER,2075092,11/05/2021,-105.28,Adults Care and Health and Strategic Commissioning,S6121,Learning & Disability Support - Adults (18-64),
AUTISM TOGETHER,2075092,11/05/2021,108.96,Adults Care and Health and Strategic Commissioning,S6121,Learning & Disability Support - Adults (18-64),
AUTISM TOGETHER,2075092,11/05/2021,190.69,Adults Care and Health and Strategic Commissioning,S6121,Learning & Disability Support - Adults (18-64),
AUTISM TOGETHER,2075092,11/05/2021,-540.00,Adults Care and Health and Strategic Commissioning,S6121,Learning & Disability Support - Adults (18-64),
AUTISM TOGETHER,2075092,11/05/2021,559.08,Adults Care and Health and Strategic Commissioning,S6121,Learning & Disability Support - Adults (18-64),
AUTISM TOGETHER,2075092,11/05/2021,978.39,Adults Care and Health and Strategic Commissioning,S6121,Learning & Disability Support - Adults (18-64),
AUTISM TOGETHER,2075092,11/05/2021,-900.00,Adults Care and Health and Strategic Commissioning,S6121,Learning & Disability Support - Adults (18-64),
AUTISM TOGETHER,2075092,11/05/2021,931.80,Adults Care and Health and Strategic Commissioning,S6121,Learning & Disability Support - Adults (18-64),
AUTISM TOGETHER,2075092,11/05/2021,"1,630.65",Adults Care and Health and Strategic Commissioning,S6121,Learning & Disability Support - Adults (18-64),
AUTISM TOGETHER,2075092,11/05/2021,"-1,575.00",Adults Care and Health and Strategic Commissioning,S6121,Learning & Disability Support - Adults (18-64),
AUTISM TOGETHER,2075092,11/05/2021,-184.24,Adults Care and Health and Strategic Commissioning,S6121,Learning & Disability Support - Adults (18-64),
AUTISM TOGETHER,2075092,11/05/2021,-875.00,Adults Care and Health and Strategic Commissioning,S6121,Learning & Disability Support - Adults (18-64),
AUTISM TOGETHER,2075092,11/05/2021,"-1,147.60",Adults Care and Health and Strategic Commissioning,S6121,Learning & Disability Support - Adults (18-64),
AUTISM TOGETHER,2075092,11/05/2021,"-1,125.20",Adults Care and Health and Strategic Commissioning,S6121,Learning & Disability Support - Adults (18-64),
AUTISM TOGETHER,2075092,11/05/2021,"-2,617.00",Adults Care and Health and Strategic Commissioning,S6121,Learning & Disability Support - Adults (18-64),
AUTISM TOGETHER,2075092,11/05/2021,"-2,384.46",Adults Care and Health and Strategic Commissioning,S6121,Learning & Disability Support - Adults (18-64),
AUTISM TOGETHER,2075092,11/05/2021,"-2,266.04",Adults Care and Health and Strategic Commissioning,S6121,Learning & Disability Support - Adults (18-64),
AUTISM TOGETHER,2075092,11/05/2021,"-2,612.25",Adults Care and Health and Strategic Commissioning,S6121,Learning & Disability Support - Adults (18-64),
AUTISM TOGETHER,2075092,11/05/2021,"-1,032.77",Adults Care and Health and Strategic Commissioning,S6121,Learning & Disability Support - Adults (18-64),
AUTISM TOGETHER,2075092,11/05/2021,-631.89,Adults Care and Health and Strategic Commissioning,S6121,Learning & Disability Support - Adults (18-64),
AUTISM TOGETHER,2075092,11/05/2021,"-2,337.73",Adults Care and Health and Strategic Commissioning,S6121,Learning & Disability Support - Adults (18-64),
AUTISM TOGETHER,2075092,11/05/2021,"-2,212.71",Adults Care and Health and Strategic Commissioning,S6121,Learning & Disability Support - Adults (18-64),
AUTISM TOGETHER,2075092,11/05/2021,"-1,869.84",Adults Care and Health and Strategic Commissioning,S6121,Learning & Disability Support - Adults (18-64),
AUTISM TOGETHER,2075092,11/05/2021,"-2,063.64",Adults Care and Health and Strategic Commissioning,S6121,Learning & Disability Support - Adults (18-64),
AUTISM TOGETHER,2075092,11/05/2021,-945.00,Adults Care and Health and Strategic Commissioning,S6121,Learning & Disability Support - Adults (18-64),
AUTISM TOGETHER,2075092,11/05/2021,"-1,069.26",Adults Care and Health and Strategic Commissioning,S6121,Learning & Disability Support - Adults (18-64),
AUTISM TOGETHER,2075092,11/05/2021,"-1,593.24",Adults Care and Health and Strategic Commissioning,S6121,Learning & Disability Support - Adults (18-64),
AUTISM TOGETHER,2075092,11/05/2021,"-2,369.07",Adults Care and Health and Strategic Commissioning,S6121,Learning & Disability Support - Adults (18-64),
AUTISM TOGETHER,2075092,11/05/2021,"-1,032.77",Adults Care and Health and Strategic Commissioning,S6121,Learning & Disability Support - Adults (18-64),
AUTISM TOGETHER,2075091,11/05/2021,"-1,796.20",Adults Care and Health and Strategic Commissioning,S6121,Learning & Disability Support - Adults (18-64),
AUTISM TOGETHER,2075091,11/05/2021,-196.00,Adults Care and Health and Strategic Commissioning,S6121,Learning & Disability Support - Adults (18-64),
AUTISM TOGETHER,2075091,11/05/2021,"-2,155.81",Adults Care and Health and Strategic Commissioning,S6121,Learning & Disability Support - Adults (18-64),
AUTISM TOGETHER,2075091,11/05/2021,-350.00,Adults Care and Health and Strategic Commissioning,S6121,Learning & Disability Support - Adults (18-64),
AUTISM TOGETHER,2075091,11/05/2021,"-1,365.76",Adults Care and Health and Strategic Commissioning,S6121,Learning & Disability Support - Adults (18-64),
AUTISM TOGETHER,2075091,11/05/2021,"-1,174.04",Adults Care and Health and Strategic Commissioning,S6121,Learning & Disability Support - Adults (18-64),
AUTISM TOGETHER,2075091,11/05/2021,"-2,577.13",Adults Care and Health and Strategic Commissioning,S6121,Learning & Disability Support - Adults (18-64),
AUTISM TOGETHER,2075091,11/05/2021,"-1,472.65",Adults Care and Health and Strategic Commissioning,S6121,Learning & Disability Support - Adults (18-64),
AUTISM TOGETHER,2075091,11/05/2021,"1,524.47",Adults Care and Health and Strategic Commissioning,S6121,Learning & Disability Support - Adults (18-64),
AUTISM TOGETHER,2075091,11/05/2021,"2,667.83",Adults Care and Health and Strategic Commissioning,S6121,Learning & Disability Support - Adults (18-64),
AUTISM TOGETHER,2075091,11/05/2021,"-1,026.40",Adults Care and Health and Strategic Commissioning,S6121,Learning & Disability Support - Adults (18-64),
AUTISM TOGETHER,2075091,11/05/2021,"1,063.31",Adults Care and Health and Strategic Commissioning,S6121,Learning & Disability Support - Adults (18-64),
AUTISM TOGETHER,2075091,11/05/2021,"1,860.80",Adults Care and Health and Strategic Commissioning,S6121,Learning & Disability Support - Adults (18-64),
AUTISM TOGETHER,2075091,11/05/2021,-780.43,Adults Care and Health and Strategic Commissioning,S6121,Learning & Disability Support - Adults (18-64),
AUTISM TOGETHER,2075091,11/05/2021,808.41,Adults Care and Health and Strategic Commissioning,S6121,Learning & Disability Support - Adults (18-64),
AUTISM TOGETHER,2075091,11/05/2021,"1,414.71",Adults Care and Health and Strategic Commissioning,S6121,Learning & Disability Support - Adults (18-64),
AUTISM TOGETHER,2075091,11/05/2021,-670.88,Adults Care and Health and Strategic Commissioning,S6121,Learning & Disability Support - Adults (18-64),
AUTISM TOGETHER,2075091,11/05/2021,694.70,Adults Care and Health and Strategic Commissioning,S6121,Learning & Disability Support - Adults (18-64),
AUTISM TOGETHER,2075091,11/05/2021,"1,215.72",Adults Care and Health and Strategic Commissioning,S6121,Learning & Disability Support - Adults (18-64),
AUTISM TOGETHER,2075091,11/05/2021,"-1,231.89",Adults Care and Health and Strategic Commissioning,S6121,Learning & Disability Support - Adults (18-64),
AUTISM TOGETHER,2075091,11/05/2021,"1,275.01",Adults Care and Health and Strategic Commissioning,S6121,Learning & Disability Support - Adults (18-64),
AUTISM TOGETHER,2075091,11/05/2021,"2,231.26",Adults Care and Health and Strategic Commissioning,S6121,Learning & Disability Support - Adults (18-64),
AUTISM TOGETHER,2075091,11/05/2021,-200.00,Adults Care and Health and Strategic Commissioning,S6121,Learning & Disability Support - Adults (18-64),
AUTISM TOGETHER,2075091,11/05/2021,207.00,Adults Care and Health and Strategic Commissioning,S6121,Learning & Disability Support - Adults (18-64),
AUTISM TOGETHER,2075091,11/05/2021,362.25,Adults Care and Health and Strategic Commissioning,S6121,Learning & Disability Support - Adults (18-64),
AUTISM TOGETHER,2075091,11/05/2021,-112.00,Adults Care and Health and Strategic Commissioning,S6121,Learning & Disability Support - Adults (18-64),
AUTISM TOGETHER,2075091,11/05/2021,115.92,Adults Care and Health and Strategic Commissioning,S6121,Learning & Disability Support - Adults (18-64),
AUTISM TOGETHER,2075091,11/05/2021,202.86,Adults Care and Health and Strategic Commissioning,S6121,Learning & Disability Support - Adults (18-64),
AUTISM TOGETHER,2075092,11/05/2021,"8,547.32",Adults Care and Health and Strategic Commissioning,S6121,Learning & Disability Support - Adults (18-64),
AUTISM TOGETHER,2075092,11/05/2021,"6,600.08",Adults Care and Health and Strategic Commissioning,S6121,Learning & Disability Support - Adults (18-64),
AUTISM TOGETHER,2075092,11/05/2021,"9,874.32",Adults Care and Health and Strategic Commissioning,S6121,Learning & Disability Support - Adults (18-64),
AUTISM TOGETHER,2075092,11/05/2021,"4,665.24",Adults Care and Health and Strategic Commissioning,S6121,Learning & Disability Support - Adults (18-64),
AUTISM TOGETHER,2075092,11/05/2021,"10,842.12",Adults Care and Health and Strategic Commissioning,S6121,Learning & Disability Support - Adults (18-64),
AUTISM TOGETHER,2075092,11/05/2021,"10,813.68",Adults Care and Health and Strategic Commissioning,S6121,Learning & Disability Support - Adults (18-64),
AUTISM TOGETHER,2075092,11/05/2021,"4,280.24",Adults Care and Health and Strategic Commissioning,S6121,Learning & Disability Support - Adults (18-64),
AUTISM TOGETHER,2075092,11/05/2021,"4,756.32",Adults Care and Health and Strategic Commissioning,S6121,Learning & Disability Support - Adults (18-64),
AUTISM TOGETHER,2075092,11/05/2021,"4,433.40",Adults Care and Health and Strategic Commissioning,S6121,Learning & Disability Support - Adults (18-64),
AUTISM TOGETHER,2075092,11/05/2021,"9,164.16",Adults Care and Health and Strategic Commissioning,S6121,Learning & Disability Support - Adults (18-64),
AUTISM TOGETHER,2075092,11/05/2021,"9,678.20",Adults Care and Health and Strategic Commissioning,S6121,Learning & Disability Support - Adults (18-64),
AUTISM TOGETHER,2075092,11/05/2021,"9,807.68",Adults Care and Health and Strategic Commissioning,S6121,Learning & Disability Support - Adults (18-64),
AUTISM TOGETHER,2075092,11/05/2021,"7,741.12",Adults Care and Health and Strategic Commissioning,S6121,Learning & Disability Support - Adults (18-64),
AUTISM TOGETHER,2075092,11/05/2021,"4,280.24",Adults Care and Health and Strategic Commissioning,S6121,Learning & Disability Support - Adults (18-64),
AUTISM TOGETHER,2075092,11/05/2021,"9,381.24",Adults Care and Health and Strategic Commissioning,S6121,Learning & Disability Support - Adults (18-64),
AUTISM TOGETHER,2075092,11/05/2021,"2,616.04",Adults Care and Health and Strategic Commissioning,S6121,Learning & Disability Support - Adults (18-64),
AUTISM TOGETHER,2075092,11/05/2021,"3,622.50",Adults Care and Health and Strategic Commissioning,S6121,Learning & Disability Support - Adults (18-64),
AUTISM TOGETHER,2075092,11/05/2021,762.75,Adults Care and Health and Strategic Commissioning,S6121,Learning & Disability Support - Adults (18-64),
AUTISM TOGETHER,2075092,11/05/2021,"3,913.56",Adults Care and Health and Strategic Commissioning,S6121,Learning & Disability Support - Adults (18-64),
AUTISM TOGETHER,2075092,11/05/2021,"6,522.60",Adults Care and Health and Strategic Commissioning,S6121,Learning & Disability Support - Adults (18-64),
AUTISM TOGETHER,2075091,11/05/2021,"10,671.32",Adults Care and Health and Strategic Commissioning,S6121,Learning & Disability Support - Adults (18-64),
AUTISM TOGETHER,2075091,11/05/2021,"7,443.20",Adults Care and Health and Strategic Commissioning,S6121,Learning & Disability Support - Adults (18-64),
AUTISM TOGETHER,2075091,11/05/2021,"5,658.84",Adults Care and Health and Strategic Commissioning,S6121,Learning & Disability Support - Adults (18-64),
AUTISM TOGETHER,2075091,11/05/2021,"4,862.88",Adults Care and Health and Strategic Commissioning,S6121,Learning & Disability Support - Adults (18-64),
AUTISM TOGETHER,2075091,11/05/2021,"8,925.04",Adults Care and Health and Strategic Commissioning,S6121,Learning & Disability Support - Adults (18-64),
AUTISM TOGETHER,2075091,11/05/2021,"1,449.00",Adults Care and Health and Strategic Commissioning,S6121,Learning & Disability Support - Adults (18-64),
AUTISM TOGETHER,2075091,11/05/2021,811.44,Adults Care and Health and Strategic Commissioning,S6121,Learning & Disability Support - Adults (18-64),
AUTISM TOGETHER,2073979,06/05/2021,"126,307.68",Adults Care and Health and Strategic Commissioning,S6121,Learning & Disability Support - Adults (18-64),
AUTISM TOGETHER,2079030,26/05/2021,"113,140.08",Adults Care and Health and Strategic Commissioning,S6121,Learning & Disability Support - Adults (18-64),
AUTISM TOGETHER,2075092,11/05/2021,-423.00,Adults Care and Health and Strategic Commissioning,S6131,Customer and Client - Community Care,
AUTISM TOGETHER,2075092,11/05/2021,-655.77,Adults Care and Health and Strategic Commissioning,S6131,Learning & Disability Support - Adults (18-64),
AUTISM TOGETHER,2075092,11/05/2021,679.47,Adults Care and Health and Strategic Commissioning,S6131,Learning & Disability Support - Adults (18-64),
AUTISM TOGETHER,2075092,11/05/2021,"1,189.08",Adults Care and Health and Strategic Commissioning,S6131,Learning & Disability Support - Adults (18-64),
AUTISM TOGETHER,2075092,11/05/2021,"-1,147.60",Adults Care and Health and Strategic Commissioning,S6131,Learning & Disability Support - Adults (18-64),
AUTISM TOGETHER,2075092,11/05/2021,"4,756.32",Adults Care and Health and Strategic Commissioning,S6131,Learning & Disability Support - Adults (18-64),
AV PARTS MASTER LIMITED,2078653,25/05/2021,119.00,Resources,F4300,"Equipment, Furniture & Materials",
AVALON,2075094,11/05/2021,-423.00,Adults Care and Health and Strategic Commissioning,S6121,Customer and Client - Community Care,
AVALON,2075094,11/05/2021,"9,250.40",Adults Care and Health and Strategic Commissioning,S6121,Learning & Disability Support - Adults (18-64),
AVALON SCH EDUCATIONAL TRUST,2080685,28/05/2021,"1,979.64","Children, Families & Education",E1170,Services,
AVALON SCH EDUCATIONAL TRUST,2080685,28/05/2021,"1,578.02","Children, Families & Education",E1170,Services,
AYNSLEY NURSING HOME,2075095,11/05/2021,-898.29,Adults Care and Health and Strategic Commissioning,S6132,Physical Support - Older People (65+),
AYNSLEY NURSING HOME,2075095,11/05/2021,-524.00,Adults Care and Health and Strategic Commissioning,S6132,Physical Support - Older People (65+),
AYNSLEY NURSING HOME,2075095,11/05/2021,"-1,572.00",Adults Care and Health and Strategic Commissioning,S6132,Physical Support - Older People (65+),
AYNSLEY NURSING HOME,2075095,11/05/2021,"1,936.00",Adults Care and Health and Strategic Commissioning,S6142,Memory & Cognition Support - Older People (65+),
AYNSLEY NURSING HOME,2075095,11/05/2021,"2,096.00",Adults Care and Health and Strategic Commissioning,S6142,Memory & Cognition Support - Older People (65+),
AYNSLEY NURSING HOME,2075095,11/05/2021,"2,096.00",Adults Care and Health and Strategic Commissioning,S6142,Physical Support - Older People (65+),
AYNSLEY NURSING HOME,2075095,11/05/2021,"2,096.00",Adults Care and Health and Strategic Commissioning,S6142,Physical Support - Older People (65+),
AYNSLEY NURSING HOME,2075095,11/05/2021,"2,096.00",Adults Care and Health and Strategic Commissioning,S6142,Physical Support - Older People (65+),
AYNSLEY NURSING HOME,2075095,11/05/2021,"1,936.00",Adults Care and Health and Strategic Commissioning,S6142,Physical Support - Older People (65+),
AYNSLEY NURSING HOME,2075095,11/05/2021,"2,096.00",Adults Care and Health and Strategic Commissioning,S6142,Physical Support - Older People (65+),
AYNSLEY NURSING HOME,2075095,11/05/2021,"2,096.00",Adults Care and Health and Strategic Commissioning,S6142,Physical Support - Older People (65+),
AYNSLEY NURSING HOME,2075095,11/05/2021,"1,936.00",Adults Care and Health and Strategic Commissioning,S6142,Physical Support - Older People (65+),
AYNSLEY NURSING HOME,2075095,11/05/2021,748.57,Adults Care and Health and Strategic Commissioning,S6142,Physical Support - Older People (65+),
AYNSLEY NURSING HOME,2075095,11/05/2021,"2,096.00",Adults Care and Health and Strategic Commissioning,S6142,Physical Support - Older People (65+),
AYNSLEY NURSING HOME,2075095,11/05/2021,"1,936.00",Adults Care and Health and Strategic Commissioning,S6142,Physical Support - Older People (65+),
AYNSLEY NURSING HOME,2075095,11/05/2021,748.57,Adults Care and Health and Strategic Commissioning,S6998,Physical Support - Older People (65+),
B & M SUPPLIES,2077123,17/05/2021,143.52,"Children, Families & Education",E6763,"Equipment, Furniture & Materials",
B I R C C LIMITED,2078655,25/05/2021,"13,008.00",Adults Care and Health and Strategic Commissioning,S6121,Learning & Disability Support - Adults (18-64),
B I R C C LIMITED,2074479,10/05/2021,"62,166.40",Adults Care and Health and Strategic Commissioning,S6121,Memory & Cognition Support - Adults (18-64),
B L ROCK FERRY LIMITED T/A THE BLACK LIONS,2077379,18/05/2021,"5,390.00",Regeneration & Place,H6080,Expenses,
B L ROCK FERRY LIMITED T/A THE BLACK LIONS,2080686,28/05/2021,"5,390.00",Regeneration & Place,H6080,Expenses,
B L ROCK FERRY LIMITED T/A THE BLACK LIONS,2080686,28/05/2021,"5,390.00",Regeneration & Place,H6080,Expenses,
B L ROCK FERRY LIMITED T/A THE BLACK LIONS,2075096,11/05/2021,"5,390.00",Regeneration & Place,H6080,Expenses,
B L ROCK FERRY LIMITED T/A THE BLACK LIONS,2075096,11/05/2021,"5,390.00",Regeneration & Place,H6080,Expenses,
B L ROCK FERRY LIMITED T/A THE BLACK LIONS,2075096,11/05/2021,"5,390.00",Regeneration & Place,H6080,Expenses,
B L ROCK FERRY LIMITED T/A THE BLACK LIONS,2075096,11/05/2021,"5,390.00",Regeneration & Place,H6080,Expenses,
B.I.T.S (BRITISH & INTERNATIONAL TYRE SUPPLIES),2075794,13/05/2021,120.00,Neighbourhood Services,L4001,Direct Transport Costs,
BACKCARE SOLUTIONS LTD,2073722,05/05/2021,182.50,Neighbourhood Services,F5150,Communications & Computing,
BAGNALL & MORRIS WASTE SERVICES LTD,2075502,12/05/2021,"3,285.99",Regeneration & Place,D3310,Cleaning & Domestic Supplies,
BAGNALL & MORRIS WASTE SERVICES LTD,2075502,12/05/2021,"1,733.10",Regeneration & Place,D3310,Cleaning & Domestic Supplies,
BAGNALL & MORRIS WASTE SERVICES LTD,2076678,14/05/2021,"2,961.99",Regeneration & Place,D4040,Cleaning & Domestic Supplies,
BAGNALL & MORRIS WASTE SERVICES LTD,2076678,14/05/2021,477.76,Regeneration & Place,D4040,Cleaning & Domestic Supplies,
BARCHESTER HEALTHCARE LIMITED,2075099,11/05/2021,"1,936.00",Adults Care and Health and Strategic Commissioning,S6131,Physical Support - Older People (65+),
BARCHESTER HEALTHCARE LIMITED,2075099,11/05/2021,"1,382.86",Adults Care and Health and Strategic Commissioning,S6141,Physical Support - Older People (65+),
BARCHESTER HEALTHCARE LIMITED,2075099,11/05/2021,"1,936.00",Adults Care and Health and Strategic Commissioning,S6141,Physical Support - Older People (65+),
BARCHESTER HEALTHCARE LIMITED,2075099,11/05/2021,"1,175.43",Adults Care and Health and Strategic Commissioning,S6998,Physical Support - Older People (65+),
BARCODE F C,231617,14/05/2021,213.00,Balance Sheet,00000,Debtors - Other Entities and Individuals,
BARNARDO'S,2073352,04/05/2021,"3,211.07","Children, Families & Education",E7080,Care Provision,
BARNARDO'S,2073352,04/05/2021,"3,201.00","Children, Families & Education",E7080,Care Provision,
BARNARDO'S,2073352,04/05/2021,"3,300.00","Children, Families & Education",E7080,Care Provision,
BARNARDO'S,2073352,04/05/2021,"3,300.00","Children, Families & Education",E7080,Care Provision,
BARNARDO'S,2077914,20/05/2021,"3,318.11","Children, Families & Education",E7080,Care Provision,
BARNARDO'S,2077914,20/05/2021,"3,307.70","Children, Families & Education",E7080,Care Provision,
BARNARDO'S,2077914,20/05/2021,"3,410.00","Children, Families & Education",E7080,Care Provision,
BARNARDO'S,2077914,20/05/2021,"3,410.00","Children, Families & Education",E7080,Care Provision,
BARNARDO'S,2077668,19/05/2021,"4,523.10","Children, Families & Education",E7080,Care Provision,
BARNARDO'S,2077668,19/05/2021,"4,676.40","Children, Families & Education",E7080,Care Provision,
BARNSTON BUDDIES,2080688,28/05/2021,405.60,"Children, Families & Education",E1170,Services,
BARNSTON BUDDIES,2080688,28/05/2021,"9,227.32","Children, Families & Education",E1170,Services,
BARNSTON BUDDIES,2080688,28/05/2021,"8,183.94","Children, Families & Education",E1170,Services,
BARNSTON BUDDIES,2075799,13/05/2021,125.00,"Children, Families & Education",E3020,Contributions,
BARRETTINE,2075503,12/05/2021,401.39,Neighbourhood Services,H2110,"Equipment, Furniture & Materials",
BARRETTINE,2077380,18/05/2021,257.22,Neighbourhood Services,H2110,"Equipment, Furniture & Materials",
BATHGATE SILICA SAND LIMITED,2074241,07/05/2021,352.17,Neighbourhood Services,L4002,Grounds Maintenance,
BB PLUMBING & HEATING,2073983,06/05/2021,"3,600.00",RE  Housing & Community Safety,C4215,Expenditure on Capital Loans,
BEARMORE LIFTING SERVICES LIMITED,2077670,19/05/2021,290.00,Neighbourhood Services,T4020,"Repairs, alterations and maintenance",
BEBINGTON CHILDMINDERS-TERRI JONES,2080690,28/05/2021,469.63,"Children, Families & Education",E1170,Services,
BEBINGTON CHILDMINDING - NICOLA FAIRHURST,2080691,28/05/2021,319.80,"Children, Families & Education",E1170,Services,
BEBINGTON CHILDMINDING - NICOLA FAIRHURST,2080691,28/05/2021,319.80,"Children, Families & Education",E1170,Services,
BEBINGTON DISTRICT SCOUT COUNCIL *002,2073984,06/05/2021,"5,000.00",Covid,H4100,Grants to Voluntary Organisations,
BEBINGTON PARISH CHURCH,2077126,17/05/2021,2.20,Law & Governance (Monitoring Officer),A4000,Services,
BEBINGTON PRESCHOOL PLAYGROUP,2080692,28/05/2021,"1,935.90","Children, Families & Education",E1170,Services,
BEBINGTON PRESCHOOL PLAYGROUP,2080692,28/05/2021,"3,327.74","Children, Families & Education",E1170,Services,
BECKYS HOME DAY CARE - REBECCA JOHNSON,2080693,28/05/2021,319.80,"Children, Families & Education",E1170,Services,
BEDSPACE RESOURCE LIMITED,2077915,20/05/2021,200.00,"Children, Families & Education",E7033,Care Provision,
BEDSPACE RESOURCE LIMITED,2077915,20/05/2021,"12,552.40","Children, Families & Education",E7080,Contributions,
BEDSPACE RESOURCE LIMITED,2078140,21/05/2021,70.00,"Children, Families & Education",E7052,Grants Paid,
BEE WIRRAL CIC,2073985,06/05/2021,500.00,Covid,H4100,Grants to Voluntary Organisations,
BEE WIRRAL CIC,2075100,11/05/2021,"2,400.00","Children, Families & Education",E6150,Hired or Contracted services,
BEECHWOOD (LIVERPOOL) LIMITED,2075101,11/05/2021,-354.60,Adults Care and Health and Strategic Commissioning,S6142,Customer and Client - Community Care,
BEECHWOOD (LIVERPOOL) LIMITED,2075101,11/05/2021,"5,154.44",Adults Care and Health and Strategic Commissioning,S6142,Mental Health Support - Adults (18-64),
BEECHWOOD (LIVERPOOL) LIMITED,2075101,11/05/2021,"5,454.80",Adults Care and Health and Strategic Commissioning,S6167,Mental Health Support - Older People (65+),
BEERS TIMBER & BUILDING SUPPLIES LIMITED,2075801,13/05/2021,"1,031.25",Neighbourhood Services,V1920,"Equipment, Furniture & Materials",
BEES DIALECT,2077381,18/05/2021,"1,032.70","Children, Families & Education",E6841,Care Provision,
BELL CONTRACTS LIMITED,2074243,07/05/2021,"5,967.00",RE  Housing & Community Safety,C4115,Expenditure on Capital Grants,
BELL CONTRACTS LIMITED,2076680,14/05/2021,300.00,RE  Housing & Community Safety,C4117,Expenditure on Capital Grants,
BELVIDERE NURSING HOME,2075102,11/05/2021,"2,096.00",Adults Care and Health and Strategic Commissioning,S6132,Physical Support - Adults (18-64),
BELVIDERE NURSING HOME,2075102,11/05/2021,"2,096.00",Adults Care and Health and Strategic Commissioning,S6132,Physical Support - Older People (65+),
BELVIDERE NURSING HOME,2075102,11/05/2021,968.00,Adults Care and Health and Strategic Commissioning,S6132,Physical Support - Older People (65+),
BELVIDERE NURSING HOME,2075102,11/05/2021,"2,096.00",Adults Care and Health and Strategic Commissioning,S6141,Physical Support - Older People (65+),
BELVIDERE NURSING HOME,2075102,11/05/2021,"2,096.00",Adults Care and Health and Strategic Commissioning,S6142,Mental Health Support - Older People (65+),
BELVIDERE NURSING HOME,2075102,11/05/2021,"2,096.00",Adults Care and Health and Strategic Commissioning,S6142,Physical Support - Older People (65+),
BELVIDERE NURSING HOME,2075102,11/05/2021,"2,096.00",Adults Care and Health and Strategic Commissioning,S6142,Physical Support - Older People (65+),
BELVIDERE NURSING HOME,2075102,11/05/2021,"2,096.00",Adults Care and Health and Strategic Commissioning,S6142,Physical Support - Older People (65+),
BELVIDERE NURSING HOME,2075102,11/05/2021,"2,096.00",Adults Care and Health and Strategic Commissioning,S6142,Physical Support - Older People (65+),
BELVIDERE NURSING HOME,2075102,11/05/2021,"2,096.00",Adults Care and Health and Strategic Commissioning,S6142,Physical Support - Older People (65+),
BELVIDERE NURSING HOME,2075102,11/05/2021,"2,096.00",Adults Care and Health and Strategic Commissioning,S6142,Physical Support - Older People (65+),
BELVIDERE NURSING HOME,2075102,11/05/2021,-39.51,Adults Care and Health and Strategic Commissioning,S6142,Physical Support - Older People (65+),
BELVIDERE NURSING HOME,2075102,11/05/2021,"2,096.00",Adults Care and Health and Strategic Commissioning,S6142,Sensory Support - Older People (65+),
BELVIDERE NURSING HOME,2075102,11/05/2021,"1,572.00",Adults Care and Health and Strategic Commissioning,S6998,Physical Support - Older People (65+),
BELVIDERE NURSING HOME,2075102,11/05/2021,"1,197.71",Adults Care and Health and Strategic Commissioning,S6998,Physical Support - Older People (65+),
BELVIDERE NURSING HOME,2075102,11/05/2021,"1,497.14",Adults Care and Health and Strategic Commissioning,S6998,Physical Support - Older People (65+),
BELVIDERE NURSING HOME,2075102,11/05/2021,"1,422.29",Adults Care and Health and Strategic Commissioning,S6998,Physical Support - Older People (65+),
BELVIDERE NURSING HOME,2075102,11/05/2021,"1,422.29",Adults Care and Health and Strategic Commissioning,S6998,Physical Support - Older People (65+),
BENSASSON & CHALMERS LIMITED,2075103,11/05/2021,"6,005.32",Regeneration & Place,D2000,Communications & Computing,
BENTY HEATH KINDERGARTEN,2080695,28/05/2021,"1,015.71","Children, Families & Education",E1170,Services,
BENTY HEATH KINDERGARTEN,2080695,28/05/2021,397.80,"Children, Families & Education",E1170,Services,
BESTCO LIMITED,2073356,04/05/2021,789.60,Neighbourhood Services,L3290,"Equipment, Furniture & Materials",
BESTCO LIMITED,2076682,14/05/2021,68.39,Neighbourhood Services,L3320,"Repairs, alterations and maintenance",
BESTCO LIMITED,2075105,11/05/2021,15.30,Neighbourhood Services,T4020,"Equipment, Furniture & Materials",
BESTCO LIMITED,2075105,11/05/2021,66.06,Neighbourhood Services,T4020,"Equipment, Furniture & Materials",
BESTCO LIMITED,2075105,11/05/2021,20.98,Neighbourhood Services,T4020,"Equipment, Furniture & Materials",
BESTCO LIMITED,2080460,27/05/2021,"3,036.94",Neighbourhood Services,V1920,"Equipment, Furniture & Materials",
BGC,2075504,12/05/2021,"2,123.29",Resources,F8000,Debt Managment,
BIDDYAVE BUDDIES,2080696,28/05/2021,"7,042.23","Children, Families & Education",E1170,Services,
BIDDYAVE BUDDIES,2080696,28/05/2021,"2,815.80","Children, Families & Education",E1170,Services,
BIDSTON ROVERS JFC,2078404,24/05/2021,170.00,Balance Sheet,00000,Debtors - Other Entities and Individuals,
BIFFA WASTE SERVICES,2074491,10/05/2021,"14,296.96",RE  Environment & Regulation,C5407,Contractors - Main,
BIFFA WASTE SERVICES,2078405,24/05/2021,403.36,Regeneration & Place,D2402,"Equipment, Furniture & Materials",
BIFFA WASTE SERVICES,2079059,26/05/2021,363.13,Regeneration & Place,D2550,"Equipment, Furniture & Materials",
BIFFA WASTE SERVICES,2079059,26/05/2021,181.83,Neighbourhood Services,D3503,"Equipment, Furniture & Materials",
BIFFA WASTE SERVICES,2079059,26/05/2021,60.61,Neighbourhood Services,D3520,"Equipment, Furniture & Materials",
BIFFA WASTE SERVICES,2079059,26/05/2021,242.44,Regeneration & Place,D3544,"Equipment, Furniture & Materials",
BIFFA WASTE SERVICES,2077673,19/05/2021,384.16,"Children, Families & Education",E1420,Cleaning & Domestic Supplies,
BIFFA WASTE SERVICES,2074491,10/05/2021,"8,465.67",Neighbourhood Services,H2930,Waste Service Provider,
BIFFA WASTE SERVICES,2074491,10/05/2021,"17,243.22",Neighbourhood Services,H2940,Waste Service Provider,
BIFFA WASTE SERVICES,2074491,10/05/2021,"1,334.91",Neighbourhood Services,H2940,Waste Service Provider,
BIFFA WASTE SERVICES,2074491,10/05/2021,"17,194.68",Neighbourhood Services,H2940,Waste Service Provider,
BIFFA WASTE SERVICES,2074491,10/05/2021,"896,879.23",Neighbourhood Services,H2940,Waste Service Provider,
BIFFA WASTE SERVICES,2075505,12/05/2021,"12,698.69",Neighbourhood Services,H3140,Waste Service Provider,
BIFFA WASTE SERVICES,2077127,17/05/2021,"5,010.00",Covid,H4100,Waste Service Provider,
BIFFA WASTE SERVICES,2074491,10/05/2021,"16,876.80",Covid,H4138,Waste Service Provider,
BIFFA WASTE SERVICES,2074491,10/05/2021,"11,457.60",Covid,H4138,Waste Service Provider,
BIFFA WASTE SERVICES,2074491,10/05/2021,"14,217.60",Covid,H4138,Waste Service Provider,
BIFFA WASTE SERVICES,2074491,10/05/2021,"3,139.44",Covid,H4138,Waste Service Provider,
BIFFA WASTE SERVICES,2074491,10/05/2021,"12,940.80",Covid,H4138,Waste Service Provider,
BIFFA WASTE SERVICES,2074491,10/05/2021,"13,702.40",Covid,H4138,Waste Service Provider,
BIFFA WASTE SERVICES,2074491,10/05/2021,"17,080.00",Covid,H4138,Waste Service Provider,
BIFFA WASTE SERVICES,2075505,12/05/2021,"8,549.04",Covid,H4152,Waste Service Provider,
BIFFA WASTE SERVICES,2078405,24/05/2021,363.66,Neighbourhood Services,L3190,"Equipment, Furniture & Materials",
BIFFA WASTE SERVICES,2078405,24/05/2021,363.66,Neighbourhood Services,L3320,"Equipment, Furniture & Materials",
BIFFA WASTE SERVICES,2078405,24/05/2021,60.61,Neighbourhood Services,L5330,"Equipment, Furniture & Materials",
BIRKENHEAD DRIVING SCHOOL LIMITED,2074493,10/05/2021,475.00,"Children, Families & Education",E7052,16 Plus Non Accommodation,
BIRKENHEAD DRIVING SCHOOL LIMITED,2077919,20/05/2021,475.00,"Children, Families & Education",E7052,16 Plus Non Accommodation,
BIRKENHEAD HIGH SCHOOL ACADEMY,2073358,04/05/2021,208.09,"Children, Families & Education",E3680,Educational Provider,
BIRKENHEAD PREPARATORY SCHOOL,2080698,28/05/2021,"10,149.82","Children, Families & Education",E1170,Services,
BIRKENHEAD PREPARATORY SCHOOL,2080698,28/05/2021,"10,294.13","Children, Families & Education",E1170,Services,
BIRKENHEAD PRIORY PARISH CHURCH COUNCIL,2075813,13/05/2021,"5,000.00",Covid,H4153,Grants to Voluntary Organisations,
BIRKENHEAD PRIORY PARISH CHURCH COUNCIL,2076684,14/05/2021,"4,700.00",Covid,H4100,Grants to Voluntary Organisations,
BIRKENHEAD YMCA,2076685,14/05/2021,"31,895.64",Regeneration & Place,H7180,General Supplies and Services,
BIRKENHEAD YMCA,2076685,14/05/2021,"7,752.54",Regeneration & Place,H7180,General Supplies and Services,
BIRKENHEAD YMCA,2076685,14/05/2021,"40,951.39",Regeneration & Place,H7180,Grants Paid,
BIRKENHEAD YOUTH F C,231660,18/05/2021,721.00,Balance Sheet,00000,Debtors - Other Entities and Individuals,
BIRTENSHAW,2079063,26/05/2021,"3,092.44","Children, Families & Education",E5870,Specialist Contracts & Fees,
BIRTENSHAW,2079063,26/05/2021,"2,072.14","Children, Families & Education",E5944,Specialist Contracts & Fees,
BIRTENSHAW,2080699,28/05/2021,"20,187.41","Children, Families & Education",E7080,Care Provision,
BIRTENSHAW,2080699,28/05/2021,"20,730.66","Children, Families & Education",E7080,Care Provision,
BIRTENSHAW,2075109,11/05/2021,385.50,Adults Care and Health and Strategic Commissioning,S6121,Learning & Disability Support - Adults (18-64),
BIRTENSHAW,2075109,11/05/2021,385.50,Adults Care and Health and Strategic Commissioning,S6121,Learning & Disability Support - Adults (18-64),
BIRTENSHAW,2078661,25/05/2021,"78,804.16",Adults Care and Health and Strategic Commissioning,S6121,Learning & Disability Support - Adults (18-64),
BIRTENSHAW,2078661,25/05/2021,"1,058.96",Adults Care and Health and Strategic Commissioning,S6121,Learning & Disability Support - Adults (18-64),
BIRTENSHAW,2078661,25/05/2021,"12,486.25",Adults Care and Health and Strategic Commissioning,S6121,Learning & Disability Support - Adults (18-64),
BJ CONSULTING T/A RADICS,2073359,04/05/2021,"4,950.00",RE  Housing & Community Safety,C6855,Legal Charges,
BLUEBELLS DAY NURSERY,2080700,28/05/2021,608.40,"Children, Families & Education",E1170,Services,
BLUEBELLS DAY NURSERY,2080700,28/05/2021,"5,637.84","Children, Families & Education",E1170,Services,
BLUEBELLS DAY NURSERY,2080700,28/05/2021,"2,078.70","Children, Families & Education",E1170,Services,
BLUEBELLS DAY NURSERY LTD,2080701,28/05/2021,811.20,"Children, Families & Education",E1170,Services,
BLUEBELLS DAY NURSERY LTD,2080701,28/05/2021,"4,401.54","Children, Families & Education",E1170,Services,
BLUEBELLS DAY NURSERY LTD,2080701,28/05/2021,"2,465.97","Children, Families & Education",E1170,Services,
BNR AGENCY LIMITED,2077129,17/05/2021,"64,968.45",Adults Care and Health and Strategic Commissioning,S6121,Learning & Disability Support - Adults (18-64),
BOC LIMITED,2076688,14/05/2021,45.60,Neighbourhood Services,L3950,Catering,
BOC LIMITED,2075507,12/05/2021,"1,444.20",Neighbourhood Services,V1920,"Equipment, Furniture & Materials",
BONDCARE WILLINGTON LIMITED,2075110,11/05/2021,"2,096.00",Adults Care and Health and Strategic Commissioning,S6121,Learning & Disability Support - Adults (18-64),
BONDCARE WILLINGTON LIMITED,2075110,11/05/2021,"2,160.00",Adults Care and Health and Strategic Commissioning,S6131,Memory & Cognition Support - Older People (65+),
BONDCARE WILLINGTON LIMITED,2075110,11/05/2021,"2,160.00",Adults Care and Health and Strategic Commissioning,S6131,Memory & Cognition Support - Older People (65+),
BONDCARE WILLINGTON LIMITED,2075110,11/05/2021,160.00,Adults Care and Health and Strategic Commissioning,S6131,Memory & Cognition Support - Older People (65+),
BONDCARE WILLINGTON LIMITED,2075110,11/05/2021,"2,168.00",Adults Care and Health and Strategic Commissioning,S6131,Memory & Cognition Support - Older People (65+),
BONDCARE WILLINGTON LIMITED,2075110,11/05/2021,"2,168.00",Adults Care and Health and Strategic Commissioning,S6131,Mental Health Support - Older People (65+),
BONDCARE WILLINGTON LIMITED,2075110,11/05/2021,"2,160.00",Adults Care and Health and Strategic Commissioning,S6131,Physical Support - Older People (65+),
BONDCARE WILLINGTON LIMITED,2075110,11/05/2021,"1,936.00",Adults Care and Health and Strategic Commissioning,S6131,Physical Support - Older People (65+),
BONDCARE WILLINGTON LIMITED,2075110,11/05/2021,"2,160.00",Adults Care and Health and Strategic Commissioning,S6131,Physical Support - Older People (65+),
BONDCARE WILLINGTON LIMITED,2075110,11/05/2021,"2,096.00",Adults Care and Health and Strategic Commissioning,S6131,Physical Support - Older People (65+),
BONDCARE WILLINGTON LIMITED,2075110,11/05/2021,400.00,Adults Care and Health and Strategic Commissioning,S6131,Physical Support - Older People (65+),
BONDCARE WILLINGTON LIMITED,2075110,11/05/2021,"2,160.00",Adults Care and Health and Strategic Commissioning,S6131,Physical Support - Older People (65+),
BONDCARE WILLINGTON LIMITED,2075110,11/05/2021,"2,096.00",Adults Care and Health and Strategic Commissioning,S6131,Physical Support - Older People (65+),
BONDCARE WILLINGTON LIMITED,2075110,11/05/2021,"2,096.00",Adults Care and Health and Strategic Commissioning,S6131,Physical Support - Older People (65+),
BONDCARE WILLINGTON LIMITED,2075110,11/05/2021,449.14,Adults Care and Health and Strategic Commissioning,S6131,Physical Support - Older People (65+),
BONDCARE WILLINGTON LIMITED,2075110,11/05/2021,"2,160.00",Adults Care and Health and Strategic Commissioning,S6131,Sensory Support - Older People (65+),
BONDCARE WILLINGTON LIMITED,2075110,11/05/2021,"2,160.00",Adults Care and Health and Strategic Commissioning,S6132,Memory & Cognition Support - Older People (65+),
BONDCARE WILLINGTON LIMITED,2075110,11/05/2021,"2,160.00",Adults Care and Health and Strategic Commissioning,S6132,Mental Health Support - Older People (65+),
BONDCARE WILLINGTON LIMITED,2075110,11/05/2021,"2,168.00",Adults Care and Health and Strategic Commissioning,S6132,Mental Health Support - Older People (65+),
BONDCARE WILLINGTON LIMITED,2075110,11/05/2021,"2,096.00",Adults Care and Health and Strategic Commissioning,S6132,Physical Support - Adults (18-64),
BONDCARE WILLINGTON LIMITED,2075110,11/05/2021,"2,168.00",Adults Care and Health and Strategic Commissioning,S6132,Physical Support - Older People (65+),
BONDCARE WILLINGTON LIMITED,2075110,11/05/2021,750.40,Adults Care and Health and Strategic Commissioning,S6132,Physical Support - Older People (65+),
BONDCARE WILLINGTON LIMITED,2075110,11/05/2021,"2,168.00",Adults Care and Health and Strategic Commissioning,S6132,Physical Support - Older People (65+),
BONDCARE WILLINGTON LIMITED,2075110,11/05/2021,"2,168.00",Adults Care and Health and Strategic Commissioning,S6132,Physical Support - Older People (65+),
BONDCARE WILLINGTON LIMITED,2075110,11/05/2021,"2,160.00",Adults Care and Health and Strategic Commissioning,S6132,Physical Support - Older People (65+),
BONDCARE WILLINGTON LIMITED,2075110,11/05/2021,149.71,Adults Care and Health and Strategic Commissioning,S6132,Physical Support - Older People (65+),
BONDCARE WILLINGTON LIMITED,2075110,11/05/2021,"1,935.71",Adults Care and Health and Strategic Commissioning,S6132,Physical Support - Older People (65+),
BONDCARE WILLINGTON LIMITED,2075110,11/05/2021,"2,168.00",Adults Care and Health and Strategic Commissioning,S6132,Physical Support - Older People (65+),
BONDCARE WILLINGTON LIMITED,2075110,11/05/2021,"2,168.00",Adults Care and Health and Strategic Commissioning,S6132,Physical Support - Older People (65+),
BONDCARE WILLINGTON LIMITED,2075110,11/05/2021,"2,096.00",Adults Care and Health and Strategic Commissioning,S6141,Memory & Cognition Support - Older People (65+),
BONDCARE WILLINGTON LIMITED,2075110,11/05/2021,"2,096.00",Adults Care and Health and Strategic Commissioning,S6141,Mental Health Support - Older People (65+),
BONDCARE WILLINGTON LIMITED,2075110,11/05/2021,"2,096.00",Adults Care and Health and Strategic Commissioning,S6141,Physical Support - Older People (65+),
BONDCARE WILLINGTON LIMITED,2075110,11/05/2021,"1,936.00",Adults Care and Health and Strategic Commissioning,S6141,Physical Support - Older People (65+),
BONDCARE WILLINGTON LIMITED,2075110,11/05/2021,"2,168.00",Adults Care and Health and Strategic Commissioning,S6142,Mental Health Support - Older People (65+),
BONDCARE WILLINGTON LIMITED,2075110,11/05/2021,"2,168.00",Adults Care and Health and Strategic Commissioning,S6167,Memory & Cognition Support - Older People (65+),
BONDCARE WILLINGTON LIMITED,2075110,11/05/2021,"2,168.00",Adults Care and Health and Strategic Commissioning,S6167,Memory & Cognition Support - Older People (65+),
BONDCARE WILLINGTON LIMITED,2075110,11/05/2021,"2,168.00",Adults Care and Health and Strategic Commissioning,S6167,Mental Health Support - Older People (65+),
BONDCARE WILLINGTON LIMITED,2075110,11/05/2021,"2,160.00",Adults Care and Health and Strategic Commissioning,S6167,Mental Health Support - Older People (65+),
BONDCARE WILLINGTON LIMITED,2075110,11/05/2021,"2,168.00",Adults Care and Health and Strategic Commissioning,S6167,Physical Support - Older People (65+),
BONDCARE WILLINGTON LIMITED,2075110,11/05/2021,"2,168.00",Adults Care and Health and Strategic Commissioning,S6998,Physical Support - Older People (65+),
BONDCARE WILLINGTON LIMITED,2075110,11/05/2021,"1,935.71",Adults Care and Health and Strategic Commissioning,S6998,Physical Support - Older People (65+),
BONDCARE WILLINGTON LIMITED,2075110,11/05/2021,"4,080.00",Adults Care and Health and Strategic Commissioning,S6998,Physical Support - Older People (65+),
BONDCARE WILLINGTON LIMITED,2075110,11/05/2021,"1,632.00",Adults Care and Health and Strategic Commissioning,S6998,Physical Support - Older People (65+),
BONDCARE WILLINGTON LIMITED,2075110,11/05/2021,"3,468.00",Adults Care and Health and Strategic Commissioning,S6998,Physical Support - Older People (65+),
BONDCARE WILLINGTON LIMITED,2075110,11/05/2021,"1,428.00",Adults Care and Health and Strategic Commissioning,S6998,Physical Support - Older People (65+),
BONDCARE WILLINGTON LIMITED,2075110,11/05/2021,956.16,Adults Care and Health and Strategic Commissioning,S6998,Physical Support - Older People (65+),
BONDCARE WILLINGTON LIMITED,2075110,11/05/2021,"5,712.00",Adults Care and Health and Strategic Commissioning,S6998,Physical Support - Older People (65+),
BONDCARE WILLINGTON LIMITED,2075110,11/05/2021,848.57,Adults Care and Health and Strategic Commissioning,S6998,Physical Support - Older People (65+),
BOO'S HOUSE CHILDMINDING-AIMEE SACKER/LAURA WILLIAMSON,2080702,28/05/2021,202.80,"Children, Families & Education",E1170,Services,
BOO'S HOUSE CHILDMINDING-AIMEE SACKER/LAURA WILLIAMSON,2080702,28/05/2021,"1,279.20","Children, Families & Education",E1170,Services,
BRANDON HIRE STATION,2073361,04/05/2021,42.46,Neighbourhood Services,V1920,"Equipment, Furniture & Materials",
BRANDON HIRE STATION,2073361,04/05/2021,69.31,Neighbourhood Services,V1920,"Equipment, Furniture & Materials",
BRANDON HIRE STATION,2073361,04/05/2021,48.58,Neighbourhood Services,V1920,"Equipment, Furniture & Materials",
BRANDON HIRE STATION,2073361,04/05/2021,124.55,Neighbourhood Services,V1920,"Equipment, Furniture & Materials",
BREAK THE MOULD ORGANISATION CIC,2077389,18/05/2021,"4,350.00",Covid,H4153,Grants to Voluntary Organisations,
BRENNTAG UK LIMITED,2079067,26/05/2021,96.51,Neighbourhood Services,L3240,"Equipment, Furniture & Materials",
BRIDGING THE GAP CONSULTANCY LIMITED,2078147,21/05/2021,"3,927.00","Children, Families & Education",E7041,Care Provision,
BRIDGING THE WALLASEY GAP,2075818,13/05/2021,"5,000.00",Covid,H4153,Grants to Voluntary Organisations,
BRIGHT FUTURES CARE LIMITED,2080704,28/05/2021,"27,368.57","Children, Families & Education",E7080,Care Provision,
BRIGHT SMILES DAY NURSERY,2080705,28/05/2021,811.20,"Children, Families & Education",E1170,Services,
BRIGHT SMILES DAY NURSERY,2080705,28/05/2021,"1,979.64","Children, Families & Education",E1170,Services,
BRIGHT SMILES DAY NURSERY,2080705,28/05/2021,"1,016.65","Children, Families & Education",E1170,Services,
BRIGHT STARS CHILDCARE - CHARLOTTE TULLETT,2080706,28/05/2021,608.40,"Children, Families & Education",E1170,Services,
BRIGHT STARS CHILDCARE - CHARLOTTE TULLETT,2080706,28/05/2021,497.25,"Children, Families & Education",E1170,Services,
BRITISH GAS BUSINESS,2078663,25/05/2021,17.73,Regeneration & Place,D4040,Energy Costs,
BRITISH GAS BUSINESS,2078663,25/05/2021,31.19,Regeneration & Place,D4040,Energy Costs,
BRITISH GAS BUSINESS,2078663,25/05/2021,9.78,Regeneration & Place,D4040,Energy Costs,
BRITISH GAS BUSINESS,2078663,25/05/2021,9.91,Regeneration & Place,D4040,Energy Costs,
BRITISH GAS BUSINESS,2078663,25/05/2021,10.49,Regeneration & Place,D4040,Energy Costs,
BRITISH GAS BUSINESS,2078663,25/05/2021,48.84,Regeneration & Place,D4040,Energy Costs,
BRITISH GAS BUSINESS,2078663,25/05/2021,15.95,Regeneration & Place,D4040,Energy Costs,
BRITISH GAS BUSINESS,2078663,25/05/2021,11.23,Regeneration & Place,D4040,Energy Costs,
BRITISH GAS BUSINESS,2078663,25/05/2021,10.36,Regeneration & Place,D4040,Energy Costs,
BRITISH GAS BUSINESS,2073363,04/05/2021,9.91,Regeneration & Place,D4040,Energy Costs,
BRITISH GAS BUSINESS,2073363,04/05/2021,12.73,Regeneration & Place,D4040,Energy Costs,
BRITISH GAS BUSINESS,2073363,04/05/2021,13.10,Regeneration & Place,D4040,Energy Costs,
BRITISH GAS BUSINESS,2073728,05/05/2021,14.12,Regeneration & Place,D4040,Energy Costs,
BRITISH GAS BUSINESS,2075509,12/05/2021,8.63,Regeneration & Place,D4040,Energy Costs,
BRITISH GAS BUSINESS,2075509,12/05/2021,10.22,Regeneration & Place,D4040,Energy Costs,
BRITISH GAS BUSINESS,2075509,12/05/2021,10.42,Regeneration & Place,D4040,Energy Costs,
BRITISH GAS BUSINESS,2075509,12/05/2021,15.14,Regeneration & Place,D4040,Energy Costs,
BRITISH GAS BUSINESS,2075509,12/05/2021,9.91,Regeneration & Place,D4040,Energy Costs,
BRITISH GAS BUSINESS,2075509,12/05/2021,10.11,Regeneration & Place,D4040,Energy Costs,
BRITISH GAS BUSINESS,2075509,12/05/2021,18.97,Regeneration & Place,D4040,Energy Costs,
BRITISH GAS BUSINESS,2075509,12/05/2021,8.95,Regeneration & Place,D4040,Energy Costs,
BRITISH GAS BUSINESS,2075509,12/05/2021,9.91,Regeneration & Place,D4040,Energy Costs,
BRITISH GAS BUSINESS,2075509,12/05/2021,5.24,Regeneration & Place,D4040,Energy Costs,
BRITISH GAS BUSINESS,2075509,12/05/2021,8.63,Regeneration & Place,D4040,Energy Costs,
BRITISH GAS BUSINESS,2075509,12/05/2021,9.91,Regeneration & Place,D4040,Energy Costs,
BRITISH GAS BUSINESS,2075509,12/05/2021,9.91,Regeneration & Place,D4040,Energy Costs,
BRITISH GAS BUSINESS,2075509,12/05/2021,9.64,Regeneration & Place,D4040,Energy Costs,
BRITISH GAS BUSINESS,2080707,28/05/2021,3.57,Regeneration & Place,D4040,Energy Costs,
BRITISH GAS BUSINESS,2080707,28/05/2021,23.28,Regeneration & Place,D4040,Energy Costs,
BRITISH GAS BUSINESS,2073729,05/05/2021,526.82,Covid,H4153,Grants to Voluntary Organisations,
BRITISH GAS BUSINESS,2073729,05/05/2021,317.18,Covid,H4153,Grants to Voluntary Organisations,
BRITISH GAS BUSINESS,2075112,11/05/2021,682.20,Covid,H4120,Grants & Subscriptions,
BRITISH GAS BUSINESS,2078663,25/05/2021,191.87,Neighbourhood Services,T4020,Energy Costs,
BRITISH TELECOMMUNICATIONS PLC*001,2077131,17/05/2021,462.43,Neighbourhood Services,H4000,"Equipment, Furniture & Materials",
BRITISH TELECOMMUNICATIONS PLC*001,2073364,04/05/2021,"55,377.74",Neighbourhood Services,V2500,"Repairs, alterations and maintenance",
BRITISH TELECOMMUNICATIONS PLC*001,2073364,04/05/2021,"42,697.09",Neighbourhood Services,V2500,"Repairs, alterations and maintenance",
BROM JFC BOYS,2076695,14/05/2021,404.50,Balance Sheet,00000,Debtors - Other Entities and Individuals,
BROMBOROUGH PAINTS LIMITED,2077133,17/05/2021,37.87,Neighbourhood Services,L4820,"Repairs, alterations and maintenance",
BROMBOROUGH TOWN F C,2077392,18/05/2021,213.00,Balance Sheet,00000,Debtors - Other Entities and Individuals,
BROOK VIEW HEALTH CARE LIMITED,2075114,11/05/2021,"11,424.72",Adults Care and Health and Strategic Commissioning,S6132,Physical Support - Adults (18-64),
BROOK VIEW HEALTH CARE LIMITED,2075114,11/05/2021,"11,301.96",Adults Care and Health and Strategic Commissioning,S6161,Mental Health Support - Adults (18-64),
BROOKDALE PRE SCHOOL GROUP,2080709,28/05/2021,202.80,"Children, Families & Education",E1170,Services,
BROOKDALE PRE SCHOOL GROUP,2080709,28/05/2021,"4,141.88","Children, Families & Education",E1170,Services,
BROOKDALE PRE SCHOOL GROUP,2080709,28/05/2021,"3,277.87","Children, Families & Education",E1170,Services,
BROOKHURST PRE SCHOOL,2080710,28/05/2021,"4,569.92","Children, Families & Education",E1170,Services,
BROOKHURST PRE SCHOOL,2080710,28/05/2021,"3,052.44","Children, Families & Education",E1170,Services,
BROTHERS OF CHARITY SERVICES  *001,2077393,18/05/2021,"3,599.72",Adults Care and Health and Strategic Commissioning,S6121,Learning & Disability Support - Adults (18-64),
BROTHERS OF CHARITY SERVICES  *001,2078665,25/05/2021,"5,069.66",Adults Care and Health and Strategic Commissioning,S6121,Learning & Disability Support - Adults (18-64),
BUILDING BLOCKS DAY NURSERY,2080711,28/05/2021,"1,622.40","Children, Families & Education",E1170,Services,
BUILDING BLOCKS DAY NURSERY,2080711,28/05/2021,"7,142.46","Children, Families & Education",E1170,Services,
BUILDING BLOCKS DAY NURSERY,2080711,28/05/2021,"3,485.82","Children, Families & Education",E1170,Services,
BUILDING BRIDGES (CARE HOMES) LTD,2077679,19/05/2021,"10,714.29","Children, Families & Education",E7080,Care Provision,
BUILDING BRIDGES (CARE HOMES) LTD,2077679,19/05/2021,"10,714.29","Children, Families & Education",E7080,Care Provision,
BUILDING BRIDGES (CARE HOMES) LTD,2080712,28/05/2021,"11,035.71","Children, Families & Education",E7080,Care Provision,
BUILDING DESIGN PARTNERSHIP LIMITED,2077680,19/05/2021,"2,475.00",RE  Housing & Community Safety,C6855,Contractors - Main,
BUILDING TECHNOLOGY SYSTEMS LIMITED,2077135,17/05/2021,750.00,Neighbourhood Services,L3950,"Repairs, alterations and maintenance",
BULB,2073730,05/05/2021,169.00,Covid,H4153,Grants to Voluntary Organisations,
BULB,2073730,05/05/2021,709.34,Covid,H4153,Grants to Voluntary Organisations,
BUPA CARE HOMES,2075115,11/05/2021,"2,160.00",Adults Care and Health and Strategic Commissioning,S6132,Physical Support - Older People (65+),
BUPA CARE HOMES,2075115,11/05/2021,"2,096.00",Adults Care and Health and Strategic Commissioning,S6141,Learning & Disability Support - Older People (65+),
BUPA CARE HOMES,2075115,11/05/2021,"1,400.00",Adults Care and Health and Strategic Commissioning,S6141,Memory & Cognition Support - Adults (18-64),
BUPA CARE HOMES,2075115,11/05/2021,"2,160.00",Adults Care and Health and Strategic Commissioning,S6141,Memory & Cognition Support - Adults (18-64),
BUPA CARE HOMES,2075115,11/05/2021,-308.57,Adults Care and Health and Strategic Commissioning,S6141,Memory & Cognition Support - Older People (65+),
BUPA CARE HOMES,2075115,11/05/2021,"2,096.00",Adults Care and Health and Strategic Commissioning,S6142,Physical Support - Older People (65+),
BURY MBC,2076697,14/05/2021,500.00,"Children, Families & Education",H4020,Training Expenses,
BUSY BEES BROMBOROUGH,2080713,28/05/2021,"1,825.20","Children, Families & Education",E1170,Services,
BUSY BEES BROMBOROUGH,2080713,28/05/2021,"11,161.18","Children, Families & Education",E1170,Services,
BUSY BEES BROMBOROUGH,2080713,28/05/2021,"6,308.98","Children, Families & Education",E1170,Services,
BUSY NOUGHT TO FIVES,2080714,28/05/2021,202.80,"Children, Families & Education",E1170,Services,
BUSY NOUGHT TO FIVES,2080714,28/05/2021,"3,684.33","Children, Families & Education",E1170,Services,
BUSY NOUGHT TO FIVES,2080714,28/05/2021,"1,725.36","Children, Families & Education",E1170,Services,
BUTTERCUPS CHILDMINDING - VICTORIA ASHWORTH,2080715,28/05/2021,"1,243.13","Children, Families & Education",E1170,Services,
BY THE BRIDGE LIMITED,2073368,04/05/2021,"6,379.80","Children, Families & Education",E7080,Care Provision,
BY THE BRIDGE LIMITED,2073368,04/05/2021,"4,253.70","Children, Families & Education",E7080,Care Provision,
BY THE BRIDGE LIMITED,2073368,04/05/2021,"3,837.90","Children, Families & Education",E7080,Care Provision,
BY THE BRIDGE LIMITED,2073368,04/05/2021,"4,050.99","Children, Families & Education",E7080,Care Provision,
BY THE BRIDGE LIMITED,2073368,04/05/2021,"4,380.00","Children, Families & Education",E7080,Care Provision,
BY THE BRIDGE LIMITED,2073368,04/05/2021,"3,969.00","Children, Families & Education",E7080,Care Provision,
BY THE BRIDGE LIMITED,2073368,04/05/2021,"3,766.50","Children, Families & Education",E7080,Care Provision,
BY THE BRIDGE LIMITED,2073368,04/05/2021,"4,179.00","Children, Families & Education",E7080,Care Provision,
BYRNE AVENUE TRUST,2073369,04/05/2021,"4,051.62",Covid,H4100,Grants to Voluntary Organisations,
C & D SURFACING LIMITED,2078149,21/05/2021,"42,147.68",Neighbourhood Services,V1920,Hired or Contracted services,
C G SERVICES,2075825,13/05/2021,245.00,Neighbourhood Services,L3950,"Repairs, alterations and maintenance",
C3 IMAGING LTD,2077396,18/05/2021,305.00,Resources,F3000,"Equipment, Furniture & Materials",
C3 IMAGING LTD,2077682,19/05/2021,800.00,Resources,F3000,"Equipment, Furniture & Materials",
C3 IMAGING LTD,2075511,12/05/2021,450.00,Resources,F3000,"Equipment, Furniture & Materials",
C3 IMAGING LTD,2074249,07/05/2021,255.00,Resources,F3000,"Equipment, Furniture & Materials",
C3 IMAGING LTD,2079074,26/05/2021,55.00,Resources,F3000,"Equipment, Furniture & Materials",
C3 IMAGING LTD,2079074,26/05/2021,480.00,Resources,F3000,"Equipment, Furniture & Materials",
CABBAGE PATCH CHILDCARE-NICOLA VOLAN,2080716,28/05/2021,159.90,"Children, Families & Education",E1170,Services,
CABINET OFFICE,2077136,17/05/2021,429.20,Covid,H4105,Grants & Subscriptions,
CACI LIMITED,2073370,04/05/2021,"15,681.74","Children, Families & Education",E9510,Hired or Contracted services,
CAFBIR LIMITED T/A NO 32,2080466,27/05/2021,110.00,Neighbourhood Services,V1500,General Supplies and Services,
CAFE NUMBER 7,2077137,17/05/2021,500.00,Covid,H4153,Grants to Voluntary Organisations,
CAFE NUMBER 7,2077137,17/05/2021,"1,200.00",Covid,H4153,Grants to Voluntary Organisations,
CALDY CONSTRUCTION LIMITED,2074251,07/05/2021,"4,577.00",RE  Housing & Community Safety,C4117,Expenditure on Capital Grants,
CALDY CONSTRUCTION LIMITED,2076700,14/05/2021,"8,869.40",RE  Housing & Community Safety,C4117,Expenditure on Capital Grants,
CALDY CONSTRUCTION LIMITED,2080717,28/05/2021,"5,643.00",RE  Housing & Community Safety,C4117,Expenditure on Capital Grants,
CALDY CONSTRUCTION LIMITED,2076700,14/05/2021,596.60,RE  Housing & Community Safety,C4117,Miscellaneous,
CALL GULA SERVICES LIMITED,2073371,04/05/2021,20.00,"Children, Families & Education",E9691,Care Provision,
CALL GULA SERVICES LIMITED,2075826,13/05/2021,150.00,"Children, Families & Education",E9691,Care Provision,
CAMBRIAN SUPPORTED LIVING,2078669,25/05/2021,"31,075.81",Adults Care and Health and Strategic Commissioning,S6132,Physical Support - Adults (18-64),
CAMBRIANWAY LIMITED,2073733,05/05/2021,"174,639.74",RE  Environment & Regulation,C5173,Contractors - Main,
CAMBRIANWAY LIMITED,2079077,26/05/2021,"19,691.58",Neighbourhood Services,V4000,Recharges Other,
CAMBRIANWAY LIMITED,2075116,11/05/2021,"30,886.09",Transformation and Resources,X8500,Credit,
CAMBRIANWAY LIMITED,2075116,11/05/2021,"24,509.11",Transformation and Resources,X8500,Credit,
CAMPEY TURF CARE SYSTEMS,2075828,13/05/2021,774.90,Neighbourhood Services,L4975,Direct Transport Costs,
CAMPEY TURF CARE SYSTEMS,2075828,13/05/2021,"2,660.00",Neighbourhood Services,L4975,Direct Transport Costs,
CANCOM MANAGED SERVICES LIMITED,2074252,07/05/2021,"3,993.65",Resources,F4410,Communications & Computing,
CANDA COPYING LTD,2073734,05/05/2021,"3,720.00",Resources,F4410,"Printing, Stationery & General Office Expenses",
CANDA COPYING LTD,2073734,05/05/2021,480.00,Resources,F4410,"Printing, Stationery & General Office Expenses",
CANDA COPYING LTD,2073734,05/05/2021,68.26,Resources,F4410,"Printing, Stationery & General Office Expenses",
CANDA COPYING LTD,2073734,05/05/2021,106.05,Resources,F4410,"Printing, Stationery & General Office Expenses",
CANDA COPYING LTD,2073734,05/05/2021,111.24,Resources,F4410,"Printing, Stationery & General Office Expenses",
CANDA COPYING LTD,2073734,05/05/2021,59.60,Resources,F4410,"Printing, Stationery & General Office Expenses",
CANDA COPYING LTD,2073734,05/05/2021,169.59,Resources,F4410,"Printing, Stationery & General Office Expenses",
CANDA COPYING LTD,2073734,05/05/2021,73.14,Resources,F4410,"Printing, Stationery & General Office Expenses",
CANDA COPYING LTD,2073734,05/05/2021,135.66,Resources,F4410,"Printing, Stationery & General Office Expenses",
CANDA COPYING LTD,2073734,05/05/2021,68.98,Resources,F4410,"Printing, Stationery & General Office Expenses",
CANDA COPYING LTD,2073734,05/05/2021,98.88,Resources,F4410,"Printing, Stationery & General Office Expenses",
CANDA COPYING LTD,2073734,05/05/2021,94.47,Resources,F4410,"Printing, Stationery & General Office Expenses",
CANDA COPYING LTD,2073734,05/05/2021,135.66,Resources,F4410,"Printing, Stationery & General Office Expenses",
CANDA COPYING LTD,2073734,05/05/2021,93.38,Resources,F4410,"Printing, Stationery & General Office Expenses",
CANDA COPYING LTD,2073734,05/05/2021,60.19,Resources,F4410,"Printing, Stationery & General Office Expenses",
CANDA COPYING LTD,2073734,05/05/2021,352.01,Resources,F4410,"Printing, Stationery & General Office Expenses",
CANDA COPYING LTD,2073734,05/05/2021,44.29,Resources,F4410,"Printing, Stationery & General Office Expenses",
CANDA COPYING LTD,2073734,05/05/2021,14.31,Resources,F4410,"Printing, Stationery & General Office Expenses",
CANDA COPYING LTD,2073734,05/05/2021,54.57,Resources,F4410,"Printing, Stationery & General Office Expenses",
CANDA COPYING LTD,2073734,05/05/2021,67.95,Resources,F4410,"Printing, Stationery & General Office Expenses",
CANDA COPYING LTD,2073734,05/05/2021,38.73,Resources,F4410,"Printing, Stationery & General Office Expenses",
CANDA COPYING LTD,2073734,05/05/2021,73.05,Resources,F4410,"Printing, Stationery & General Office Expenses",
CANDA COPYING LTD,2073734,05/05/2021,46.59,Resources,F4410,"Printing, Stationery & General Office Expenses",
CANDA COPYING LTD,2073734,05/05/2021,124.52,Resources,F4410,"Printing, Stationery & General Office Expenses",
CANDA COPYING LTD,2073734,05/05/2021,"4,195.55",Resources,F4410,"Printing, Stationery & General Office Expenses",
CANDA COPYING LTD,2073734,05/05/2021,"4,810.16",Resources,F4410,"Printing, Stationery & General Office Expenses",
CANDA COPYING LTD,2073734,05/05/2021,"4,838.26",Resources,F4410,"Printing, Stationery & General Office Expenses",
CANDA COPYING LTD,2073734,05/05/2021,81.36,Resources,F4410,"Printing, Stationery & General Office Expenses",
CANDA COPYING LTD,2073734,05/05/2021,163.61,Resources,F4410,"Printing, Stationery & General Office Expenses",
CANDA COPYING LTD,2073734,05/05/2021,42.23,Resources,F4410,"Printing, Stationery & General Office Expenses",
CANDA COPYING LTD,2073734,05/05/2021,122.19,Resources,F4410,"Printing, Stationery & General Office Expenses",
CANDA COPYING LTD,2073734,05/05/2021,44.10,Resources,F4410,"Printing, Stationery & General Office Expenses",
CANDA COPYING LTD,2073734,05/05/2021,74.19,Resources,F4410,"Printing, Stationery & General Office Expenses",
CANDA COPYING LTD,2073734,05/05/2021,202.68,Resources,F4630,"Printing, Stationery & General Office Expenses",
CAPITA BUSINESS SERVICES LIMITED,2077397,18/05/2021,"7,455.52","Children, Families & Education",E7055,Communications & Computing,
CAPITA BUSINESS SERVICES LIMITED,2077397,18/05/2021,"-2,158.03",Resources,F4301,"Equipment, Furniture & Materials",
CAPITA BUSINESS SERVICES LIMITED,2077397,18/05/2021,-838.36,Resources,F4301,"Equipment, Furniture & Materials",
CAPITA BUSINESS SERVICES LIMITED,2079079,26/05/2021,"7,362.50",Resources,F4410,Communications & Computing,
CAPITA BUSINESS SERVICES LIMITED,2079079,26/05/2021,870.76,Resources,F4410,Communications & Computing,
CAPITA BUSINESS SERVICES LIMITED,2078152,21/05/2021,"28,644.27",Resources,F5110,Communications & Computing,
CAPITA BUSINESS SERVICES LIMITED,2077397,18/05/2021,"2,085.00",Resources,F6000,Communications & Computing,
CAPITA ESS LIMITED,2074254,07/05/2021,"97,325.04",Neighbourhood Services,L2300,"Printing, Stationery & General Office Expenses",
CAPITAL HEALTHCARE LIMITED T/A AINSDALE COURT,2075118,11/05/2021,"2,208.00",Adults Care and Health and Strategic Commissioning,S6142,Physical Support - Older People (65+),
CAPITAL HEALTHCARE LIMITED T/A AINSDALE COURT,2075118,11/05/2021,80.00,Adults Care and Health and Strategic Commissioning,S6142,Physical Support - Older People (65+),
CARE 4 CHILDREN RESIDENTIAL SERVICES LIMITED,2080720,28/05/2021,"3,214.20","Children, Families & Education",E7080,Care Provision,
CARE 4 CHILDREN RESIDENTIAL SERVICES LIMITED,2080720,28/05/2021,"3,321.34","Children, Families & Education",E7080,Care Provision,
CARE 4 CHILDREN RESIDENTIAL SERVICES LIMITED,2080720,28/05/2021,"3,463.63","Children, Families & Education",E7080,Care Provision,
CARE AND COMMUNITY LTD,2077927,20/05/2021,750.00,"Children, Families & Education",E7080,Contributions,
CARE AND COMMUNITY LTD,2077927,20/05/2021,750.00,"Children, Families & Education",E7080,Contributions,
CARE AT HOME GROUP,2075119,11/05/2021,"104,308.75",Adults Care and Health and Strategic Commissioning,S6131,Physical Support - Adults (18-64),
CARE IN MIND RESIDENTIAL SERVICES,2075120,11/05/2021,"16,660.00",Adults Care and Health and Strategic Commissioning,S6161,Mental Health Support - Adults (18-64),
CARITAS DIOCESE OF SHREWSBURY,2073735,05/05/2021,"3,050.00",Covid,H4100,Grants to Voluntary Organisations,
CAROL MARWING - CHILDMINDER,2080723,28/05/2021,213.20,"Children, Families & Education",E1170,Services,
CAROLINES CHILDMINDING - CAROLINE COVENTRY,2080724,28/05/2021,69.29,"Children, Families & Education",E1170,Services,
CAROLS CHILDMINDING SERVICES - CAROL HORAN,2080725,28/05/2021,159.90,"Children, Families & Education",E1170,Services,
CARRIE DOLAN CHILDMINDING SERVICE - CARRIE DOLAN,2080726,28/05/2021,159.90,"Children, Families & Education",E1170,Services,
CARRIE DOLAN CHILDMINDING SERVICE - CARRIE DOLAN,2080726,28/05/2021,106.60,"Children, Families & Education",E1170,Services,
CARTER BROWN THE EXPERT SERVICE,2077138,17/05/2021,"1,187.17",Law & Governance (Monitoring Officer),A1305,Legal Service Provider,
CASEY LIMITED,2073736,05/05/2021,190.00,"Children, Families & Education",E1200,"Repairs, alterations and maintenance",
CASTLE ACCESSIBLE TRANSPORT,2075518,12/05/2021,"3,924.00",Neighbourhood Services,S5600,Care Provision,
CASTLE ACCESSIBLE TRANSPORT,2077687,19/05/2021,"4,905.00",Neighbourhood Services,S5600,Care Provision,
CASTLE ACCESSIBLE TRANSPORT,2078672,25/05/2021,"4,905.00",Neighbourhood Services,S5600,Care Provision,
CASTLE ACCESSIBLE TRANSPORT,2073737,05/05/2021,"4,905.00",Neighbourhood Services,S5600,Care Provision,
CASTLE ACCESSIBLE TRANSPORT,2073374,04/05/2021,"4,905.00",Neighbourhood Services,S5600,Care Provision,
CASTLE ACCESSIBLE TRANSPORT,2073374,04/05/2021,"4,905.00",Neighbourhood Services,S5600,Care Provision,
CATER WALSH REPORTING LIMITED,2077928,20/05/2021,51.75,Law & Governance (Monitoring Officer),A1305,General Supplies and Services,
CATER WALSH REPORTING LIMITED,2078673,25/05/2021,96.75,Law & Governance (Monitoring Officer),A1305,General Supplies and Services,
CATER WALSH REPORTING LIMITED,2079114,26/05/2021,92.25,Law & Governance (Monitoring Officer),A1305,General Supplies and Services,
CATER WALSH REPORTING LIMITED,2078673,25/05/2021,315.00,Law & Governance (Monitoring Officer),A1305,General Supplies and Services,
CATER WALSH REPORTING LIMITED,2078673,25/05/2021,326.25,Law & Governance (Monitoring Officer),A1305,General Supplies and Services,
CATER WALSH REPORTING LIMITED,2079114,26/05/2021,357.75,Law & Governance (Monitoring Officer),A1305,General Supplies and Services,
CATHERINE JONES - CHILDMINDER,2080727,28/05/2021,159.90,"Children, Families & Education",E1170,Services,
CATHERINE REILLY-CHILDMINDER,2080729,28/05/2021,479.70,"Children, Families & Education",E1170,Services,
CATHERINE RIMMER,2073375,04/05/2021,400.00,Law & Governance (Monitoring Officer),A1305,Legal Service Provider,
CATHERINE RIMMER,2075122,11/05/2021,516.67,Law & Governance (Monitoring Officer),A1305,Legal Service Provider,
CATHERINE RIMMER,2076708,14/05/2021,488.33,Law & Governance (Monitoring Officer),A1305,Legal Service Provider,
CATHOLIC BLIND INSTITUTE,2080469,27/05/2021,"9,170.00","Children, Families & Education",E5870,Specialist Contracts & Fees,
CBC COMPUTER SYSTEMS LIMITED,2077139,17/05/2021,"1,137.00",Resources,F4300,"Equipment, Furniture & Materials",
CBC COMPUTER SYSTEMS LIMITED,2075123,11/05/2021,30.00,Resources,F4300,"Equipment, Furniture & Materials",
CBC COMPUTER SYSTEMS LIMITED,2073376,04/05/2021,289.00,Resources,F4300,"Equipment, Furniture & Materials",
CBC COMPUTER SYSTEMS LIMITED,2073376,04/05/2021,256.00,Resources,F4300,"Equipment, Furniture & Materials",
CBC COMPUTER SYSTEMS LIMITED,2077929,20/05/2021,"1,316.00",Resources,F4300,"Equipment, Furniture & Materials",
CBC COMPUTER SYSTEMS LIMITED,2075123,11/05/2021,445.00,Resources,F4300,"Equipment, Furniture & Materials",
CBC COMPUTER SYSTEMS LIMITED,2075123,11/05/2021,499.00,Resources,F4300,"Equipment, Furniture & Materials",
CBC COMPUTER SYSTEMS LIMITED,2073738,05/05/2021,525.00,Resources,F4300,"Equipment, Furniture & Materials",
CBRE LIMITED,2078413,24/05/2021,"4,950.00",RE  Regeneration,C0513,Consultants Fees,
CBRE LIMITED,2077930,20/05/2021,"4,999.00",Regeneration & Place,H7090,Contract Hire & Operating Leases,
CDAT CHRIST CHURCH MORETON,2073377,04/05/2021,"1,816.67","Children, Families & Education",E3680,Educational Provider,
CDAT CHRIST CHURCH MORETON,2073377,04/05/2021,"1,362.50","Children, Families & Education",E3680,Educational Provider,
CEMEX UK MATERIALS LIMITED NORTH WEST,2080731,28/05/2021,581.70,Neighbourhood Services,V1920,"Equipment, Furniture & Materials",
CENTRE FOR LOCAL ECONOMIC STRATEGIES LIMITED (CLES),2077140,17/05/2021,"5,858.00",Regeneration & Place,B8450,Consultants,
CENTRE FOR LOCAL ECONOMIC STRATEGIES LIMITED (CLES),2077140,17/05/2021,"5,858.00",Regeneration & Place,B8450,Consultants,
CENTREWIRE LIMITED,2077401,18/05/2021,365.00,Neighbourhood Services,L4973,Grounds Maintenance,
CENTURY HEALTHCARE LIMITED,2075124,11/05/2021,"2,168.00",Adults Care and Health and Strategic Commissioning,S6131,Memory & Cognition Support - Older People (65+),
CENTURY HEALTHCARE LIMITED,2075124,11/05/2021,"2,168.00",Adults Care and Health and Strategic Commissioning,S6131,Physical Support - Older People (65+),
CENTURY HEALTHCARE LIMITED,2075124,11/05/2021,621.36,Adults Care and Health and Strategic Commissioning,S6131,Physical Support - Older People (65+),
CENTURY HEALTHCARE LIMITED,2075124,11/05/2021,"2,168.00",Adults Care and Health and Strategic Commissioning,S6132,Physical Support - Older People (65+),
CENTURY HEALTHCARE LIMITED,2075124,11/05/2021,300.00,Adults Care and Health and Strategic Commissioning,S6132,Physical Support - Older People (65+),
CENTURY HEALTHCARE LIMITED,2075124,11/05/2021,200.00,Adults Care and Health and Strategic Commissioning,S6141,Physical Support - Older People (65+),
CENTURY HEALTHCARE LIMITED,2075124,11/05/2021,"2,168.00",Adults Care and Health and Strategic Commissioning,S6141,Physical Support - Older People (65+),
CENTURY HEALTHCARE LIMITED,2075124,11/05/2021,"2,168.00",Adults Care and Health and Strategic Commissioning,S6167,Memory & Cognition Support - Older People (65+),
CENTURY HEALTHCARE LIMITED,2075124,11/05/2021,"2,168.00",Adults Care and Health and Strategic Commissioning,S6167,Mental Health Support - Older People (65+),
CENTURY HEALTHCARE LIMITED,2075124,11/05/2021,"2,168.00",Adults Care and Health and Strategic Commissioning,S6167,Mental Health Support - Older People (65+),
CENTURY HEALTHCARE LIMITED,2075124,11/05/2021,"2,864.32",Adults Care and Health and Strategic Commissioning,S6998,Memory & Cognition Support - Older People (65+),
CENTURY HEALTHCARE LIMITED,2075124,11/05/2021,309.71,Adults Care and Health and Strategic Commissioning,S6998,Memory & Cognition Support - Older People (65+),
CENTURY HEALTHCARE LIMITED,2075124,11/05/2021,374.29,Adults Care and Health and Strategic Commissioning,S6998,Physical Support - Older People (65+),
CENTURY HEALTHCARE LIMITED,2075124,11/05/2021,"2,096.00",Adults Care and Health and Strategic Commissioning,S6998,Physical Support - Older People (65+),
CENTURY HEALTHCARE LIMITED,2075124,11/05/2021,"1,316.29",Adults Care and Health and Strategic Commissioning,S6998,Physical Support - Older People (65+),
CERYS WILLIAMS,2073378,04/05/2021,433.33,Law & Governance (Monitoring Officer),A1305,Legal Service Provider,
CERYS WILLIAMS,2073378,04/05/2021,625.00,Law & Governance (Monitoring Officer),A1305,Legal Service Provider,
CERYS WILLIAMS,2073739,05/05/2021,700.00,Law & Governance (Monitoring Officer),A1305,Legal Service Provider,
CERYS WILLIAMS,2075125,11/05/2021,"2,350.00",Law & Governance (Monitoring Officer),A1305,Legal Service Provider,
CHAIGELEY EDUCATIONAL FOUNDATION,2079134,26/05/2021,"12,552.00","Children, Families & Education",E5870,Specialist Contracts & Fees,
CHANDRIKA MEETEN (CHILDREN MATTER),2078157,21/05/2021,210.00,"Children, Families & Education",E7037,Care Provision,
CHANDRIKA MEETEN (CHILDREN MATTER),2078157,21/05/2021,310.00,"Children, Families & Education",E7037,Care Provision,
CHANGE GROW LIVE SERVICES LIMITED,2078675,25/05/2021,"482,437.50",Adults Care and Health and Strategic Commissioning,P4010,Contracts With Voluntary Organisations,
CHAPEL HOUSE CARE LIMITED,2075126,11/05/2021,"2,468.00",Adults Care and Health and Strategic Commissioning,S6167,Mental Health Support - Older People (65+),
CHARLOTTE HOUSE CARE LIMITED,2075127,11/05/2021,"3,600.00",Adults Care and Health and Strategic Commissioning,S6121,Learning & Disability Support - Older People (65+),
CHARLOTTE HOUSE CARE LIMITED,2075127,11/05/2021,"2,076.00",Adults Care and Health and Strategic Commissioning,S6131,Memory & Cognition Support - Older People (65+),
CHARLOTTE HOUSE CARE LIMITED,2075127,11/05/2021,"2,244.00",Adults Care and Health and Strategic Commissioning,S6131,Physical Support - Adults (18-64),
CHARLOTTE HOUSE CARE LIMITED,2075127,11/05/2021,"2,076.00",Adults Care and Health and Strategic Commissioning,S6131,Physical Support - Older People (65+),
CHARLOTTE HOUSE CARE LIMITED,2075127,11/05/2021,"2,076.00",Adults Care and Health and Strategic Commissioning,S6131,Physical Support - Older People (65+),
CHARLOTTE HOUSE CARE LIMITED,2075127,11/05/2021,"2,244.00",Adults Care and Health and Strategic Commissioning,S6131,Physical Support - Older People (65+),
CHARLOTTE HOUSE CARE LIMITED,2075127,11/05/2021,"2,244.00",Adults Care and Health and Strategic Commissioning,S6131,Physical Support - Older People (65+),
CHARLOTTE HOUSE CARE LIMITED,2075127,11/05/2021,"2,076.00",Adults Care and Health and Strategic Commissioning,S6131,Physical Support - Older People (65+),
CHARLOTTE HOUSE CARE LIMITED,2075127,11/05/2021,"1,557.00",Adults Care and Health and Strategic Commissioning,S6131,Physical Support - Older People (65+),
CHARLOTTE HOUSE CARE LIMITED,2075127,11/05/2021,648.00,Adults Care and Health and Strategic Commissioning,S6131,Physical Support - Older People (65+),
CHARLOTTE HOUSE CARE LIMITED,2075127,11/05/2021,"3,600.00",Adults Care and Health and Strategic Commissioning,S6132,Learning & Disability Support - Older People (65+),
CHARLOTTE HOUSE CARE LIMITED,2075127,11/05/2021,"2,244.00",Adults Care and Health and Strategic Commissioning,S6132,Physical Support - Older People (65+),
CHARLOTTE HOUSE CARE LIMITED,2075127,11/05/2021,"2,076.00",Adults Care and Health and Strategic Commissioning,S6141,Physical Support - Older People (65+),
CHARLOTTE HOUSE CARE LIMITED,2075127,11/05/2021,"1,264.00",Adults Care and Health and Strategic Commissioning,S6141,Physical Support - Older People (65+),
CHARLOTTE HOUSE CARE LIMITED,2075127,11/05/2021,"3,600.00",Adults Care and Health and Strategic Commissioning,S6166,Mental Health Support - Adults (18-64),
CHARLOTTE HOUSE CARE LIMITED,2075127,11/05/2021,"2,076.00",Adults Care and Health and Strategic Commissioning,S6167,Mental Health Support - Older People (65+),
CHARLOTTES BRIGHTSIDE CLC,2075869,13/05/2021,"4,650.00",Covid,H4153,Grants to Voluntary Organisations,
CHARLOTTES BRIGHTSIDE CLC,2077142,17/05/2021,500.00,Covid,H4153,Grants to Voluntary Organisations,
CHARLOTTES BRIGHTSIDE CLC,2077142,17/05/2021,"1,200.00",Covid,H4153,Grants to Voluntary Organisations,
CHERYL JONES,2080733,28/05/2021,356.85,"Children, Families & Education",E1170,Services,
CHESCOMBE TRUST LTD,2075129,11/05/2021,-423.00,Adults Care and Health and Strategic Commissioning,S6121,Customer and Client - Community Care,
CHESCOMBE TRUST LTD,2075129,11/05/2021,"7,969.16",Adults Care and Health and Strategic Commissioning,S6121,Learning & Disability Support - Adults (18-64),
CHESCOMBE TRUST LTD,2075129,11/05/2021,"5,660.48",Adults Care and Health and Strategic Commissioning,S6121,Learning & Disability Support - Adults (18-64),
CHESHIRE & WIRRAL PARTNERSHIP NHS FOUNDATION TRUST,2073740,05/05/2021,"477,646.50",Adults Care and Health and Strategic Commissioning,S6003,General Supplies and Services,
CHESHIRE BATHROOMS & WET ROOMS LIMITED,2074257,07/05/2021,"4,600.00",RE  Housing & Community Safety,C4115,Expenditure on Capital Grants,
CHESHIRE BATHROOMS & WET ROOMS LIMITED,2076712,14/05/2021,"4,116.00",RE  Housing & Community Safety,C4115,Expenditure on Capital Grants,
CHESHIRE BATHROOMS & WET ROOMS LIMITED,2078158,21/05/2021,"4,527.00",RE  Housing & Community Safety,C4115,Expenditure on Capital Grants,
CHESHIRE BATHROOMS & WET ROOMS LIMITED,2078158,21/05/2021,"4,327.00",RE  Housing & Community Safety,C4115,Expenditure on Capital Grants,
CHESHIRE BATHROOMS & WET ROOMS LIMITED,2078158,21/05/2021,"4,999.04",RE  Housing & Community Safety,C4115,Expenditure on Capital Grants,
CHESHIRE POWDER COATING LIMITED,2077690,19/05/2021,465.00,Neighbourhood Services,V1920,"Equipment, Furniture & Materials",
CHESHIRE POWDER COATING LIMITED,2073381,04/05/2021,227.00,Neighbourhood Services,V1920,"Equipment, Furniture & Materials",
CHESHIRE RES HOMES TRUST,2075130,11/05/2021,"1,936.00",Adults Care and Health and Strategic Commissioning,S6132,Physical Support - Older People (65+),
CHESHIRE RES HOMES TRUST,2075130,11/05/2021,"1,936.00",Adults Care and Health and Strategic Commissioning,S6141,Physical Support - Older People (65+),
CHESHIRE RES HOMES TRUST,2075130,11/05/2021,"1,936.00",Adults Care and Health and Strategic Commissioning,S6141,Sensory Support - Older People (65+),
CHESHIRE RES HOMES TRUST,2075130,11/05/2021,"1,936.00",Adults Care and Health and Strategic Commissioning,S6142,Physical Support - Older People (65+),
CHESHIRE RES HOMES TRUST,2075130,11/05/2021,"1,936.00",Adults Care and Health and Strategic Commissioning,S6142,Physical Support - Older People (65+),
CHESHIRE RES HOMES TRUST,2075130,11/05/2021,"1,936.00",Adults Care and Health and Strategic Commissioning,S6167,Mental Health Support - Older People (65+),
CHESHIRE TURF MACHINERY,2075131,11/05/2021,"2,432.27",Neighbourhood Services,L4001,Direct Transport Costs,
CHESHIRE TURF MACHINERY,2075131,11/05/2021,"2,329.30",Neighbourhood Services,L4001,Direct Transport Costs,
CHESHIRE VIKINGS F C,231679,19/05/2021,105.50,Balance Sheet,00000,Debtors - Other Entities and Individuals,
CHESHIRE WEST & CHESTER COUNCIL,2078159,21/05/2021,"11,990.00","Children, Families & Education",E3680,Services,
CHESHIRE WILDLIFE TRUST (WIRRAL GROUP),2079150,26/05/2021,60.00,Neighbourhood Services,L4973,Services,
CHILDRENS THERAPY SOLUTIONS LIMITED,2077692,19/05/2021,822.99,"Children, Families & Education",E5870,Specialist Contracts & Fees,
CHILDRENS THERAPY SOLUTIONS LIMITED,2077692,19/05/2021,"1,623.40","Children, Families & Education",E5870,Specialist Contracts & Fees,
CHILDWALL TABLE & CHAIR HIRE,2080471,27/05/2021,"1,984.00",Law & Governance (Monitoring Officer),A6000,"Equipment, Furniture & Materials",
CHOICE LIMITED,2075132,11/05/2021,"7,344.00",Adults Care and Health and Strategic Commissioning,S6121,Learning & Disability Support - Adults (18-64),
CHRIS EDWARDS T/A CVTS MAC TOOLS,2075133,11/05/2021,832.44,Neighbourhood Services,T4020,"Equipment, Furniture & Materials",
CHRIS KELLY DRIVING SCHOOL,2077696,19/05/2021,460.00,"Children, Families & Education",E7052,16 Plus Non Accommodation,
CHRIST CHURCH HIGHER BEBINGTON PCC,2073741,05/05/2021,"5,000.00",Covid,H4100,Grants to Voluntary Organisations,
CHRIST CHURCH PCC,231641,17/05/2021,2.20,Law & Governance (Monitoring Officer),A4000,Services,
CHRISTINE MCANDREW,2080735,28/05/2021,144.55,"Children, Families & Education",E1170,Services,
CHRISTOPHER KATKOWSKI QC,2077933,20/05/2021,"1,440.00",Regeneration & Place,B7050,Consultants,
CHURCH WARDEN,231642,17/05/2021,4.40,Law & Governance (Monitoring Officer),A4000,Services,
CITRON HYGIENE UK LIMITED,2077934,20/05/2021,"2,443.44","Children, Families & Education",E6763,"Equipment, Furniture & Materials",
CIVICA UK LIMITED,2074000,06/05/2021,"17,365.00",Resources,F5110,Communications & Computing,
CIVICA UK LIMITED,2075896,13/05/2021,"15,816.27",Regeneration & Place,H7060,Communications & Computing,
CIVICA UK LIMITED,2075896,13/05/2021,226.35,Regeneration & Place,H7060,Communications & Computing,
CLAIRE'S CARE,2080736,28/05/2021,659.88,"Children, Families & Education",E1170,Services,
CLARE HALLETT,2080738,28/05/2021,163.02,"Children, Families & Education",E1170,Services,
CLAREMOUNT HUB SOCIAL SUPERMARKET,2076715,14/05/2021,"2,160.00",Covid,H4153,Grants to Voluntary Organisations,
CLAREMOUNT METHODIST CHURCH,2076716,14/05/2021,"5,000.00",Covid,H4100,Grants to Voluntary Organisations,
CLARITY AND PARTNERSHIP LIMITED,2078414,24/05/2021,400.00,Adults Care and Health and Strategic Commissioning,P4201,Services,
CLEAR CHANNEL UK LIMITED,2077404,18/05/2021,"9,928.00",Covid,H4115,"Advertising, Publicity & Marketing",
CLICK TRAVEL,2073388,04/05/2021,556.85,"Children, Families & Education",E3680,Services,
CLICK TRAVEL,2077698,19/05/2021,275.30,"Children, Families & Education",E7033,Travel - Online Booking Service,
CLICK TRAVEL,2077698,19/05/2021,503.90,"Children, Families & Education",E7034,Travel - Online Booking Service,
CLICK TRAVEL,2077698,19/05/2021,337.22,"Children, Families & Education",E7034,Travel - Online Booking Service,
CLODAGH MAGUIRE,2077699,19/05/2021,850.00,Law & Governance (Monitoring Officer),A1305,Legal Service Provider,
CLODAGH MAGUIRE,2077699,19/05/2021,"2,858.33",Law & Governance (Monitoring Officer),A1305,Legal Service Provider,
CLOVER TECHNICAL SERVICES LIMITED,2077936,20/05/2021,114.00,Children & Young People,C0916,Contractors - Main,
CLOVER TECHNICAL SERVICES LIMITED,2077936,20/05/2021,49.88,Regeneration & Place,D2520,"Repairs, alterations and maintenance",
CLOVER TECHNICAL SERVICES LIMITED,2078683,25/05/2021,99.38,Regeneration & Place,D2520,"Repairs, alterations and maintenance",
CLOVER TECHNICAL SERVICES LIMITED,2076719,14/05/2021,128.25,Regeneration & Place,D2680,"Repairs, alterations and maintenance",
CLOVER TECHNICAL SERVICES LIMITED,2077936,20/05/2021,99.38,Regeneration & Place,D2690,"Repairs, alterations and maintenance",
CLOVER TECHNICAL SERVICES LIMITED,2077936,20/05/2021,44.72,Neighbourhood Services,D3502,"Repairs, alterations and maintenance",
CLOVER TECHNICAL SERVICES LIMITED,2080476,27/05/2021,19.88,Neighbourhood Services,D3502,"Repairs, alterations and maintenance",
CLOVER TECHNICAL SERVICES LIMITED,2080476,27/05/2021,139.13,Neighbourhood Services,D3512,"Repairs, alterations and maintenance",
CLOVER TECHNICAL SERVICES LIMITED,2077936,20/05/2021,19.88,Regeneration & Place,D8000,"Repairs, alterations and maintenance",
CLOVER TECHNICAL SERVICES LIMITED,2077936,20/05/2021,19.00,"Children, Families & Education",E2120,"Repairs, alterations and maintenance",
CLOVER TECHNICAL SERVICES LIMITED,2077936,20/05/2021,69.57,"Children, Families & Education",E2380,"Repairs, alterations and maintenance",
CLOVER TECHNICAL SERVICES LIMITED,2077936,20/05/2021,29.81,"Children, Families & Education",E5560,"Repairs, alterations and maintenance",
CLOVER TECHNICAL SERVICES LIMITED,2077936,20/05/2021,223.60,"Children, Families & Education",E5560,"Repairs, alterations and maintenance",
CLOVER TECHNICAL SERVICES LIMITED,2078683,25/05/2021,452.18,Covid,H4151,"Repairs, alterations and maintenance",
CLOVER TECHNICAL SERVICES LIMITED,2077936,20/05/2021,141.12,Neighbourhood Services,L3030,"Repairs, alterations and maintenance",
CLOVER TECHNICAL SERVICES LIMITED,2078683,25/05/2021,279.26,Neighbourhood Services,L3030,"Repairs, alterations and maintenance",
CLOVER TECHNICAL SERVICES LIMITED,2080476,27/05/2021,237.84,Neighbourhood Services,L3030,"Repairs, alterations and maintenance",
CLOVER TECHNICAL SERVICES LIMITED,2077936,20/05/2021,213.75,Neighbourhood Services,L3190,"Repairs, alterations and maintenance",
CLOVER TECHNICAL SERVICES LIMITED,2078683,25/05/2021,104.35,Neighbourhood Services,L3290,"Repairs, alterations and maintenance",
CLOVER TECHNICAL SERVICES LIMITED,2080476,27/05/2021,44.72,Neighbourhood Services,L5330,"Repairs, alterations and maintenance",
CLOVER TECHNICAL SERVICES LIMITED,2078683,25/05/2021,273.29,Neighbourhood Services,V1920,"Repairs, alterations and maintenance",
CLOVER TECHNICAL SERVICES LIMITED,2078683,25/05/2021,163.98,Neighbourhood Services,V1920,"Repairs, alterations and maintenance",
CLOVERLEAF ADVOCACY 2000 LIMITED,2073389,04/05/2021,65.63,Adults Care and Health and Strategic Commissioning,S6211,Medical Service Provider,
CLOVERLEAF ADVOCACY 2000 LIMITED,2073389,04/05/2021,90.75,Adults Care and Health and Strategic Commissioning,S6211,Medical Service Provider,
CMR SUPPLY & SERVICES LIMITED,2075135,11/05/2021,314.94,Neighbourhood Services,L3320,"Repairs, alterations and maintenance",
CMW EQUIPMENT HOLDING LIMITED,2076721,14/05/2021,"1,233.30",Neighbourhood Services,L3403,"Equipment, Furniture & Materials",
COASTAL ENGINEERING UK LIMITED,2075906,13/05/2021,"3,960.00",Neighbourhood Services,V1430,Catering,
COED DU HALL LIMITED,2075136,11/05/2021,"8,672.00",Adults Care and Health and Strategic Commissioning,S6132,Learning & Disability Support - Adults (18-64),
COED DU HALL LIMITED,2075136,11/05/2021,"1,820.00",Adults Care and Health and Strategic Commissioning,S6132,Learning & Disability Support - Adults (18-64),
COLLEGE OF MEDIA AND PUBLISHING LIMITED,2078168,21/05/2021,328.75,"Children, Families & Education",E9967,Grants & Subscriptions,
COLLIS MEDIATION LIMITED,2078417,24/05/2021,"2,000.00","Children, Families & Education",E6282,Hired or Contracted services,
COLLIS MEDIATION LIMITED,2078417,24/05/2021,125.00,"Children, Families & Education",E6282,Hired or Contracted services,
COMMS EXPRESS LTD,2078169,21/05/2021,-206.90,Resources,F4300,"Equipment, Furniture & Materials",
COMMS EXPRESS LTD,2074543,10/05/2021,206.90,Resources,F4300,"Equipment, Furniture & Materials",
COMMS EXPRESS LTD,2078169,21/05/2021,"3,076.32",Resources,F4308,"Equipment, Furniture & Materials",
COMMS EXPRESS LTD,2073393,04/05/2021,859.08,Resources,F4410,Communications & Computing,
COMMUNITY CARING LTD          *001,2078170,21/05/2021,"11,553.62",Adults Care and Health and Strategic Commissioning,S6111,Physical Support - Older People (65+),
COMMUNITY CARING LTD          *001,2078170,21/05/2021,"146,307.39",Adults Care and Health and Strategic Commissioning,S6121,Learning & Disability Support - Adults (18-64),
COMMUNITY CARING LTD          *001,2077408,18/05/2021,"10,559.29",Adults Care and Health and Strategic Commissioning,S6121,Physical Support - Adults (18-64),
COMMUNITY CARING LTD          *001,2077408,18/05/2021,"18,646.31",Adults Care and Health and Strategic Commissioning,S6131,Physical Support - Adults (18-64),
COMMUNITY INTEGRATED CARE,2079220,26/05/2021,"20,753.80",Covid,H4156,Physical Support - Older People (65+),
COMMUNITY SOUL WALLASEY CIC *002,2076724,14/05/2021,"1,170.00",Covid,H4100,Grants to Voluntary Organisations,
COMPASS FOSTERING NORTH LIMITED,2073394,04/05/2021,"3,334.50","Children, Families & Education",E7080,Care Provision,
COMPASS FOSTERING NORTH LIMITED,2073394,04/05/2021,"3,334.50","Children, Families & Education",E7080,Care Provision,
COMPASS FOSTERING NORTH LIMITED,2073394,04/05/2021,"3,246.90","Children, Families & Education",E7080,Care Provision,
COMPASS FOSTERING NORTH LIMITED,2073394,04/05/2021,"3,257.10","Children, Families & Education",E7080,Care Provision,
COMPASS FOSTERING NORTH LIMITED,2073394,04/05/2021,"3,234.60","Children, Families & Education",E7080,Care Provision,
COMPASS FOSTERING NORTH LIMITED,2073394,04/05/2021,"5,313.00","Children, Families & Education",E7080,Care Provision,
COMPASS FOSTERING NORTH LIMITED,2073394,04/05/2021,"3,497.10","Children, Families & Education",E7080,Care Provision,
COMPASS FOSTERING NORTH LIMITED,2073394,04/05/2021,"3,580.20","Children, Families & Education",E7080,Care Provision,
COMPASS FOSTERING NORTH LIMITED,2077941,20/05/2021,"3,445.65","Children, Families & Education",E7080,Care Provision,
COMPASS FOSTERING NORTH LIMITED,2077941,20/05/2021,"3,445.65","Children, Families & Education",E7080,Care Provision,
COMPASS FOSTERING NORTH LIMITED,2077941,20/05/2021,"3,355.13","Children, Families & Education",E7080,Care Provision,
COMPASS FOSTERING NORTH LIMITED,2077941,20/05/2021,"3,365.67","Children, Families & Education",E7080,Care Provision,
COMPASS FOSTERING NORTH LIMITED,2077941,20/05/2021,"3,326.25","Children, Families & Education",E7080,Care Provision,
COMPASS FOSTERING NORTH LIMITED,2077941,20/05/2021,"5,490.10","Children, Families & Education",E7080,Care Provision,
COMPASS FOSTERING NORTH LIMITED,2077941,20/05/2021,"3,613.67","Children, Families & Education",E7080,Care Provision,
COMPASS FOSTERING NORTH LIMITED,2077941,20/05/2021,"3,699.54","Children, Families & Education",E7080,Care Provision,
COMPASS FOSTERING NORTH LIMITED,2073394,04/05/2021,"-1,644.48","Children, Families & Education",E7080,Care Provision,
COMPASS FOSTERING NORTH LIMITED,2077941,20/05/2021,"-3,341.52","Children, Families & Education",E7080,Care Provision,
COMPASS FOSTERING NORTH LIMITED,2077941,20/05/2021,-2.92,"Children, Families & Education",E7080,Care Provision,
COMPASS FOSTERING NORTH LIMITED,2077941,20/05/2021,"3,341.52","Children, Families & Education",E7080,Care Provision,
CONCERTO SUPPORT SERVICES LIMITED,2073749,05/05/2021,"1,575.00",Transformation and Resources,C8077,Contractors - Main,
CONIFERS CARE HOMES LIMITED,2075138,11/05/2021,"3,600.00",Adults Care and Health and Strategic Commissioning,S6131,Physical Support - Adults (18-64),
CONSORTIA INTEGRATED SERVICES LIMITED,2080479,27/05/2021,472.95,Regeneration & Place,D2550,"Repairs, alterations and maintenance",
CONSORTIA INTEGRATED SERVICES LIMITED,2079223,26/05/2021,"1,116.36",Regeneration & Place,D2650,"Repairs, alterations and maintenance",
CONSORTIA INTEGRATED SERVICES LIMITED,2075917,13/05/2021,119.24,Regeneration & Place,D2700,"Repairs, alterations and maintenance",
CONSORTIA INTEGRATED SERVICES LIMITED,2080479,27/05/2021,81.33,Neighbourhood Services,D3508,"Repairs, alterations and maintenance",
CONSORTIA INTEGRATED SERVICES LIMITED,2075917,13/05/2021,54.22,Neighbourhood Services,D3513,"Repairs, alterations and maintenance",
CONSORTIA INTEGRATED SERVICES LIMITED,2074262,07/05/2021,41.57,Neighbourhood Services,D3514,"Repairs, alterations and maintenance",
CONSORTIA INTEGRATED SERVICES LIMITED,2077147,17/05/2021,461.49,Neighbourhood Services,D3514,"Repairs, alterations and maintenance",
CONSORTIA INTEGRATED SERVICES LIMITED,2075917,13/05/2021,81.33,Neighbourhood Services,D3519,"Repairs, alterations and maintenance",
CONSORTIA INTEGRATED SERVICES LIMITED,2073395,04/05/2021,81.33,Neighbourhood Services,D3520,"Repairs, alterations and maintenance",
CONSORTIA INTEGRATED SERVICES LIMITED,2073751,05/05/2021,81.33,Neighbourhood Services,D3520,"Repairs, alterations and maintenance",
CONSORTIA INTEGRATED SERVICES LIMITED,2073751,05/05/2021,908.20,Neighbourhood Services,D3520,"Repairs, alterations and maintenance",
CONSORTIA INTEGRATED SERVICES LIMITED,2077147,17/05/2021,84.24,Neighbourhood Services,D3520,"Repairs, alterations and maintenance",
CONSORTIA INTEGRATED SERVICES LIMITED,2073751,05/05/2021,140.00,Neighbourhood Services,D3543,"Repairs, alterations and maintenance",
CONSORTIA INTEGRATED SERVICES LIMITED,2075917,13/05/2021,40.66,Neighbourhood Services,D3543,"Repairs, alterations and maintenance",
CONSORTIA INTEGRATED SERVICES LIMITED,2077147,17/05/2021,128.18,Neighbourhood Services,D3543,"Repairs, alterations and maintenance",
CONSORTIA INTEGRATED SERVICES LIMITED,2075917,13/05/2021,70.02,"Children, Families & Education",E1200,"Repairs, alterations and maintenance",
CONSORTIA INTEGRATED SERVICES LIMITED,2073751,05/05/2021,238.90,"Children, Families & Education",E1860,"Repairs, alterations and maintenance",
CONSORTIA INTEGRATED SERVICES LIMITED,2075917,13/05/2021,84.24,"Children, Families & Education",E1860,"Repairs, alterations and maintenance",
CONSORTIA INTEGRATED SERVICES LIMITED,2073751,05/05/2021,54.22,"Children, Families & Education",E2050,"Repairs, alterations and maintenance",
CONSORTIA INTEGRATED SERVICES LIMITED,2073751,05/05/2021,81.33,"Children, Families & Education",E2050,"Repairs, alterations and maintenance",
CONSORTIA INTEGRATED SERVICES LIMITED,2073751,05/05/2021,81.33,"Children, Families & Education",E2050,"Repairs, alterations and maintenance",
CONSORTIA INTEGRATED SERVICES LIMITED,2073751,05/05/2021,81.33,"Children, Families & Education",E2050,"Repairs, alterations and maintenance",
CONSORTIA INTEGRATED SERVICES LIMITED,2077147,17/05/2021,131.20,"Children, Families & Education",E2090,"Repairs, alterations and maintenance",
CONSORTIA INTEGRATED SERVICES LIMITED,2073751,05/05/2021,54.22,"Children, Families & Education",E2200,"Repairs, alterations and maintenance",
CONSORTIA INTEGRATED SERVICES LIMITED,2073751,05/05/2021,54.22,"Children, Families & Education",E2200,"Repairs, alterations and maintenance",
CONSORTIA INTEGRATED SERVICES LIMITED,2073751,05/05/2021,81.33,"Children, Families & Education",E2200,"Repairs, alterations and maintenance",
CONSORTIA INTEGRATED SERVICES LIMITED,2073751,05/05/2021,81.33,"Children, Families & Education",E2200,"Repairs, alterations and maintenance",
CONSORTIA INTEGRATED SERVICES LIMITED,2079223,26/05/2021,401.73,"Children, Families & Education",E2200,"Repairs, alterations and maintenance",
CONSORTIA INTEGRATED SERVICES LIMITED,2074262,07/05/2021,120.02,"Children, Families & Education",E2220,"Repairs, alterations and maintenance",
CONSORTIA INTEGRATED SERVICES LIMITED,2079223,26/05/2021,54.22,"Children, Families & Education",E2420,"Repairs, alterations and maintenance",
CONSORTIA INTEGRATED SERVICES LIMITED,2079223,26/05/2021,54.22,"Children, Families & Education",E2420,"Repairs, alterations and maintenance",
CONSORTIA INTEGRATED SERVICES LIMITED,2079223,26/05/2021,54.22,"Children, Families & Education",E2420,"Repairs, alterations and maintenance",
CONSORTIA INTEGRATED SERVICES LIMITED,2079223,26/05/2021,54.22,"Children, Families & Education",E2420,"Repairs, alterations and maintenance",
CONSORTIA INTEGRATED SERVICES LIMITED,2079223,26/05/2021,40.66,"Children, Families & Education",E2420,"Repairs, alterations and maintenance",
CONSORTIA INTEGRATED SERVICES LIMITED,2079223,26/05/2021,40.66,"Children, Families & Education",E2420,"Repairs, alterations and maintenance",
CONSORTIA INTEGRATED SERVICES LIMITED,2080479,27/05/2021,337.50,"Children, Families & Education",E2420,"Repairs, alterations and maintenance",
CONSORTIA INTEGRATED SERVICES LIMITED,2075917,13/05/2021,96.24,"Children, Families & Education",E2920,"Repairs, alterations and maintenance",
CONSORTIA INTEGRATED SERVICES LIMITED,2074262,07/05/2021,"1,274.95","Children, Families & Education",E3040,"Repairs, alterations and maintenance",
CONSORTIA INTEGRATED SERVICES LIMITED,2077147,17/05/2021,84.24,"Children, Families & Education",E3040,"Repairs, alterations and maintenance",
CONSORTIA INTEGRATED SERVICES LIMITED,2077147,17/05/2021,"2,966.99","Children, Families & Education",E3570,"Repairs, alterations and maintenance",
CONSORTIA INTEGRATED SERVICES LIMITED,2079223,26/05/2021,54.22,"Children, Families & Education",E3570,"Repairs, alterations and maintenance",
CONSORTIA INTEGRATED SERVICES LIMITED,2079223,26/05/2021,81.33,"Children, Families & Education",E3570,"Repairs, alterations and maintenance",
CONSORTIA INTEGRATED SERVICES LIMITED,2080479,27/05/2021,81.33,"Children, Families & Education",E3570,"Repairs, alterations and maintenance",
CONSORTIA INTEGRATED SERVICES LIMITED,2077147,17/05/2021,186.34,"Children, Families & Education",E3580,"Repairs, alterations and maintenance",
CONSORTIA INTEGRATED SERVICES LIMITED,2077147,17/05/2021,266.97,"Children, Families & Education",E3580,"Repairs, alterations and maintenance",
CONSORTIA INTEGRATED SERVICES LIMITED,2074262,07/05/2021,213.89,"Children, Families & Education",E5430,"Repairs, alterations and maintenance",
CONSORTIA INTEGRATED SERVICES LIMITED,2074262,07/05/2021,41.57,Neighbourhood Services,L3010,"Repairs, alterations and maintenance",
CONSORTIA INTEGRATED SERVICES LIMITED,2074262,07/05/2021,546.94,Neighbourhood Services,L3010,"Repairs, alterations and maintenance",
CONSORTIA INTEGRATED SERVICES LIMITED,2075917,13/05/2021,81.33,Neighbourhood Services,L4973,"Repairs, alterations and maintenance",
CONSORTIA INTEGRATED SERVICES LIMITED,2075917,13/05/2021,81.33,Neighbourhood Services,L4973,"Repairs, alterations and maintenance",
CONSORTIA INTEGRATED SERVICES LIMITED,2080744,28/05/2021,470.50,Neighbourhood Services,L4974,"Repairs, alterations and maintenance",
CONSORTIA INTEGRATED SERVICES LIMITED,2073751,05/05/2021,67.77,Adults Care and Health and Strategic Commissioning,S6136,"Repairs, alterations and maintenance",
CONSORTIA INTEGRATED SERVICES LIMITED,2073751,05/05/2021,81.33,Adults Care and Health and Strategic Commissioning,S6136,"Repairs, alterations and maintenance",
CONSORTIA INTEGRATED SERVICES LIMITED,2073751,05/05/2021,81.33,Adults Care and Health and Strategic Commissioning,S6136,"Repairs, alterations and maintenance",
CONSORTIA INTEGRATED SERVICES LIMITED,2073751,05/05/2021,135.55,Adults Care and Health and Strategic Commissioning,S6136,"Repairs, alterations and maintenance",
CONSORTIA INTEGRATED SERVICES LIMITED,2074262,07/05/2021,105.00,Adults Care and Health and Strategic Commissioning,S6136,"Repairs, alterations and maintenance",
CONSORTIA INTEGRATED SERVICES LIMITED,2075917,13/05/2021,42.67,Adults Care and Health and Strategic Commissioning,S6136,"Repairs, alterations and maintenance",
CONTESSA HOTELS AND SPAS LIMITED,2077411,18/05/2021,688.80,"Children, Families & Education",E9967,Grants & Subscriptions,
CONTINENTAL LANDSCAPES LIMITED,2075527,12/05/2021,"5,442.13",Neighbourhood Services,H2930,Waste Service Provider,
CONTOUR HOUSING ASSOCIATION,2073396,04/05/2021,144.00,Regeneration & Place,H7180,Grants Paid,
COORDINATION GROUP PUBLICATIONS LIMITED,2077704,19/05/2021,44.95,"Children, Families & Education",E5630,"Equipment, Furniture & Materials",
COPPER BEECH RESIDENTIAL HOME,2075143,11/05/2021,-423.00,Adults Care and Health and Strategic Commissioning,S6142,Customer and Client - Community Care,
COPPER BEECH RESIDENTIAL HOME,2075143,11/05/2021,-595.40,Adults Care and Health and Strategic Commissioning,S6142,Customer and Client - Community Care,
COPPER BEECH RESIDENTIAL HOME,2075143,11/05/2021,"2,076.00",Adults Care and Health and Strategic Commissioning,S6142,Learning & Disability Support - Older People (65+),
COPPER BEECH RESIDENTIAL HOME,2075143,11/05/2021,"2,076.00",Adults Care and Health and Strategic Commissioning,S6142,Mental Health Support - Adults (18-64),
COPPER BEECH RESIDENTIAL HOME,2075143,11/05/2021,"2,076.00",Adults Care and Health and Strategic Commissioning,S6142,Mental Health Support - Adults (18-64),
COPPER BEECH RESIDENTIAL HOME,2075143,11/05/2021,"2,076.00",Adults Care and Health and Strategic Commissioning,S6142,Mental Health Support - Adults (18-64),
COPPER BEECH RESIDENTIAL HOME,2075143,11/05/2021,"2,076.00",Adults Care and Health and Strategic Commissioning,S6142,Mental Health Support - Adults (18-64),
COPPER BEECH RESIDENTIAL HOME,2075143,11/05/2021,"2,076.00",Adults Care and Health and Strategic Commissioning,S6142,Mental Health Support - Adults (18-64),
COPPER BEECH RESIDENTIAL HOME,2075143,11/05/2021,"2,076.00",Adults Care and Health and Strategic Commissioning,S6142,Mental Health Support - Adults (18-64),
COPPER BEECH RESIDENTIAL HOME,2075143,11/05/2021,"2,076.00",Adults Care and Health and Strategic Commissioning,S6142,Mental Health Support - Older People (65+),
COPPER BEECH RESIDENTIAL HOME,2075143,11/05/2021,"2,076.00",Adults Care and Health and Strategic Commissioning,S6161,Mental Health Support - Adults (18-64),
COPPER BEECH RESIDENTIAL HOME,2075143,11/05/2021,"2,076.00",Adults Care and Health and Strategic Commissioning,S6161,Mental Health Support - Adults (18-64),
COPPER BEECH RESIDENTIAL HOME,2075143,11/05/2021,"2,076.00",Adults Care and Health and Strategic Commissioning,S6162,Mental Health Support - Adults (18-64),
COPPER BEECH RESIDENTIAL HOME,2075143,11/05/2021,"2,076.00",Adults Care and Health and Strategic Commissioning,S6162,Mental Health Support - Adults (18-64),
COPPER BEECH RESIDENTIAL HOME,2075143,11/05/2021,"2,076.00",Adults Care and Health and Strategic Commissioning,S6165,Mental Health Support - Adults (18-64),
COPPER BEECH RESIDENTIAL HOME,2075143,11/05/2021,"2,076.00",Adults Care and Health and Strategic Commissioning,S6165,Mental Health Support - Adults (18-64),
COPPER BEECH RESIDENTIAL HOME,2075143,11/05/2021,"2,076.00",Adults Care and Health and Strategic Commissioning,S6165,Mental Health Support - Adults (18-64),
COPPER BEECH RESIDENTIAL HOME,2075143,11/05/2021,19.32,Adults Care and Health and Strategic Commissioning,S6167,Mental Health Support - Older People (65+),
COPPER BEECH RESIDENTIAL HOME,2075143,11/05/2021,"2,316.00",Adults Care and Health and Strategic Commissioning,S6167,Mental Health Support - Older People (65+),
COPPER FIELD RESIDENTIAL HOME,2075144,11/05/2021,-597.68,Adults Care and Health and Strategic Commissioning,S6121,Customer and Client - Community Care,
COPPER FIELD RESIDENTIAL HOME,2075144,11/05/2021,"2,076.00",Adults Care and Health and Strategic Commissioning,S6121,Learning & Disability Support - Adults (18-64),
COPPER FIELD RESIDENTIAL HOME,2075144,11/05/2021,"2,076.00",Adults Care and Health and Strategic Commissioning,S6121,Learning & Disability Support - Older People (65+),
COPPER FIELD RESIDENTIAL HOME,2075144,11/05/2021,-619.72,Adults Care and Health and Strategic Commissioning,S6142,Customer and Client - Community Care,
COPPER FIELD RESIDENTIAL HOME,2075144,11/05/2021,"2,076.00",Adults Care and Health and Strategic Commissioning,S6142,Mental Health Support - Adults (18-64),
COPPER FIELD RESIDENTIAL HOME,2075144,11/05/2021,"2,076.00",Adults Care and Health and Strategic Commissioning,S6142,Mental Health Support - Adults (18-64),
COPPER FIELD RESIDENTIAL HOME,2075144,11/05/2021,"2,076.00",Adults Care and Health and Strategic Commissioning,S6142,Mental Health Support - Adults (18-64),
COPPER FIELD RESIDENTIAL HOME,2075144,11/05/2021,"2,076.00",Adults Care and Health and Strategic Commissioning,S6142,Mental Health Support - Adults (18-64),
COPPER FIELD RESIDENTIAL HOME,2075144,11/05/2021,"2,076.00",Adults Care and Health and Strategic Commissioning,S6142,Mental Health Support - Older People (65+),
COPPER FIELD RESIDENTIAL HOME,2075144,11/05/2021,"2,076.00",Adults Care and Health and Strategic Commissioning,S6142,Mental Health Support - Older People (65+),
COPPER FIELD RESIDENTIAL HOME,2075144,11/05/2021,-423.00,Adults Care and Health and Strategic Commissioning,S6162,Customer and Client - Community Care,
COPPER FIELD RESIDENTIAL HOME,2075144,11/05/2021,"2,076.00",Adults Care and Health and Strategic Commissioning,S6162,Mental Health Support - Adults (18-64),
COPPER FIELD RESIDENTIAL HOME,2075144,11/05/2021,"2,076.00",Adults Care and Health and Strategic Commissioning,S6162,Mental Health Support - Adults (18-64),
COPPER FIELD RESIDENTIAL HOME,2075144,11/05/2021,"2,076.00",Adults Care and Health and Strategic Commissioning,S6162,Mental Health Support - Older People (65+),
CORAMBAAF ADOPTION & FOSTERING ACADEMY,2080746,28/05/2021,"3,172.61","Children, Families & Education",E7042,Training Expenses,
CORE PROJECT BIRKENHEAD CIC,2073752,05/05/2021,"5,000.00",Covid,H4100,Grants to Voluntary Organisations,
CORE PROJECT BIRKENHEAD CIC,2075922,13/05/2021,"5,000.00",Covid,H4153,Grants to Voluntary Organisations,
CORE PROJECT BIRKENHEAD CIC,2077150,17/05/2021,500.00,Covid,H4153,Grants to Voluntary Organisations,
CORE PROJECT BIRKENHEAD CIC,2077150,17/05/2021,"1,850.00",Covid,H4153,Grants to Voluntary Organisations,
CORONA ENERGY LIMITED,2080480,27/05/2021,32.63,Regeneration & Place,D4040,Energy Costs,
CORONA HOUSE,2075145,11/05/2021,"2,076.00",Adults Care and Health and Strategic Commissioning,S6131,Physical Support - Older People (65+),
CORONA HOUSE,2075145,11/05/2021,963.86,Adults Care and Health and Strategic Commissioning,S6132,Physical Support - Older People (65+),
CORONA HOUSE,2075145,11/05/2021,"2,076.00",Adults Care and Health and Strategic Commissioning,S6132,Physical Support - Older People (65+),
CORONA HOUSE,2075145,11/05/2021,"2,076.00",Adults Care and Health and Strategic Commissioning,S6132,Physical Support - Older People (65+),
CORONA HOUSE,2075145,11/05/2021,"1,853.57",Adults Care and Health and Strategic Commissioning,S6132,Physical Support - Older People (65+),
CORONA HOUSE,2075145,11/05/2021,"2,076.00",Adults Care and Health and Strategic Commissioning,S6167,Mental Health Support - Older People (65+),
CORSAIR F C,231622,14/05/2021,138.75,Balance Sheet,00000,Debtors - Other Entities and Individuals,
COURSECHANGE LIMITED T/A GRANGE NURSING HOME,2075146,11/05/2021,"2,096.00",Adults Care and Health and Strategic Commissioning,S6131,Physical Support - Older People (65+),
COURSECHANGE LIMITED T/A GRANGE NURSING HOME,2075146,11/05/2021,"1,936.00",Adults Care and Health and Strategic Commissioning,S6131,Physical Support - Older People (65+),
COURSECHANGE LIMITED T/A GRANGE NURSING HOME,2075146,11/05/2021,"2,096.00",Adults Care and Health and Strategic Commissioning,S6131,Physical Support - Older People (65+),
COURSECHANGE LIMITED T/A GRANGE NURSING HOME,2075146,11/05/2021,"2,096.00",Adults Care and Health and Strategic Commissioning,S6131,Physical Support - Older People (65+),
COURSECHANGE LIMITED T/A GRANGE NURSING HOME,2075146,11/05/2021,"2,096.00",Adults Care and Health and Strategic Commissioning,S6131,Physical Support - Older People (65+),
COURSECHANGE LIMITED T/A GRANGE NURSING HOME,2075146,11/05/2021,"2,096.00",Adults Care and Health and Strategic Commissioning,S6131,Physical Support - Older People (65+),
COURSECHANGE LIMITED T/A GRANGE NURSING HOME,2075146,11/05/2021,"2,096.00",Adults Care and Health and Strategic Commissioning,S6131,Physical Support - Older People (65+),
COURSECHANGE LIMITED T/A GRANGE NURSING HOME,2075146,11/05/2021,"1,936.00",Adults Care and Health and Strategic Commissioning,S6131,Physical Support - Older People (65+),
COURSECHANGE LIMITED T/A GRANGE NURSING HOME,2075146,11/05/2021,748.57,Adults Care and Health and Strategic Commissioning,S6131,Physical Support - Older People (65+),
COURSECHANGE LIMITED T/A GRANGE NURSING HOME,2075146,11/05/2021,384.98,Adults Care and Health and Strategic Commissioning,S6131,Physical Support - Older People (65+),
COURSECHANGE LIMITED T/A GRANGE NURSING HOME,2075146,11/05/2021,"2,096.00",Adults Care and Health and Strategic Commissioning,S6132,Mental Health Support - Older People (65+),
COURSECHANGE LIMITED T/A GRANGE NURSING HOME,2075146,11/05/2021,"2,096.00",Adults Care and Health and Strategic Commissioning,S6132,Mental Health Support - Older People (65+),
COURSECHANGE LIMITED T/A GRANGE NURSING HOME,2075146,11/05/2021,"2,096.00",Adults Care and Health and Strategic Commissioning,S6132,Physical Support - Adults (18-64),
COURSECHANGE LIMITED T/A GRANGE NURSING HOME,2075146,11/05/2021,"2,096.00",Adults Care and Health and Strategic Commissioning,S6132,Physical Support - Older People (65+),
COURSECHANGE LIMITED T/A GRANGE NURSING HOME,2075146,11/05/2021,"2,096.00",Adults Care and Health and Strategic Commissioning,S6141,Physical Support - Older People (65+),
COURSECHANGE LIMITED T/A GRANGE NURSING HOME,2075146,11/05/2021,"2,096.00",Adults Care and Health and Strategic Commissioning,S6141,Physical Support - Older People (65+),
COURSECHANGE LIMITED T/A GRANGE NURSING HOME,2075146,11/05/2021,"2,096.00",Adults Care and Health and Strategic Commissioning,S6142,Physical Support - Older People (65+),
COURSECHANGE LIMITED T/A GRANGE NURSING HOME,2075146,11/05/2021,"2,096.00",Adults Care and Health and Strategic Commissioning,S6166,Mental Health Support - Older People (65+),
COURSECHANGE LIMITED T/A GRANGE NURSING HOME,2075146,11/05/2021,691.43,Adults Care and Health and Strategic Commissioning,S6998,Physical Support - Older People (65+),
COURT NURSING HOME,2075147,11/05/2021,"2,324.00",Adults Care and Health and Strategic Commissioning,S6131,Physical Support - Older People (65+),
COURT NURSING HOME,2075147,11/05/2021,"2,324.00",Adults Care and Health and Strategic Commissioning,S6132,Memory & Cognition Support - Older People (65+),
COURT NURSING HOME,2075147,11/05/2021,"2,324.00",Adults Care and Health and Strategic Commissioning,S6132,Memory & Cognition Support - Older People (65+),
COURT NURSING HOME,2075147,11/05/2021,"2,324.00",Adults Care and Health and Strategic Commissioning,S6132,Memory & Cognition Support - Older People (65+),
COURT NURSING HOME,2075147,11/05/2021,"2,324.00",Adults Care and Health and Strategic Commissioning,S6132,Memory & Cognition Support - Older People (65+),
COURT NURSING HOME,2075147,11/05/2021,"2,324.00",Adults Care and Health and Strategic Commissioning,S6132,Physical Support - Older People (65+),
COURT NURSING HOME,2075147,11/05/2021,"2,324.00",Adults Care and Health and Strategic Commissioning,S6132,Physical Support - Older People (65+),
COURT NURSING HOME,2075147,11/05/2021,"2,324.00",Adults Care and Health and Strategic Commissioning,S6132,Physical Support - Older People (65+),
COURT NURSING HOME,2075147,11/05/2021,"2,324.00",Adults Care and Health and Strategic Commissioning,S6142,Physical Support - Older People (65+),
COURT NURSING HOME,2075147,11/05/2021,-581.00,Adults Care and Health and Strategic Commissioning,S6142,Physical Support - Older People (65+),
COURT NURSING HOME,2075147,11/05/2021,"2,324.00",Adults Care and Health and Strategic Commissioning,S6162,Mental Health Support - Older People (65+),
COURT NURSING HOME,2075147,11/05/2021,"2,324.00",Adults Care and Health and Strategic Commissioning,S6165,Mental Health Support - Adults (18-64),
COURT NURSING HOME,2075147,11/05/2021,"2,324.00",Adults Care and Health and Strategic Commissioning,S6167,Mental Health Support - Older People (65+),
COURT NURSING HOME,2075147,11/05/2021,"2,324.00",Adults Care and Health and Strategic Commissioning,S6167,Mental Health Support - Older People (65+),
COURT NURSING HOME,2075147,11/05/2021,"2,324.00",Adults Care and Health and Strategic Commissioning,S6167,Mental Health Support - Older People (65+),
COURT NURSING HOME,2075147,11/05/2021,"2,324.00",Adults Care and Health and Strategic Commissioning,S6167,Mental Health Support - Older People (65+),
COURT NURSING HOME,2075147,11/05/2021,"2,324.00",Adults Care and Health and Strategic Commissioning,S6167,Mental Health Support - Older People (65+),
COURT NURSING HOME,2075147,11/05/2021,827.14,Adults Care and Health and Strategic Commissioning,S6167,Mental Health Support - Older People (65+),
COURT NURSING HOME,2075147,11/05/2021,"2,616.20",Adults Care and Health and Strategic Commissioning,S6167,Mental Health Support - Older People (65+),
COURT NURSING HOME,2075147,11/05/2021,"1,494.00",Adults Care and Health and Strategic Commissioning,S6167,Mental Health Support - Older People (65+),
COURT NURSING HOME,2075147,11/05/2021,"2,324.00",Adults Care and Health and Strategic Commissioning,S6167,Physical Support - Older People (65+),
COURT NURSING HOME,2075147,11/05/2021,"2,324.00",Adults Care and Health and Strategic Commissioning,S6167,Physical Support - Older People (65+),
COVERAGE CARE SERVICES LIMITED,2075148,11/05/2021,"3,640.00",Adults Care and Health and Strategic Commissioning,S6121,Learning & Disability Support - Older People (65+),
COZEE CARE HOMES LIMITED T/A BARNSTON COURT NURSING HOME,2075149,11/05/2021,"2,244.00",Adults Care and Health and Strategic Commissioning,S6131,Physical Support - Older People (65+),
COZEE CARE HOMES LIMITED T/A BARNSTON COURT NURSING HOME,2075149,11/05/2021,"2,244.00",Adults Care and Health and Strategic Commissioning,S6132,Physical Support - Older People (65+),
COZEE CARE HOMES LIMITED T/A BARNSTON COURT NURSING HOME,2075149,11/05/2021,"1,362.43",Adults Care and Health and Strategic Commissioning,S6132,Physical Support - Older People (65+),
COZEE CARE HOMES LIMITED T/A BARNSTON COURT NURSING HOME,2075149,11/05/2021,"2,244.00",Adults Care and Health and Strategic Commissioning,S6141,Physical Support - Adults (18-64),
COZEE CARE HOMES LIMITED T/A BARNSTON COURT NURSING HOME,2075149,11/05/2021,"2,244.00",Adults Care and Health and Strategic Commissioning,S6141,Physical Support - Older People (65+),
COZEE CARE HOMES LIMITED T/A BARNSTON COURT NURSING HOME,2075149,11/05/2021,"2,244.00",Adults Care and Health and Strategic Commissioning,S6141,Physical Support - Older People (65+),
COZEE CARE HOMES LIMITED T/A BARNSTON COURT NURSING HOME,2075149,11/05/2021,"2,244.00",Adults Care and Health and Strategic Commissioning,S6141,Physical Support - Older People (65+),
COZEE CARE HOMES LIMITED T/A BARNSTON COURT NURSING HOME,2075149,11/05/2021,"2,244.00",Adults Care and Health and Strategic Commissioning,S6141,Physical Support - Older People (65+),
COZEE CARE HOMES LIMITED T/A BARNSTON COURT NURSING HOME,2075149,11/05/2021,721.29,Adults Care and Health and Strategic Commissioning,S6141,Physical Support - Older People (65+),
COZEE CARE HOMES LIMITED T/A BARNSTON COURT NURSING HOME,2075149,11/05/2021,"1,282.29",Adults Care and Health and Strategic Commissioning,S6142,Learning & Disability Support - Adults (18-64),
COZEE CARE HOMES LIMITED T/A BARNSTON COURT NURSING HOME,2075149,11/05/2021,"1,683.00",Adults Care and Health and Strategic Commissioning,S6142,Learning & Disability Support - Adults (18-64),
COZEE CARE HOMES LIMITED T/A BARNSTON COURT NURSING HOME,2075149,11/05/2021,561.00,Adults Care and Health and Strategic Commissioning,S6142,Learning & Disability Support - Adults (18-64),
COZEE CARE HOMES LIMITED T/A BARNSTON COURT NURSING HOME,2075149,11/05/2021,"2,244.00",Adults Care and Health and Strategic Commissioning,S6142,Learning & Disability Support - Adults (18-64),
COZEE CARE HOMES LIMITED T/A BARNSTON COURT NURSING HOME,2075149,11/05/2021,"2,244.00",Adults Care and Health and Strategic Commissioning,S6142,Memory & Cognition Support - Older People (65+),
COZEE CARE HOMES LIMITED T/A BARNSTON COURT NURSING HOME,2075149,11/05/2021,"2,244.00",Adults Care and Health and Strategic Commissioning,S6142,Physical Support - Adults (18-64),
COZEE CARE HOMES LIMITED T/A BARNSTON COURT NURSING HOME,2075149,11/05/2021,"2,244.00",Adults Care and Health and Strategic Commissioning,S6142,Physical Support - Adults (18-64),
COZEE CARE HOMES LIMITED T/A BARNSTON COURT NURSING HOME,2075149,11/05/2021,"2,244.00",Adults Care and Health and Strategic Commissioning,S6142,Physical Support - Older People (65+),
COZEE CARE HOMES LIMITED T/A BARNSTON COURT NURSING HOME,2075149,11/05/2021,"2,244.00",Adults Care and Health and Strategic Commissioning,S6142,Physical Support - Older People (65+),
COZEE CARE HOMES LIMITED T/A BARNSTON COURT NURSING HOME,2075149,11/05/2021,"2,244.00",Adults Care and Health and Strategic Commissioning,S6142,Physical Support - Older People (65+),
COZEE CARE HOMES LIMITED T/A BARNSTON COURT NURSING HOME,2075149,11/05/2021,"2,244.00",Adults Care and Health and Strategic Commissioning,S6142,Physical Support - Older People (65+),
COZEE CARE HOMES LIMITED T/A BARNSTON COURT NURSING HOME,2075149,11/05/2021,"-1,282.29",Adults Care and Health and Strategic Commissioning,S6998,Learning & Disability Support - Adults (18-64),
COZEE CARE HOMES LIMITED T/A BARNSTON COURT NURSING HOME,2075149,11/05/2021,-561.00,Adults Care and Health and Strategic Commissioning,S6998,Learning & Disability Support - Adults (18-64),
COZEE CARE HOMES LIMITED T/A BARNSTON COURT NURSING HOME,2075149,11/05/2021,"-1,683.00",Adults Care and Health and Strategic Commissioning,S6998,Learning & Disability Support - Adults (18-64),
COZEE CARE HOMES LIMITED T/A BARNSTON COURT NURSING HOME,2075149,11/05/2021,"2,244.00",Adults Care and Health and Strategic Commissioning,S6998,Physical Support - Older People (65+),
COZEE CARE HOMES LIMITED T/A BARNSTON COURT NURSING HOME,2075149,11/05/2021,"2,244.00",Adults Care and Health and Strategic Commissioning,S6998,Physical Support - Older People (65+),
COZEE CARE HOMES LIMITED T/A BARNSTON COURT NURSING HOME,2075149,11/05/2021,-400.71,Adults Care and Health and Strategic Commissioning,S6998,Physical Support - Older People (65+),
CPI WORLDWIDE LTD (CRISIS PREVENTION INSTITUTE INC),2077414,18/05/2021,"2,180.00",Resources,P1042,APT&C,
CRAEGMOOR FACILITIES COMPANY LIMITED,2075151,11/05/2021,"7,427.32",Adults Care and Health and Strategic Commissioning,S6121,Learning & Disability Support - Adults (18-64),
CRAEGMOOR FACILITIES COMPANY LIMITED,2075150,11/05/2021,"4,276.00",Adults Care and Health and Strategic Commissioning,S6121,Learning & Disability Support - Adults (18-64),
CRAEGMOOR FACILITIES COMPANY LIMITED,2075151,11/05/2021,"7,427.32",Adults Care and Health and Strategic Commissioning,S6142,Learning & Disability Support - Adults (18-64),
CRAEGMOOR FLC NEW DIRECTIONS BISHOP CORNER,2075152,11/05/2021,"5,909.84",Adults Care and Health and Strategic Commissioning,S6121,Learning & Disability Support - Adults (18-64),
CRAIG MCGETTRICK T/A PENINSULA REMOVALS,2078692,25/05/2021,585.00,Regeneration & Place,H6080,Expenses,
CREA8ING CAREERS,2075153,11/05/2021,"1,800.00","Children, Families & Education",E6150,Hired or Contracted services,
CREA8ING CAREERS,2076733,14/05/2021,"4,200.00",Covid,H4153,Grants to Voluntary Organisations,
CROFTWOOD CARE UK LIMITED,2075154,11/05/2021,968.00,Adults Care and Health and Strategic Commissioning,S6131,Physical Support - Older People (65+),
CROFTWOOD CARE UK LIMITED,2075156,11/05/2021,"1,908.36",Adults Care and Health and Strategic Commissioning,S6132,Physical Support - Older People (65+),
CROFTWOOD CARE UK LIMITED,2075155,11/05/2021,"1,936.00",Adults Care and Health and Strategic Commissioning,S6141,Physical Support - Older People (65+),
CROFTWOOD CARE UK LIMITED,2075155,11/05/2021,"1,584.00",Adults Care and Health and Strategic Commissioning,S6141,Physical Support - Older People (65+),
CROFTWOOD CARE UK LIMITED,2075155,11/05/2021,"1,936.00",Adults Care and Health and Strategic Commissioning,S6141,Physical Support - Older People (65+),
CROFTWOOD CARE UK LIMITED,2075155,11/05/2021,"1,936.00",Adults Care and Health and Strategic Commissioning,S6141,Physical Support - Older People (65+),
CROFTWOOD CARE UK LIMITED,2075155,11/05/2021,720.00,Adults Care and Health and Strategic Commissioning,S6141,Physical Support - Older People (65+),
CROFTWOOD CARE UK LIMITED,2075155,11/05/2021,"1,936.00",Adults Care and Health and Strategic Commissioning,S6141,Physical Support - Older People (65+),
CROFTWOOD CARE UK LIMITED,2075155,11/05/2021,"1,276.00",Adults Care and Health and Strategic Commissioning,S6141,Physical Support - Older People (65+),
CROFTWOOD CARE UK LIMITED,2075155,11/05/2021,"1,244.57",Adults Care and Health and Strategic Commissioning,S6141,Physical Support - Older People (65+),
CROFTWOOD CARE UK LIMITED,2075155,11/05/2021,"1,011.43",Adults Care and Health and Strategic Commissioning,S6998,Physical Support - Older People (65+),
CROFTWOOD CARE UK LIMITED,2075155,11/05/2021,"1,011.43",Adults Care and Health and Strategic Commissioning,S6998,Physical Support - Older People (65+),
CROSS ROADS CARE CHESHIRE MANCHESTER & MERSEYSIDE T/A CROSSROADS TOGETHER,2074264,07/05/2021,36.90,Adults Care and Health and Strategic Commissioning,E6760,Care Provision,
CROSS ROADS CARE CHESHIRE MANCHESTER & MERSEYSIDE T/A CROSSROADS TOGETHER,2074264,07/05/2021,52.35,Adults Care and Health and Strategic Commissioning,E6760,Care Provision,
CROSS ROADS CARE CHESHIRE MANCHESTER & MERSEYSIDE T/A CROSSROADS TOGETHER,2074264,07/05/2021,65.00,Adults Care and Health and Strategic Commissioning,E6760,Care Provision,
CROSS ROADS CARE CHESHIRE MANCHESTER & MERSEYSIDE T/A CROSSROADS TOGETHER,2074264,07/05/2021,54.00,Adults Care and Health and Strategic Commissioning,E6760,Care Provision,
CROSS ROADS CARE CHESHIRE MANCHESTER & MERSEYSIDE T/A CROSSROADS TOGETHER,2074264,07/05/2021,48.00,Adults Care and Health and Strategic Commissioning,E6760,Care Provision,
